Body Name,Body,Service Label,Service Code,CIPFA Detailed Expenditure Type,CIPFA Detailed Expenditure Code,Date,Transaction Number,Net Amount,Supplier Name
Nottinghamshire County Council,1111/1001,Children and Young People,CYP,Employee Related,ABA,11/05/2023,02-18545,"15,486.90",Reed Employment Ltd
Nottinghamshire County Council,1111/1001,Children and Young People,CYP,Premises Related,BAA,10/05/2023,02-13661,13510.83,ARC Property Services Partnership L
Nottinghamshire County Council,1111/1001,Children and Young People,CYP,Premises Related,BAA,18/05/2023,02-15387,1582.07,ARC Property Services Partnership L
Nottinghamshire County Council,1111/1001,Children and Young People,CYP,Premises Related,BAA,25/05/2023,02-17559,4003.8,ARC Property Services Partnership L
Nottinghamshire County Council,1111/1001,Children and Young People,CYP,Premises Related,BCA,09/05/2023,02-18323,1737.4,High Park Industries Ltd
Nottinghamshire County Council,1111/1001,Children and Young People,CYP,Premises Related,BDA,03/05/2023,02-10912,"9,876.38",Calder Conferences Ltd
Nottinghamshire County Council,1111/1001,Children and Young People,CYP,Premises Related,BDA,04/05/2023,02-18142,"3,281.63",SLM Fitness & Health Ltd (Everyone
Nottinghamshire County Council,1111/1001,Children and Young People,CYP,Premises Related,BDA,04/05/2023,02-18166,2750.26,SLM Fitness & Health Ltd (Everyone
Nottinghamshire County Council,1111/1001,Children and Young People,CYP,Premises Related,BDA,15/05/2023,02-18571,"7,057.64",Barnsley Premier Leisure
Nottinghamshire County Council,1111/1001,Children and Young People,CYP,Premises Related,BDA,16/05/2023,02-18233,500,Ekmw Summit Centre
Nottinghamshire County Council,1111/1001,Children and Young People,CYP,Premises Related,BEA,22/05/2023,02-16127,"1,771.11",Mansfield District Council
Nottinghamshire County Council,1111/1001,Children and Young People,CYP,Transport Related,CAA,02/05/2023,02-10068,398.23,UK Fuels Ltd
Nottinghamshire County Council,1111/1001,Children and Young People,CYP,Transport Related,CAA,02/05/2023,02-10106,51.05,Via East Midlands Ltd
Nottinghamshire County Council,1111/1001,Children and Young People,CYP,Transport Related,CAA,15/05/2023,02-14461,806.71,Via East Midlands Ltd
Nottinghamshire County Council,1111/1001,Children and Young People,CYP,Transport Related,CAA,15/05/2023,02-14466,"1,424.44",Via East Midlands Ltd
Nottinghamshire County Council,1111/1001,Children and Young People,CYP,Transport Related,CAA,17/05/2023,02-15272,771.37,Via East Midlands Ltd
Nottinghamshire County Council,1111/1001,Children and Young People,CYP,Transport Related,CAA,22/05/2023,02-16276,1231,Via East Midlands Ltd
Nottinghamshire County Council,1111/1001,Children and Young People,CYP,Transport Related,CAA,24/05/2023,02-10954,478.5,UK Fuels Ltd
Nottinghamshire County Council,1111/1001,Children and Young People,CYP,Transport Related,CAA,24/05/2023,02-17328,204.92,Via East Midlands Ltd
Nottinghamshire County Council,1111/1001,Children and Young People,CYP,Transport Related,CAA,26/05/2023,02-17640,112.2,Via East Midlands Ltd
Nottinghamshire County Council,1111/1001,Children and Young People,CYP,Transport Related,CAA,31/05/2023,02-13946,431.88,UK Fuels Ltd
Nottinghamshire County Council,1111/1001,Children and Young People,CYP,Transport Related,CCA,03/05/2023,02-10867,2813.48,Alpha Cars
Nottinghamshire County Council,1111/1001,Children and Young People,CYP,Transport Related,CCA,03/05/2023,02-10868,"3,036.30",Alpha Cars
Nottinghamshire County Council,1111/1001,Children and Young People,CYP,Transport Related,CCA,03/05/2023,02-10869,"3,959.00",Alpha Cars
Nottinghamshire County Council,1111/1001,Children and Young People,CYP,Transport Related,CCA,03/05/2023,02-10870,2357.8,Alpha Cars
Nottinghamshire County Council,1111/1001,Children and Young People,CYP,Transport Related,CCA,03/05/2023,02-10873,"3,856.00",Abacus Cars
Nottinghamshire County Council,1111/1001,Children and Young People,CYP,Transport Related,CCA,03/05/2023,02-10874,"3,468.40",Rushcliffe Travel Ltd
Nottinghamshire County Council,1111/1001,Children and Young People,CYP,Transport Related,CCA,03/05/2023,02-10877,"1,718.20",SM Travel Yorkshire Ltd
Nottinghamshire County Council,1111/1001,Children and Young People,CYP,Transport Related,CCA,03/05/2023,02-10878,984.34,SM Travel Yorkshire Ltd
Nottinghamshire County Council,1111/1001,Children and Young People,CYP,Transport Related,CCA,03/05/2023,02-10879,"2,596.00",A1 Private Hire Ltd
Nottinghamshire County Council,1111/1001,Children and Young People,CYP,Transport Related,CCA,03/05/2023,02-10895,765,Abacus Cars
Nottinghamshire County Council,1111/1001,Children and Young People,CYP,Transport Related,CCA,05/05/2023,02-13334,"2,124.33",24 x 7 (Nottingham) Ltd
Nottinghamshire County Council,1111/1001,Children and Young People,CYP,Transport Related,CCA,05/05/2023,02-13335,5195.58,24 x 7 (Nottingham) Ltd
Nottinghamshire County Council,1111/1001,Children and Young People,CYP,Transport Related,CCA,05/05/2023,02-13336,5957,24 x 7 (Nottingham) Ltd
Nottinghamshire County Council,1111/1001,Children and Young People,CYP,Transport Related,CCA,09/05/2023,02-13329,2218.97,BN Gibson Ltd
Nottinghamshire County Council,1111/1001,Children and Young People,CYP,Transport Related,CCA,09/05/2023,02-13330,"6,096.00",Freeway Coaches Ltd
Nottinghamshire County Council,1111/1001,Children and Young People,CYP,Transport Related,CCA,09/05/2023,02-13331,"1,380.10",SM Travel Yorkshire Ltd
Nottinghamshire County Council,1111/1001,Children and Young People,CYP,Transport Related,CCA,09/05/2023,02-13333,"1,526.00",SM Travel Yorkshire Ltd
Nottinghamshire County Council,1111/1001,Children and Young People,CYP,Transport Related,CCA,09/05/2023,02-13338,3553.5,Nottingham Specialist Transport Ltd
Nottinghamshire County Council,1111/1001,Children and Young People,CYP,Transport Related,CCA,09/05/2023,02-13339,"5,385.00",Nottingham Specialist Transport Ltd
Nottinghamshire County Council,1111/1001,Children and Young People,CYP,Transport Related,CCA,09/05/2023,02-13340,"5,685.00",Nottingham Specialist Transport Ltd
Nottinghamshire County Council,1111/1001,Children and Young People,CYP,Transport Related,CCA,09/05/2023,02-13341,3378.8,Nottingham Specialist Transport Ltd
Nottinghamshire County Council,1111/1001,Children and Young People,CYP,Transport Related,CCA,09/05/2023,02-13342,836,Bingham Cabs
Nottinghamshire County Council,1111/1001,Children and Young People,CYP,Transport Related,CCA,10/05/2023,02-13843,2351.25,[Redacted]
Nottinghamshire County Council,1111/1001,Children and Young People,CYP,Transport Related,CCA,15/05/2023,02-14478,"1,142.28",Southside Cars Ltd
Nottinghamshire County Council,1111/1001,Children and Young People,CYP,Transport Related,CCA,15/05/2023,02-14479,"2,291.30",Southside Cars Ltd
Nottinghamshire County Council,1111/1001,Children and Young People,CYP,Transport Related,CCA,15/05/2023,02-14480,1070,Southside Cars Ltd
Nottinghamshire County Council,1111/1001,Children and Young People,CYP,Transport Related,CCA,15/05/2023,02-14481,"1,480.00",Southside Cars Ltd
Nottinghamshire County Council,1111/1001,Children and Young People,CYP,Transport Related,CCA,15/05/2023,02-14483,"1,680.00",Southside Cars Ltd
Nottinghamshire County Council,1111/1001,Children and Young People,CYP,Transport Related,CCA,15/05/2023,02-14484,1318,Southside Cars Ltd
Nottinghamshire County Council,1111/1001,Children and Young People,CYP,Transport Related,CCA,15/05/2023,02-14485,"1,378.00",Southside Cars Ltd
Nottinghamshire County Council,1111/1001,Children and Young People,CYP,Transport Related,CCA,15/05/2023,02-14486,799,Southside Cars Ltd
Nottinghamshire County Council,1111/1001,Children and Young People,CYP,Transport Related,CCA,15/05/2023,02-14487,1193.4,Southside Cars Ltd
Nottinghamshire County Council,1111/1001,Children and Young People,CYP,Transport Related,CCA,15/05/2023,02-14488,"1,040.00",Southside Cars Ltd
Nottinghamshire County Council,1111/1001,Children and Young People,CYP,Transport Related,CCA,15/05/2023,02-14489,1421.5,Southside Cars Ltd
Nottinghamshire County Council,1111/1001,Children and Young People,CYP,Transport Related,CCA,15/05/2023,02-14490,"1,170.00",Southside Cars Ltd
Nottinghamshire County Council,1111/1001,Children and Young People,CYP,Transport Related,CCA,15/05/2023,02-14491,1682.19,Southside Cars Ltd
Nottinghamshire County Council,1111/1001,Children and Young People,CYP,Transport Related,CCA,15/05/2023,02-14492,"1,346.00",Southside Cars Ltd
Nottinghamshire County Council,1111/1001,Children and Young People,CYP,Transport Related,CCA,15/05/2023,02-14493,572.8,Southside Cars Ltd
Nottinghamshire County Council,1111/1001,Children and Young People,CYP,Transport Related,CCA,15/05/2023,02-14494,846,Southside Cars Ltd
Nottinghamshire County Council,1111/1001,Children and Young People,CYP,Transport Related,CCA,15/05/2023,02-14495,1190,Southside Cars Ltd
Nottinghamshire County Council,1111/1001,Children and Young People,CYP,Transport Related,CCA,15/05/2023,02-14496,"1,485.10",Southside Cars Ltd
Nottinghamshire County Council,1111/1001,Children and Young People,CYP,Transport Related,CCA,15/05/2023,02-14497,1183.2,Southside Cars Ltd
Nottinghamshire County Council,1111/1001,Children and Young People,CYP,Transport Related,CCA,15/05/2023,02-14498,"1,280.00",Southside Cars Ltd
Nottinghamshire County Council,1111/1001,Children and Young People,CYP,Transport Related,CCA,15/05/2023,02-14499,553.76,Southside Cars Ltd
Nottinghamshire County Council,1111/1001,Children and Young People,CYP,Transport Related,CCA,15/05/2023,02-14500,832,Southside Cars Ltd
Nottinghamshire County Council,1111/1001,Children and Young People,CYP,Transport Related,CCA,15/05/2023,02-14501,699,Southside Cars Ltd
Nottinghamshire County Council,1111/1001,Children and Young People,CYP,Transport Related,CCA,15/05/2023,02-14502,1045.3,Southside Cars Ltd
Nottinghamshire County Council,1111/1001,Children and Young People,CYP,Transport Related,CCA,15/05/2023,02-14503,1153.8,Southside Cars Ltd
Nottinghamshire County Council,1111/1001,Children and Young People,CYP,Transport Related,CCA,15/05/2023,02-14504,700,Southside Cars Ltd
Nottinghamshire County Council,1111/1001,Children and Young People,CYP,Transport Related,CCA,15/05/2023,02-14505,720,Southside Cars Ltd
Nottinghamshire County Council,1111/1001,Children and Young People,CYP,Transport Related,CCA,15/05/2023,02-14506,838,Southside Cars Ltd
Nottinghamshire County Council,1111/1001,Children and Young People,CYP,Transport Related,CCA,15/05/2023,02-14507,1260,Southside Cars Ltd
Nottinghamshire County Council,1111/1001,Children and Young People,CYP,Transport Related,CCA,15/05/2023,02-14508,1041.8,Southside Cars Ltd
Nottinghamshire County Council,1111/1001,Children and Young People,CYP,Transport Related,CCA,15/05/2023,02-14509,1219.9,Southside Cars Ltd
Nottinghamshire County Council,1111/1001,Children and Young People,CYP,Transport Related,CCA,15/05/2023,02-14510,1234.2,Southside Cars Ltd
Nottinghamshire County Council,1111/1001,Children and Young People,CYP,Transport Related,CCA,15/05/2023,02-14511,1020.6,Southside Cars Ltd
Nottinghamshire County Council,1111/1001,Children and Young People,CYP,Transport Related,CCA,15/05/2023,02-14512,900,Southside Cars Ltd
Nottinghamshire County Council,1111/1001,Children and Young People,CYP,Transport Related,CCA,15/05/2023,02-14513,2189,Southside Cars Ltd
Nottinghamshire County Council,1111/1001,Children and Young People,CYP,Transport Related,CCA,15/05/2023,02-14514,1248.48,Southside Cars Ltd
Nottinghamshire County Council,1111/1001,Children and Young People,CYP,Transport Related,CCA,15/05/2023,02-14515,1212.48,Southside Cars Ltd
Nottinghamshire County Council,1111/1001,Children and Young People,CYP,Transport Related,CCA,15/05/2023,02-14516,1229.94,Southside Cars Ltd
Nottinghamshire County Council,1111/1001,Children and Young People,CYP,Transport Related,CCA,15/05/2023,02-14517,1575.27,Southside Cars Ltd
Nottinghamshire County Council,1111/1001,Children and Young People,CYP,Transport Related,CCA,15/05/2023,02-14518,1107.45,Southside Cars Ltd
Nottinghamshire County Council,1111/1001,Children and Young People,CYP,Transport Related,CCA,15/05/2023,02-14519,1432.08,Southside Cars Ltd
Nottinghamshire County Council,1111/1001,Children and Young People,CYP,Transport Related,CCA,15/05/2023,02-14520,1262.4,Southside Cars Ltd
Nottinghamshire County Council,1111/1001,Children and Young People,CYP,Transport Related,CCA,15/05/2023,02-14522,708,Southside Cars Ltd
Nottinghamshire County Council,1111/1001,Children and Young People,CYP,Transport Related,CCA,15/05/2023,02-14523,1311.2,Southside Cars Ltd
Nottinghamshire County Council,1111/1001,Children and Young People,CYP,Transport Related,CCA,15/05/2023,02-14524,641.16,Southside Cars Ltd
Nottinghamshire County Council,1111/1001,Children and Young People,CYP,Transport Related,CCA,15/05/2023,02-14525,816,Southside Cars Ltd
Nottinghamshire County Council,1111/1001,Children and Young People,CYP,Transport Related,CCA,15/05/2023,02-14531,742.6,6 Five 2s
Nottinghamshire County Council,1111/1001,Children and Young People,CYP,Transport Related,CCA,15/05/2023,02-14533,898,6 Five 2s
Nottinghamshire County Council,1111/1001,Children and Young People,CYP,Transport Related,CCA,15/05/2023,02-14534,600,6 Five 2s
Nottinghamshire County Council,1111/1001,Children and Young People,CYP,Transport Related,CCA,15/05/2023,02-14535,672,6 Five 2s
Nottinghamshire County Council,1111/1001,Children and Young People,CYP,Transport Related,CCA,15/05/2023,02-14536,742.6,6 Five 2s
Nottinghamshire County Council,1111/1001,Children and Young People,CYP,Transport Related,CCA,15/05/2023,02-14537,500,6 Five 2s
Nottinghamshire County Council,1111/1001,Children and Young People,CYP,Transport Related,CCA,15/05/2023,02-14538,700,6 Five 2s
Nottinghamshire County Council,1111/1001,Children and Young People,CYP,Transport Related,CCA,15/05/2023,02-14539,1560.2,6 Five 2s
Nottinghamshire County Council,1111/1001,Children and Young People,CYP,Transport Related,CCA,15/05/2023,02-14541,1223.7,All Wayz Travel
Nottinghamshire County Council,1111/1001,Children and Young People,CYP,Transport Related,CCA,15/05/2023,02-14542,1874,All Wayz Travel
Nottinghamshire County Council,1111/1001,Children and Young People,CYP,Transport Related,CCA,15/05/2023,02-14543,1273,All Wayz Travel
Nottinghamshire County Council,1111/1001,Children and Young People,CYP,Transport Related,CCA,15/05/2023,02-14544,2000,All Wayz Travel
Nottinghamshire County Council,1111/1001,Children and Young People,CYP,Transport Related,CCA,15/05/2023,02-14545,630,All Wayz Travel
Nottinghamshire County Council,1111/1001,Children and Young People,CYP,Transport Related,CCA,15/05/2023,02-14546,1385.28,Central Cars (Nottm) Ltd
Nottinghamshire County Council,1111/1001,Children and Young People,CYP,Transport Related,CCA,15/05/2023,02-14548,2571,Johnson Bros Tours Ltd
Nottinghamshire County Council,1111/1001,Children and Young People,CYP,Transport Related,CCA,15/05/2023,02-14549,2328.7,Johnson Bros Tours Ltd
Nottinghamshire County Council,1111/1001,Children and Young People,CYP,Transport Related,CCA,15/05/2023,02-14550,4517.8,Johnson Bros Tours Ltd
Nottinghamshire County Council,1111/1001,Children and Young People,CYP,Transport Related,CCA,15/05/2023,02-14551,5207.2,Johnson Bros Tours Ltd
Nottinghamshire County Council,1111/1001,Children and Young People,CYP,Transport Related,CCA,15/05/2023,02-14552,3058,Johnson Bros Tours Ltd
Nottinghamshire County Council,1111/1001,Children and Young People,CYP,Transport Related,CCA,15/05/2023,02-14553,3250,Johnson Bros Tours Ltd
Nottinghamshire County Council,1111/1001,Children and Young People,CYP,Transport Related,CCA,15/05/2023,02-14554,1552.95,Martins Travel
Nottinghamshire County Council,1111/1001,Children and Young People,CYP,Transport Related,CCA,15/05/2023,02-14556,1060.8,200 Cars Ltd
Nottinghamshire County Council,1111/1001,Children and Young People,CYP,Transport Related,CCA,15/05/2023,02-14557,600,200 Cars Ltd
Nottinghamshire County Council,1111/1001,Children and Young People,CYP,Transport Related,CCA,15/05/2023,02-14558,600,200 Cars Ltd
Nottinghamshire County Council,1111/1001,Children and Young People,CYP,Transport Related,CCA,15/05/2023,02-14559,800,200 Cars Ltd
Nottinghamshire County Council,1111/1001,Children and Young People,CYP,Transport Related,CCA,15/05/2023,02-14560,500,200 Cars Ltd
Nottinghamshire County Council,1111/1001,Children and Young People,CYP,Transport Related,CCA,15/05/2023,02-14561,630,200 Cars Ltd
Nottinghamshire County Council,1111/1001,Children and Young People,CYP,Transport Related,CCA,15/05/2023,02-14562,552.5,200 Cars Ltd
Nottinghamshire County Council,1111/1001,Children and Young People,CYP,Transport Related,CCA,15/05/2023,02-14563,1273.7,200 Cars Ltd
Nottinghamshire County Council,1111/1001,Children and Young People,CYP,Transport Related,CCA,15/05/2023,02-14565,1486.8,CB Arnold Acorn Travel
Nottinghamshire County Council,1111/1001,Children and Young People,CYP,Transport Related,CCA,15/05/2023,02-14567,"1,120.00",Acorn Contracts
Nottinghamshire County Council,1111/1001,Children and Young People,CYP,Transport Related,CCA,15/05/2023,02-14568,800,Acorn Contracts
Nottinghamshire County Council,1111/1001,Children and Young People,CYP,Transport Related,CCA,15/05/2023,02-14570,800,Acorn Contracts
Nottinghamshire County Council,1111/1001,Children and Young People,CYP,Transport Related,CCA,15/05/2023,02-14571,1309.1,Alpha Cars
Nottinghamshire County Council,1111/1001,Children and Young People,CYP,Transport Related,CCA,15/05/2023,02-14572,"1,414.20",Alpha Cars
Nottinghamshire County Council,1111/1001,Children and Young People,CYP,Transport Related,CCA,15/05/2023,02-14573,"1,732.00",Alpha Cars
Nottinghamshire County Council,1111/1001,Children and Young People,CYP,Transport Related,CCA,15/05/2023,02-14574,1007.8,Alpha Cars
Nottinghamshire County Council,1111/1001,Children and Young People,CYP,Transport Related,CCA,15/05/2023,02-14575,718.2,Alpha Cars
Nottinghamshire County Council,1111/1001,Children and Young People,CYP,Transport Related,CCA,15/05/2023,02-14576,827.94,Alpha Cars
Nottinghamshire County Council,1111/1001,Children and Young People,CYP,Transport Related,CCA,15/05/2023,02-14577,"1,083.60",Alpha Cars
Nottinghamshire County Council,1111/1001,Children and Young People,CYP,Transport Related,CCA,15/05/2023,02-14581,"1,080.00",Alpha Cars
Nottinghamshire County Council,1111/1001,Children and Young People,CYP,Transport Related,CCA,15/05/2023,02-14584,"1,572.00",Alpha Cars
Nottinghamshire County Council,1111/1001,Children and Young People,CYP,Transport Related,CCA,15/05/2023,02-14586,1053,Alpha Cars
Nottinghamshire County Council,1111/1001,Children and Young People,CYP,Transport Related,CCA,15/05/2023,02-14588,"1,400.00",Bridges Transport Ltd
Nottinghamshire County Council,1111/1001,Children and Young People,CYP,Transport Related,CCA,15/05/2023,02-14589,1672,Bridges Transport Ltd
Nottinghamshire County Council,1111/1001,Children and Young People,CYP,Transport Related,CCA,15/05/2023,02-14590,"1,788.80",Bridges Transport Ltd
Nottinghamshire County Council,1111/1001,Children and Young People,CYP,Transport Related,CCA,15/05/2023,02-14591,"2,318.00",Butler Brothers Ltd
Nottinghamshire County Council,1111/1001,Children and Young People,CYP,Transport Related,CCA,15/05/2023,02-14592,"11,776.10",Erewash Community Transport
Nottinghamshire County Council,1111/1001,Children and Young People,CYP,Transport Related,CCA,15/05/2023,02-14594,1548,Horizon Travel
Nottinghamshire County Council,1111/1001,Children and Young People,CYP,Transport Related,CCA,15/05/2023,02-14596,500,Ng11 Cars
Nottinghamshire County Council,1111/1001,Children and Young People,CYP,Transport Related,CCA,15/05/2023,02-14597,640,Ng11 Cars
Nottinghamshire County Council,1111/1001,Children and Young People,CYP,Transport Related,CCA,15/05/2023,02-14598,624,Ng11 Cars
Nottinghamshire County Council,1111/1001,Children and Young People,CYP,Transport Related,CCA,15/05/2023,02-14599,900,Ng11 Cars
Nottinghamshire County Council,1111/1001,Children and Young People,CYP,Transport Related,CCA,15/05/2023,02-14600,976.14,Ng11 Cars
Nottinghamshire County Council,1111/1001,Children and Young People,CYP,Transport Related,CCA,15/05/2023,02-14601,966.24,Ng11 Cars
Nottinghamshire County Council,1111/1001,Children and Young People,CYP,Transport Related,CCA,15/05/2023,02-14602,1800,Ng11 Cars
Nottinghamshire County Council,1111/1001,Children and Young People,CYP,Transport Related,CCA,15/05/2023,02-14603,"1,007.70",Elkingtons Park Garage
Nottinghamshire County Council,1111/1001,Children and Young People,CYP,Transport Related,CCA,15/05/2023,02-14604,5095.2,BN Gibson Ltd
Nottinghamshire County Council,1111/1001,Children and Young People,CYP,Transport Related,CCA,15/05/2023,02-14605,4556.64,BN Gibson Ltd
Nottinghamshire County Council,1111/1001,Children and Young People,CYP,Transport Related,CCA,15/05/2023,02-14606,4250.63,BN Gibson Ltd
Nottinghamshire County Council,1111/1001,Children and Young People,CYP,Transport Related,CCA,15/05/2023,02-14607,1782.45,Midfield Travel
Nottinghamshire County Council,1111/1001,Children and Young People,CYP,Transport Related,CCA,15/05/2023,02-14608,1791.09,Midfield Travel
Nottinghamshire County Council,1111/1001,Children and Young People,CYP,Transport Related,CCA,15/05/2023,02-14609,"1,546.00",AOT Coaches Nottingham LLP
Nottinghamshire County Council,1111/1001,Children and Young People,CYP,Transport Related,CCA,15/05/2023,02-14611,4782.1,AOT Coaches Nottingham LLP
Nottinghamshire County Council,1111/1001,Children and Young People,CYP,Transport Related,CCA,15/05/2023,02-14612,911,Bryans Taxis
Nottinghamshire County Council,1111/1001,Children and Young People,CYP,Transport Related,CCA,15/05/2023,02-14613,2907.1,Gem Mini Travel Ltd
Nottinghamshire County Council,1111/1001,Children and Young People,CYP,Transport Related,CCA,15/05/2023,02-14614,2606.5,Gem Mini Travel Ltd
Nottinghamshire County Council,1111/1001,Children and Young People,CYP,Transport Related,CCA,15/05/2023,02-14615,2437.8,Gem Mini Travel Ltd
Nottinghamshire County Council,1111/1001,Children and Young People,CYP,Transport Related,CCA,15/05/2023,02-14616,2873.5,Gem Mini Travel Ltd
Nottinghamshire County Council,1111/1001,Children and Young People,CYP,Transport Related,CCA,15/05/2023,02-14617,"2,807.30",Gem Mini Travel Ltd
Nottinghamshire County Council,1111/1001,Children and Young People,CYP,Transport Related,CCA,15/05/2023,02-14618,"1,987.50",Gem Mini Travel Ltd
Nottinghamshire County Council,1111/1001,Children and Young People,CYP,Transport Related,CCA,15/05/2023,02-14619,"2,243.80",Gem Mini Travel Ltd
Nottinghamshire County Council,1111/1001,Children and Young People,CYP,Transport Related,CCA,15/05/2023,02-14620,"1,724.20",Gem Mini Travel Ltd
Nottinghamshire County Council,1111/1001,Children and Young People,CYP,Transport Related,CCA,15/05/2023,02-14623,1895.7,JB Tours Watnall Ltd
Nottinghamshire County Council,1111/1001,Children and Young People,CYP,Transport Related,CCA,15/05/2023,02-14624,"1,863.10",JB Tours Watnall Ltd
Nottinghamshire County Council,1111/1001,Children and Young People,CYP,Transport Related,CCA,15/05/2023,02-14625,"3,697.20",Tiger European Uk Ltd
Nottinghamshire County Council,1111/1001,Children and Young People,CYP,Transport Related,CCA,15/05/2023,02-14626,4028.5,Tiger European Uk Ltd
Nottinghamshire County Council,1111/1001,Children and Young People,CYP,Transport Related,CCA,15/05/2023,02-14627,3992,Tiger European Uk Ltd
Nottinghamshire County Council,1111/1001,Children and Young People,CYP,Transport Related,CCA,15/05/2023,02-14628,3769,Tiger European Uk Ltd
Nottinghamshire County Council,1111/1001,Children and Young People,CYP,Transport Related,CCA,15/05/2023,02-14629,2912.3,Tiger European Uk Ltd
Nottinghamshire County Council,1111/1001,Children and Young People,CYP,Transport Related,CCA,15/05/2023,02-14630,"3,904.20",Tiger European Uk Ltd
Nottinghamshire County Council,1111/1001,Children and Young People,CYP,Transport Related,CCA,15/05/2023,02-14631,"2,408.56",Tiger European Uk Ltd
Nottinghamshire County Council,1111/1001,Children and Young People,CYP,Transport Related,CCA,15/05/2023,02-14632,"3,683.16",Tiger European Uk Ltd
Nottinghamshire County Council,1111/1001,Children and Young People,CYP,Transport Related,CCA,15/05/2023,02-14633,"5,129.46",Tiger European Uk Ltd
Nottinghamshire County Council,1111/1001,Children and Young People,CYP,Transport Related,CCA,15/05/2023,02-14634,"2,854.60",Tiger European Uk Ltd
Nottinghamshire County Council,1111/1001,Children and Young People,CYP,Transport Related,CCA,15/05/2023,02-14635,"2,899.26",Tiger European Uk Ltd
Nottinghamshire County Council,1111/1001,Children and Young People,CYP,Transport Related,CCA,15/05/2023,02-14636,"2,584.40",Tiger European Uk Ltd
Nottinghamshire County Council,1111/1001,Children and Young People,CYP,Transport Related,CCA,15/05/2023,02-14639,"2,925.00",Tiger European Uk Ltd
Nottinghamshire County Council,1111/1001,Children and Young People,CYP,Transport Related,CCA,15/05/2023,02-14640,"4,088.70",Tiger European Uk Ltd
Nottinghamshire County Council,1111/1001,Children and Young People,CYP,Transport Related,CCA,15/05/2023,02-14641,"6,760.00",Tiger European Uk Ltd
Nottinghamshire County Council,1111/1001,Children and Young People,CYP,Transport Related,CCA,15/05/2023,02-14642,"2,355.00",Aj Travel
Nottinghamshire County Council,1111/1001,Children and Young People,CYP,Transport Related,CCA,15/05/2023,02-14643,"2,587.00",Freeway Coaches Ltd
Nottinghamshire County Council,1111/1001,Children and Young People,CYP,Transport Related,CCA,15/05/2023,02-14644,"2,563.00",Freeway Coaches Ltd
Nottinghamshire County Council,1111/1001,Children and Young People,CYP,Transport Related,CCA,15/05/2023,02-14645,"1,289.10",Paul S Winson Coaches
Nottinghamshire County Council,1111/1001,Children and Young People,CYP,Transport Related,CCA,15/05/2023,02-14647,663.75,Bassetlaw Action Centre
Nottinghamshire County Council,1111/1001,Children and Young People,CYP,Transport Related,CCA,15/05/2023,02-14648,"1,944.60",Rio Cabs
Nottinghamshire County Council,1111/1001,Children and Young People,CYP,Transport Related,CCA,15/05/2023,02-14649,"1,527.60",Rio Cabs
Nottinghamshire County Council,1111/1001,Children and Young People,CYP,Transport Related,CCA,15/05/2023,02-14650,943.1,Rio Cabs
Nottinghamshire County Council,1111/1001,Children and Young People,CYP,Transport Related,CCA,15/05/2023,02-14652,"1,060.64",Rio Cabs
Nottinghamshire County Council,1111/1001,Children and Young People,CYP,Transport Related,CCA,15/05/2023,02-14657,"1,191.10",Wallis Coachways
Nottinghamshire County Council,1111/1001,Children and Young People,CYP,Transport Related,CCA,15/05/2023,02-14658,"1,289.10",Wallis Coachways
Nottinghamshire County Council,1111/1001,Children and Young People,CYP,Transport Related,CCA,15/05/2023,02-14659,"3,412.00",Isle Coaches
Nottinghamshire County Council,1111/1001,Children and Young People,CYP,Transport Related,CCA,15/05/2023,02-14660,"2,691.50",Isle Coaches
Nottinghamshire County Council,1111/1001,Children and Young People,CYP,Transport Related,CCA,15/05/2023,02-14664,"4,238.70",Ace Cars & Minibuses Ltd
Nottinghamshire County Council,1111/1001,Children and Young People,CYP,Transport Related,CCA,15/05/2023,02-14665,"4,929.76",Ace Cars & Minibuses Ltd
Nottinghamshire County Council,1111/1001,Children and Young People,CYP,Transport Related,CCA,15/05/2023,02-14666,"2,285.60",Ace Cars & Minibuses Ltd
Nottinghamshire County Council,1111/1001,Children and Young People,CYP,Transport Related,CCA,15/05/2023,02-14667,"1,865.40",Ace Cars & Minibuses Ltd
Nottinghamshire County Council,1111/1001,Children and Young People,CYP,Transport Related,CCA,15/05/2023,02-14668,"1,887.00",Ace Cars & Minibuses Ltd
Nottinghamshire County Council,1111/1001,Children and Young People,CYP,Transport Related,CCA,15/05/2023,02-14669,"1,585.90",Ace Cars & Minibuses Ltd
Nottinghamshire County Council,1111/1001,Children and Young People,CYP,Transport Related,CCA,15/05/2023,02-14670,"1,683.80",Ace Cars & Minibuses Ltd
Nottinghamshire County Council,1111/1001,Children and Young People,CYP,Transport Related,CCA,15/05/2023,02-14671,"1,886.10",L A Travel
Nottinghamshire County Council,1111/1001,Children and Young People,CYP,Transport Related,CCA,15/05/2023,02-14673,"1,590.00",Travel Liner
Nottinghamshire County Council,1111/1001,Children and Young People,CYP,Transport Related,CCA,15/05/2023,02-14674,"1,787.30",Hammonds Coaches Ltd
Nottinghamshire County Council,1111/1001,Children and Young People,CYP,Transport Related,CCA,15/05/2023,02-14675,"1,114.40",Hammonds Coaches Ltd
Nottinghamshire County Council,1111/1001,Children and Young People,CYP,Transport Related,CCA,15/05/2023,02-14676,"1,252.20",Hammonds Coaches Ltd
Nottinghamshire County Council,1111/1001,Children and Young People,CYP,Transport Related,CCA,15/05/2023,02-14677,"1,722.90",Hammonds Coaches Ltd
Nottinghamshire County Council,1111/1001,Children and Young People,CYP,Transport Related,CCA,15/05/2023,02-14678,"1,914.60",Hammonds Coaches Ltd
Nottinghamshire County Council,1111/1001,Children and Young People,CYP,Transport Related,CCA,15/05/2023,02-14679,883,Ideal Cars (Private Hire) Ltd
Nottinghamshire County Council,1111/1001,Children and Young People,CYP,Transport Related,CCA,15/05/2023,02-14680,"1,144.00",Ideal Cars (Private Hire) Ltd
Nottinghamshire County Council,1111/1001,Children and Young People,CYP,Transport Related,CCA,15/05/2023,02-14681,600,Ideal Cars (Private Hire) Ltd
Nottinghamshire County Council,1111/1001,Children and Young People,CYP,Transport Related,CCA,15/05/2023,02-14683,528,Ideal Cars (Private Hire) Ltd
Nottinghamshire County Council,1111/1001,Children and Young People,CYP,Transport Related,CCA,15/05/2023,02-14684,"1,480.00",A Travel
Nottinghamshire County Council,1111/1001,Children and Young People,CYP,Transport Related,CCA,15/05/2023,02-14685,590,Reliable Cars Ltd
Nottinghamshire County Council,1111/1001,Children and Young People,CYP,Transport Related,CCA,15/05/2023,02-14686,"1,135.00",Reliable Cars Ltd
Nottinghamshire County Council,1111/1001,Children and Young People,CYP,Transport Related,CCA,15/05/2023,02-14687,"2,254.80",Reliable Cars Ltd
Nottinghamshire County Council,1111/1001,Children and Young People,CYP,Transport Related,CCA,15/05/2023,02-14688,700,Gxpress Cars
Nottinghamshire County Council,1111/1001,Children and Young People,CYP,Transport Related,CCA,15/05/2023,02-14689,"1,100.00",Gxpress Cars
Nottinghamshire County Council,1111/1001,Children and Young People,CYP,Transport Related,CCA,15/05/2023,02-14690,"1,814.00",APC Travel
Nottinghamshire County Council,1111/1001,Children and Young People,CYP,Transport Related,CCA,15/05/2023,02-14692,"4,950.00",Vectare Ltd
Nottinghamshire County Council,1111/1001,Children and Young People,CYP,Transport Related,CCA,15/05/2023,02-14693,"3,600.00",Vectare Ltd
Nottinghamshire County Council,1111/1001,Children and Young People,CYP,Transport Related,CCA,15/05/2023,02-14694,"5,539.80",Vectare Ltd
Nottinghamshire County Council,1111/1001,Children and Young People,CYP,Transport Related,CCA,15/05/2023,02-14695,780,Carriage Solutions Ltd
Nottinghamshire County Council,1111/1001,Children and Young People,CYP,Transport Related,CCA,15/05/2023,02-14696,500,Florin Cocut T/A Stars Taxi
Nottinghamshire County Council,1111/1001,Children and Young People,CYP,Transport Related,CCA,15/05/2023,02-14697,"1,600.00",Home James Cars
Nottinghamshire County Council,1111/1001,Children and Young People,CYP,Transport Related,CCA,15/05/2023,02-14698,"2,000.00",Home James Cars
Nottinghamshire County Council,1111/1001,Children and Young People,CYP,Transport Related,CCA,15/05/2023,02-14699,"2,500.00",Home James Cars
Nottinghamshire County Council,1111/1001,Children and Young People,CYP,Transport Related,CCA,15/05/2023,02-14700,"1,980.00",Home James Cars
Nottinghamshire County Council,1111/1001,Children and Young People,CYP,Transport Related,CCA,15/05/2023,02-14701,782,A Place To Call Our Own Ltd
Nottinghamshire County Council,1111/1001,Children and Young People,CYP,Transport Related,CCA,15/05/2023,02-14734,"2,068.00",D n K Travel
Nottinghamshire County Council,1111/1001,Children and Young People,CYP,Transport Related,CCA,15/05/2023,02-14735,"1,200.00",Phoenix Private Hire Ltd
Nottinghamshire County Council,1111/1001,Children and Young People,CYP,Transport Related,CCA,15/05/2023,02-14736,"1,000.00",Phoenix Private Hire Ltd
Nottinghamshire County Council,1111/1001,Children and Young People,CYP,Transport Related,CCA,15/05/2023,02-14737,560,Phoenix Private Hire Ltd
Nottinghamshire County Council,1111/1001,Children and Young People,CYP,Transport Related,CCA,15/05/2023,02-14738,838,NCT Newark Community Taxis
Nottinghamshire County Council,1111/1001,Children and Young People,CYP,Transport Related,CCA,15/05/2023,02-14739,990,NCT Newark Community Taxis
Nottinghamshire County Council,1111/1001,Children and Young People,CYP,Transport Related,CCA,16/05/2023,02-15220,"1,975.80",All Wayz Travel
Nottinghamshire County Council,1111/1001,Children and Young People,CYP,Transport Related,CCA,16/05/2023,02-15221,570,D G Private Hire Ltd
Nottinghamshire County Council,1111/1001,Children and Young People,CYP,Transport Related,CCA,16/05/2023,02-15222,590,D G Private Hire Ltd
Nottinghamshire County Council,1111/1001,Children and Young People,CYP,Transport Related,CCA,16/05/2023,02-15223,600,D G Private Hire Ltd
Nottinghamshire County Council,1111/1001,Children and Young People,CYP,Transport Related,CCA,16/05/2023,02-15225,522,D G Private Hire Ltd
Nottinghamshire County Council,1111/1001,Children and Young People,CYP,Transport Related,CCA,16/05/2023,02-15226,640,D G Private Hire Ltd
Nottinghamshire County Council,1111/1001,Children and Young People,CYP,Transport Related,CCA,16/05/2023,02-15227,519.8,D G Private Hire Ltd
Nottinghamshire County Council,1111/1001,Children and Young People,CYP,Transport Related,CCA,16/05/2023,02-15229,500,D G Private Hire Ltd
Nottinghamshire County Council,1111/1001,Children and Young People,CYP,Transport Related,CCA,16/05/2023,02-15230,800,D G Private Hire Ltd
Nottinghamshire County Council,1111/1001,Children and Young People,CYP,Transport Related,CCA,16/05/2023,02-15232,"2,550.00",Tiger European Uk Ltd
Nottinghamshire County Council,1111/1001,Children and Young People,CYP,Transport Related,CCA,16/05/2023,02-15233,"1,614.00",Kettlewell Retford Ltd
Nottinghamshire County Council,1111/1001,Children and Young People,CYP,Transport Related,CCA,16/05/2023,02-15234,"1,029.10",Kettlewell Retford Ltd
Nottinghamshire County Council,1111/1001,Children and Young People,CYP,Transport Related,CCA,16/05/2023,02-15235,"1,289.10",Kettlewell Retford Ltd
Nottinghamshire County Council,1111/1001,Children and Young People,CYP,Transport Related,CCA,16/05/2023,02-15236,"1,115.10",Kettlewell Retford Ltd
Nottinghamshire County Council,1111/1001,Children and Young People,CYP,Transport Related,CCA,16/05/2023,02-15237,"5,772.70",Kettlewell Retford Ltd
Nottinghamshire County Council,1111/1001,Children and Young People,CYP,Transport Related,CCA,16/05/2023,02-15238,"1,920.00",Kettlewell Retford Ltd
Nottinghamshire County Council,1111/1001,Children and Young People,CYP,Transport Related,CCA,16/05/2023,02-15239,"1,776.50",Kettlewell Retford Ltd
Nottinghamshire County Council,1111/1001,Children and Young People,CYP,Transport Related,CCA,16/05/2023,02-15240,"3,760.50",Kettlewell Retford Ltd
Nottinghamshire County Council,1111/1001,Children and Young People,CYP,Transport Related,CCA,16/05/2023,02-15241,"4,700.00",Kettlewell Retford Ltd
Nottinghamshire County Council,1111/1001,Children and Young People,CYP,Transport Related,CCA,16/05/2023,02-15243,"1,483.10",Nottingham Coaches Ltd
Nottinghamshire County Council,1111/1001,Children and Young People,CYP,Transport Related,CCA,16/05/2023,02-15244,"1,494.90",Nottingham Coaches Ltd
Nottinghamshire County Council,1111/1001,Children and Young People,CYP,Transport Related,CCA,16/05/2023,02-15245,"5,154.40",Nottingham Coaches Ltd
Nottinghamshire County Council,1111/1001,Children and Young People,CYP,Transport Related,CCA,16/05/2023,02-15246,"1,999.60",Nottingham Coaches Ltd
Nottinghamshire County Council,1111/1001,Children and Young People,CYP,Transport Related,CCA,16/05/2023,02-15247,"1,681.20",Nottingham Coaches Ltd
Nottinghamshire County Council,1111/1001,Children and Young People,CYP,Transport Related,CCA,16/05/2023,02-15248,"1,369.90",Nottingham Coaches Ltd
Nottinghamshire County Council,1111/1001,Children and Young People,CYP,Transport Related,CCA,16/05/2023,02-15249,"1,979.40",Nottingham Coaches Ltd
Nottinghamshire County Council,1111/1001,Children and Young People,CYP,Transport Related,CCA,16/05/2023,02-15250,"1,275.00",Sean's Taxi Services
Nottinghamshire County Council,1111/1001,Children and Young People,CYP,Transport Related,CCA,16/05/2023,02-15252,"2,750.06",Millennium Travel (Mansfield) Ltd
Nottinghamshire County Council,1111/1001,Children and Young People,CYP,Transport Related,CCA,16/05/2023,02-15254,"2,260.90",Millennium Travel (Mansfield) Ltd
Nottinghamshire County Council,1111/1001,Children and Young People,CYP,Transport Related,CCA,16/05/2023,02-15255,"3,087.00",Millennium Travel (Mansfield) Ltd
Nottinghamshire County Council,1111/1001,Children and Young People,CYP,Transport Related,CCA,16/05/2023,02-15256,"1,915.84",Millennium Travel (Mansfield) Ltd
Nottinghamshire County Council,1111/1001,Children and Young People,CYP,Transport Related,CCA,16/05/2023,02-15257,"1,864.80",Millennium Travel (Mansfield) Ltd
Nottinghamshire County Council,1111/1001,Children and Young People,CYP,Transport Related,CCA,16/05/2023,02-15258,"4,789.40",Millennium Travel (Mansfield) Ltd
Nottinghamshire County Council,1111/1001,Children and Young People,CYP,Transport Related,CCA,16/05/2023,02-15259,"3,132.90",Vectare Ltd
Nottinghamshire County Council,1111/1001,Children and Young People,CYP,Transport Related,CCA,18/05/2023,02-15278,"4,398.77",Sharpes Of Nottingham
Nottinghamshire County Council,1111/1001,Children and Young People,CYP,Transport Related,CCA,18/05/2023,02-15279,"4,542.50",Sharpes Of Nottingham
Nottinghamshire County Council,1111/1001,Children and Young People,CYP,Transport Related,CCA,18/05/2023,02-15280,"1,857.85",Sharpes Of Nottingham
Nottinghamshire County Council,1111/1001,Children and Young People,CYP,Transport Related,CCA,18/05/2023,02-15281,"1,819.50",Sharpes Of Nottingham
Nottinghamshire County Council,1111/1001,Children and Young People,CYP,Transport Related,CCA,18/05/2023,02-15282,"2,129.80",Sharpes Of Nottingham
Nottinghamshire County Council,1111/1001,Children and Young People,CYP,Transport Related,CCA,18/05/2023,02-15283,"2,391.20",Sharpes Of Nottingham
Nottinghamshire County Council,1111/1001,Children and Young People,CYP,Transport Related,CCA,18/05/2023,02-15284,"2,268.50",Sharpes Of Nottingham
Nottinghamshire County Council,1111/1001,Children and Young People,CYP,Transport Related,CCA,18/05/2023,02-15285,"1,975.00",Sharpes Of Nottingham
Nottinghamshire County Council,1111/1001,Children and Young People,CYP,Transport Related,CCA,18/05/2023,02-15286,"1,593.00",Sharpes Of Nottingham
Nottinghamshire County Council,1111/1001,Children and Young People,CYP,Transport Related,CCA,18/05/2023,02-15287,747.12,Sharpes Of Nottingham
Nottinghamshire County Council,1111/1001,Children and Young People,CYP,Transport Related,CCA,18/05/2023,02-15288,"2,017.80",Johnson Bros Tours Ltd
Nottinghamshire County Council,1111/1001,Children and Young People,CYP,Transport Related,CCA,18/05/2023,02-15289,"3,352.60",Johnson Bros Tours Ltd
Nottinghamshire County Council,1111/1001,Children and Young People,CYP,Transport Related,CCA,18/05/2023,02-15290,"1,830.00",Arrow Specialised Transport Ltd
Nottinghamshire County Council,1111/1001,Children and Young People,CYP,Transport Related,CCA,18/05/2023,02-15291,"2,259.50",Arrow Specialised Transport Ltd
Nottinghamshire County Council,1111/1001,Children and Young People,CYP,Transport Related,CCA,18/05/2023,02-15292,"2,050.10",Arrow Specialised Transport Ltd
Nottinghamshire County Council,1111/1001,Children and Young People,CYP,Transport Related,CCA,18/05/2023,02-15293,"1,983.90",Arrow Specialised Transport Ltd
Nottinghamshire County Council,1111/1001,Children and Young People,CYP,Transport Related,CCA,18/05/2023,02-15294,"1,489.20",Arrow Specialised Transport Ltd
Nottinghamshire County Council,1111/1001,Children and Young People,CYP,Transport Related,CCA,18/05/2023,02-15295,"2,488.50",Arrow Specialised Transport Ltd
Nottinghamshire County Council,1111/1001,Children and Young People,CYP,Transport Related,CCA,18/05/2023,02-15296,"1,298.43",Arrow Specialised Transport Ltd
Nottinghamshire County Council,1111/1001,Children and Young People,CYP,Transport Related,CCA,18/05/2023,02-15297,"2,529.00",Arrow Specialised Transport Ltd
Nottinghamshire County Council,1111/1001,Children and Young People,CYP,Transport Related,CCA,18/05/2023,02-15298,"2,495.25",Arrow Specialised Transport Ltd
Nottinghamshire County Council,1111/1001,Children and Young People,CYP,Transport Related,CCA,18/05/2023,02-15299,"1,930.50",Arrow Specialised Transport Ltd
Nottinghamshire County Council,1111/1001,Children and Young People,CYP,Transport Related,CCA,18/05/2023,02-15300,"2,307.40",Arrow Specialised Transport Ltd
Nottinghamshire County Council,1111/1001,Children and Young People,CYP,Transport Related,CCA,18/05/2023,02-15301,"1,334.50",Arrow Specialised Transport Ltd
Nottinghamshire County Council,1111/1001,Children and Young People,CYP,Transport Related,CCA,18/05/2023,02-15302,"1,896.80",Arrow Specialised Transport Ltd
Nottinghamshire County Council,1111/1001,Children and Young People,CYP,Transport Related,CCA,18/05/2023,02-15303,"1,617.20",Arrow Specialised Transport Ltd
Nottinghamshire County Council,1111/1001,Children and Young People,CYP,Transport Related,CCA,18/05/2023,02-15304,"1,453.30",Arrow Specialised Transport Ltd
Nottinghamshire County Council,1111/1001,Children and Young People,CYP,Transport Related,CCA,18/05/2023,02-15305,"1,998.00",Arrow Specialised Transport Ltd
Nottinghamshire County Council,1111/1001,Children and Young People,CYP,Transport Related,CCA,18/05/2023,02-15306,"1,684.50",Arrow Specialised Transport Ltd
Nottinghamshire County Council,1111/1001,Children and Young People,CYP,Transport Related,CCA,18/05/2023,02-15307,"1,222.10",Arrow Specialised Transport Ltd
Nottinghamshire County Council,1111/1001,Children and Young People,CYP,Transport Related,CCA,18/05/2023,02-15308,"1,758.80",Arrow Specialised Transport Ltd
Nottinghamshire County Council,1111/1001,Children and Young People,CYP,Transport Related,CCA,18/05/2023,02-15309,"1,866.20",Arrow Specialised Transport Ltd
Nottinghamshire County Council,1111/1001,Children and Young People,CYP,Transport Related,CCA,18/05/2023,02-15310,"1,468.00",Arrow Specialised Transport Ltd
Nottinghamshire County Council,1111/1001,Children and Young People,CYP,Transport Related,CCA,18/05/2023,02-15312,790,Arrow Specialised Transport Ltd
Nottinghamshire County Council,1111/1001,Children and Young People,CYP,Transport Related,CCA,18/05/2023,02-15313,"1,232.20",Arrow Specialised Transport Ltd
Nottinghamshire County Council,1111/1001,Children and Young People,CYP,Transport Related,CCA,18/05/2023,02-15314,"1,931.40",Arrow Specialised Transport Ltd
Nottinghamshire County Council,1111/1001,Children and Young People,CYP,Transport Related,CCA,18/05/2023,02-15315,"1,796.20",Arrow Specialised Transport Ltd
Nottinghamshire County Council,1111/1001,Children and Young People,CYP,Transport Related,CCA,18/05/2023,02-15316,"1,266.30",Arrow Specialised Transport Ltd
Nottinghamshire County Council,1111/1001,Children and Young People,CYP,Transport Related,CCA,18/05/2023,02-15317,"1,787.20",Arrow Specialised Transport Ltd
Nottinghamshire County Council,1111/1001,Children and Young People,CYP,Transport Related,CCA,18/05/2023,02-15318,994.5,Arrow Specialised Transport Ltd
Nottinghamshire County Council,1111/1001,Children and Young People,CYP,Transport Related,CCA,18/05/2023,02-15319,"1,000.50",Arrow Specialised Transport Ltd
Nottinghamshire County Council,1111/1001,Children and Young People,CYP,Transport Related,CCA,18/05/2023,02-15320,"1,570.30",Arrow Specialised Transport Ltd
Nottinghamshire County Council,1111/1001,Children and Young People,CYP,Transport Related,CCA,18/05/2023,02-15321,"1,611.60",Arrow Specialised Transport Ltd
Nottinghamshire County Council,1111/1001,Children and Young People,CYP,Transport Related,CCA,18/05/2023,02-15322,"1,632.00",Arrow Specialised Transport Ltd
Nottinghamshire County Council,1111/1001,Children and Young People,CYP,Transport Related,CCA,18/05/2023,02-15323,"1,581.00",Arrow Specialised Transport Ltd
Nottinghamshire County Council,1111/1001,Children and Young People,CYP,Transport Related,CCA,18/05/2023,02-15324,"2,574.70",Arrow Specialised Transport Ltd
Nottinghamshire County Council,1111/1001,Children and Young People,CYP,Transport Related,CCA,18/05/2023,02-15325,"2,875.20",Arrow Specialised Transport Ltd
Nottinghamshire County Council,1111/1001,Children and Young People,CYP,Transport Related,CCA,18/05/2023,02-15326,"1,480.50",Arrow Specialised Transport Ltd
Nottinghamshire County Council,1111/1001,Children and Young People,CYP,Transport Related,CCA,18/05/2023,02-15327,"1,478.50",Arrow Specialised Transport Ltd
Nottinghamshire County Council,1111/1001,Children and Young People,CYP,Transport Related,CCA,18/05/2023,02-15328,"2,730.00",Arrow Specialised Transport Ltd
Nottinghamshire County Council,1111/1001,Children and Young People,CYP,Transport Related,CCA,18/05/2023,02-15329,"2,495.00",Arrow Specialised Transport Ltd
Nottinghamshire County Council,1111/1001,Children and Young People,CYP,Transport Related,CCA,18/05/2023,02-15330,"1,295.00",Arrow Specialised Transport Ltd
Nottinghamshire County Council,1111/1001,Children and Young People,CYP,Transport Related,CCA,18/05/2023,02-15331,"1,322.40",Arrow Specialised Transport Ltd
Nottinghamshire County Council,1111/1001,Children and Young People,CYP,Transport Related,CCA,18/05/2023,02-15332,961,Arrow Specialised Transport Ltd
Nottinghamshire County Council,1111/1001,Children and Young People,CYP,Transport Related,CCA,18/05/2023,02-15333,"1,400.30",Arrow Specialised Transport Ltd
Nottinghamshire County Council,1111/1001,Children and Young People,CYP,Transport Related,CCA,18/05/2023,02-15334,"1,897.20",Arrow Specialised Transport Ltd
Nottinghamshire County Council,1111/1001,Children and Young People,CYP,Transport Related,CCA,18/05/2023,02-15335,"1,582.70",Arrow Specialised Transport Ltd
Nottinghamshire County Council,1111/1001,Children and Young People,CYP,Transport Related,CCA,18/05/2023,02-15336,"2,002.30",Arrow Specialised Transport Ltd
Nottinghamshire County Council,1111/1001,Children and Young People,CYP,Transport Related,CCA,18/05/2023,02-15337,"2,648.20",Arrow Specialised Transport Ltd
Nottinghamshire County Council,1111/1001,Children and Young People,CYP,Transport Related,CCA,18/05/2023,02-15338,"3,210.75",Arrow Specialised Transport Ltd
Nottinghamshire County Council,1111/1001,Children and Young People,CYP,Transport Related,CCA,18/05/2023,02-15339,"3,684.60",Arrow Specialised Transport Ltd
Nottinghamshire County Council,1111/1001,Children and Young People,CYP,Transport Related,CCA,18/05/2023,02-15340,"1,152.09",Arrow Specialised Transport Ltd
Nottinghamshire County Council,1111/1001,Children and Young People,CYP,Transport Related,CCA,18/05/2023,02-15341,"2,605.50",Arrow Specialised Transport Ltd
Nottinghamshire County Council,1111/1001,Children and Young People,CYP,Transport Related,CCA,18/05/2023,02-15342,"2,273.60",Arrow Specialised Transport Ltd
Nottinghamshire County Council,1111/1001,Children and Young People,CYP,Transport Related,CCA,18/05/2023,02-15343,"1,854.00",Arrow Specialised Transport Ltd
Nottinghamshire County Council,1111/1001,Children and Young People,CYP,Transport Related,CCA,18/05/2023,02-15344,"1,372.00",Arrow Specialised Transport Ltd
Nottinghamshire County Council,1111/1001,Children and Young People,CYP,Transport Related,CCA,18/05/2023,02-15345,"1,532.00",Arrow Specialised Transport Ltd
Nottinghamshire County Council,1111/1001,Children and Young People,CYP,Transport Related,CCA,18/05/2023,02-15346,"1,860.00",Arrow Specialised Transport Ltd
Nottinghamshire County Council,1111/1001,Children and Young People,CYP,Transport Related,CCA,18/05/2023,02-15347,"1,916.00",Arrow Specialised Transport Ltd
Nottinghamshire County Council,1111/1001,Children and Young People,CYP,Transport Related,CCA,18/05/2023,02-15349,"2,573.50",Arrow Specialised Transport Ltd
Nottinghamshire County Council,1111/1001,Children and Young People,CYP,Transport Related,CCA,18/05/2023,02-15350,"1,777.90",Arrow Specialised Transport Ltd
Nottinghamshire County Council,1111/1001,Children and Young People,CYP,Transport Related,CCA,18/05/2023,02-15351,"1,833.00",Arrow Specialised Transport Ltd
Nottinghamshire County Council,1111/1001,Children and Young People,CYP,Transport Related,CCA,18/05/2023,02-15352,"1,243.89",Arrow Specialised Transport Ltd
Nottinghamshire County Council,1111/1001,Children and Young People,CYP,Transport Related,CCA,18/05/2023,02-15353,"2,881.50",Arrow Specialised Transport Ltd
Nottinghamshire County Council,1111/1001,Children and Young People,CYP,Transport Related,CCA,18/05/2023,02-15354,"3,275.00",Arrow Specialised Transport Ltd
Nottinghamshire County Council,1111/1001,Children and Young People,CYP,Transport Related,CCA,18/05/2023,02-15355,"1,583.50",Arrow Specialised Transport Ltd
Nottinghamshire County Council,1111/1001,Children and Young People,CYP,Transport Related,CCA,18/05/2023,02-15356,"1,280.80",Arrow Specialised Transport Ltd
Nottinghamshire County Council,1111/1001,Children and Young People,CYP,Transport Related,CCA,18/05/2023,02-15357,"1,810.00",Arrow Specialised Transport Ltd
Nottinghamshire County Council,1111/1001,Children and Young People,CYP,Transport Related,CCA,18/05/2023,02-15358,"2,609.50",Arrow Specialised Transport Ltd
Nottinghamshire County Council,1111/1001,Children and Young People,CYP,Transport Related,CCA,18/05/2023,02-15359,"1,621.30",Arrow Specialised Transport Ltd
Nottinghamshire County Council,1111/1001,Children and Young People,CYP,Transport Related,CCA,18/05/2023,02-15360,"1,739.10",Arrow Specialised Transport Ltd
Nottinghamshire County Council,1111/1001,Children and Young People,CYP,Transport Related,CCA,18/05/2023,02-15361,"1,578.50",Arrow Specialised Transport Ltd
Nottinghamshire County Council,1111/1001,Children and Young People,CYP,Transport Related,CCA,18/05/2023,02-15362,"1,927.80",Arrow Specialised Transport Ltd
Nottinghamshire County Council,1111/1001,Children and Young People,CYP,Transport Related,CCA,18/05/2023,02-15363,"2,038.50",Arrow Specialised Transport Ltd
Nottinghamshire County Council,1111/1001,Children and Young People,CYP,Transport Related,CCA,18/05/2023,02-15364,"1,855.40",Arrow Specialised Transport Ltd
Nottinghamshire County Council,1111/1001,Children and Young People,CYP,Transport Related,CCA,18/05/2023,02-15365,"3,312.50",Arrow Specialised Transport Ltd
Nottinghamshire County Council,1111/1001,Children and Young People,CYP,Transport Related,CCA,18/05/2023,02-15366,"3,028.82",Marshalls Of Sutton On Trent Ltd
Nottinghamshire County Council,1111/1001,Children and Young People,CYP,Transport Related,CCA,18/05/2023,02-15367,"2,920.50",Freeway Coaches Ltd
Nottinghamshire County Council,1111/1001,Children and Young People,CYP,Transport Related,CCA,18/05/2023,02-15368,"5,422.57",Freeway Coaches Ltd
Nottinghamshire County Council,1111/1001,Children and Young People,CYP,Transport Related,CCA,18/05/2023,02-15369,"2,601.90",Freeway Coaches Ltd
Nottinghamshire County Council,1111/1001,Children and Young People,CYP,Transport Related,CCA,18/05/2023,02-15370,"2,404.80",Freeway Coaches Ltd
Nottinghamshire County Council,1111/1001,Children and Young People,CYP,Transport Related,CCA,18/05/2023,02-15371,"1,191.56",Freeway Coaches Ltd
Nottinghamshire County Council,1111/1001,Children and Young People,CYP,Transport Related,CCA,18/05/2023,02-15372,"1,137.40",Freeway Coaches Ltd
Nottinghamshire County Council,1111/1001,Children and Young People,CYP,Transport Related,CCA,18/05/2023,02-15373,"3,238.88",Kettlewell Retford Ltd
Nottinghamshire County Council,1111/1001,Children and Young People,CYP,Transport Related,CCA,18/05/2023,02-15374,"3,920.00",Hammonds Coaches Ltd
Nottinghamshire County Council,1111/1001,Children and Young People,CYP,Transport Related,CCA,18/05/2023,02-15375,700,Hammonds Coaches Ltd
Nottinghamshire County Council,1111/1001,Children and Young People,CYP,Transport Related,CCA,18/05/2023,02-15376,"1,280.00",Hammonds Coaches Ltd
Nottinghamshire County Council,1111/1001,Children and Young People,CYP,Transport Related,CCA,18/05/2023,02-15393,"1,414.40",Taxicover Uk Ltd
Nottinghamshire County Council,1111/1001,Children and Young People,CYP,Transport Related,CCA,18/05/2023,02-15394,"1,548.00",Taxicover Uk Ltd
Nottinghamshire County Council,1111/1001,Children and Young People,CYP,Transport Related,CCA,18/05/2023,02-15395,"1,548.00",Taxicover Uk Ltd
Nottinghamshire County Council,1111/1001,Children and Young People,CYP,Transport Related,CCA,18/05/2023,02-15396,"1,680.00",Taxicover Uk Ltd
Nottinghamshire County Council,1111/1001,Children and Young People,CYP,Transport Related,CCA,18/05/2023,02-15397,901.7,Fozcabs Newark Taxis
Nottinghamshire County Council,1111/1001,Children and Young People,CYP,Transport Related,CCA,18/05/2023,02-15398,"1,400.28",Fozcabs Newark Taxis
Nottinghamshire County Council,1111/1001,Children and Young People,CYP,Transport Related,CCA,18/05/2023,02-15399,"1,527.57",Fozcabs Newark Taxis
Nottinghamshire County Council,1111/1001,Children and Young People,CYP,Transport Related,CCA,18/05/2023,02-15400,742.6,Fozcabs Newark Taxis
Nottinghamshire County Council,1111/1001,Children and Young People,CYP,Transport Related,CCA,18/05/2023,02-15401,"1,384.38",Fozcabs Newark Taxis
Nottinghamshire County Council,1111/1001,Children and Young People,CYP,Transport Related,CCA,18/05/2023,02-15402,"1,125.00",Fozcabs Newark Taxis
Nottinghamshire County Council,1111/1001,Children and Young People,CYP,Transport Related,CCA,18/05/2023,02-15405,"1,000.00",Fozcabs Newark Taxis
Nottinghamshire County Council,1111/1001,Children and Young People,CYP,Transport Related,CCA,18/05/2023,02-15406,"1,479.78",Shelleys Taxis Ltd
Nottinghamshire County Council,1111/1001,Children and Young People,CYP,Transport Related,CCA,18/05/2023,02-15407,"1,273.00",Shelleys Taxis Ltd
Nottinghamshire County Council,1111/1001,Children and Young People,CYP,Transport Related,CCA,18/05/2023,02-15408,916.56,Shelleys Taxis Ltd
Nottinghamshire County Council,1111/1001,Children and Young People,CYP,Transport Related,CCA,18/05/2023,02-15409,"1,039.60",Shelleys Taxis Ltd
Nottinghamshire County Council,1111/1001,Children and Young People,CYP,Transport Related,CCA,18/05/2023,02-15410,"2,160.00",Vallances Coaches
Nottinghamshire County Council,1111/1001,Children and Young People,CYP,Transport Related,CCA,18/05/2023,02-15411,"2,065.50",Vallances Coaches
Nottinghamshire County Council,1111/1001,Children and Young People,CYP,Transport Related,CCA,18/05/2023,02-15412,"1,871.28",Vallances Coaches
Nottinghamshire County Council,1111/1001,Children and Young People,CYP,Transport Related,CCA,18/05/2023,02-15413,"2,386.80",Vallances Coaches
Nottinghamshire County Council,1111/1001,Children and Young People,CYP,Transport Related,CCA,18/05/2023,02-15414,"2,280.70",Vallances Coaches
Nottinghamshire County Council,1111/1001,Children and Young People,CYP,Transport Related,CCA,18/05/2023,02-15415,"1,162.21",Skills Motor Coaches Ltd
Nottinghamshire County Council,1111/1001,Children and Young People,CYP,Transport Related,CCA,18/05/2023,02-15416,"1,476.20",Skills Motor Coaches Ltd
Nottinghamshire County Council,1111/1001,Children and Young People,CYP,Transport Related,CCA,18/05/2023,02-15417,"1,688.60",Skills Motor Coaches Ltd
Nottinghamshire County Council,1111/1001,Children and Young People,CYP,Transport Related,CCA,18/05/2023,02-15418,"1,926.70",Skills Motor Coaches Ltd
Nottinghamshire County Council,1111/1001,Children and Young People,CYP,Transport Related,CCA,18/05/2023,02-15419,"1,920.00",Skills Motor Coaches Ltd
Nottinghamshire County Council,1111/1001,Children and Young People,CYP,Transport Related,CCA,18/05/2023,02-15420,"1,920.00",Skills Motor Coaches Ltd
Nottinghamshire County Council,1111/1001,Children and Young People,CYP,Transport Related,CCA,18/05/2023,02-15421,"1,561.10",Skills Motor Coaches Ltd
Nottinghamshire County Council,1111/1001,Children and Young People,CYP,Transport Related,CCA,18/05/2023,02-15422,"1,314.00",Skills Motor Coaches Ltd
Nottinghamshire County Council,1111/1001,Children and Young People,CYP,Transport Related,CCA,18/05/2023,02-15423,"1,314.45",Skills Motor Coaches Ltd
Nottinghamshire County Council,1111/1001,Children and Young People,CYP,Transport Related,CCA,18/05/2023,02-15424,"2,224.00",AOT Coaches Nottingham LLP
Nottinghamshire County Council,1111/1001,Children and Young People,CYP,Transport Related,CCA,18/05/2023,02-15425,"5,246.30",Wilfreda Beehive
Nottinghamshire County Council,1111/1001,Children and Young People,CYP,Transport Related,CCA,18/05/2023,02-15426,"1,330.00",Wilfreda Beehive
Nottinghamshire County Council,1111/1001,Children and Young People,CYP,Transport Related,CCA,18/05/2023,02-15427,"1,722.40",Unity Coaches Ltd
Nottinghamshire County Council,1111/1001,Children and Young People,CYP,Transport Related,CCA,18/05/2023,02-15429,"1,581.80",Nottingham Specialist Transport Ltd
Nottinghamshire County Council,1111/1001,Children and Young People,CYP,Transport Related,CCA,18/05/2023,02-15430,"1,687.90",Nottingham Specialist Transport Ltd
Nottinghamshire County Council,1111/1001,Children and Young People,CYP,Transport Related,CCA,18/05/2023,02-15431,"1,904.10",Nottingham Specialist Transport Ltd
Nottinghamshire County Council,1111/1001,Children and Young People,CYP,Transport Related,CCA,18/05/2023,02-15432,"1,820.50",Nottingham Specialist Transport Ltd
Nottinghamshire County Council,1111/1001,Children and Young People,CYP,Transport Related,CCA,18/05/2023,02-15433,"1,895.00",Nottingham Specialist Transport Ltd
Nottinghamshire County Council,1111/1001,Children and Young People,CYP,Transport Related,CCA,18/05/2023,02-15434,"1,795.00",Nottingham Specialist Transport Ltd
Nottinghamshire County Council,1111/1001,Children and Young People,CYP,Transport Related,CCA,18/05/2023,02-15435,"1,995.00",Nottingham Specialist Transport Ltd
Nottinghamshire County Council,1111/1001,Children and Young People,CYP,Transport Related,CCA,18/05/2023,02-15436,"1,595.00",Nottingham Specialist Transport Ltd
Nottinghamshire County Council,1111/1001,Children and Young People,CYP,Transport Related,CCA,18/05/2023,02-15437,"2,269.30",Nottingham Specialist Transport Ltd
Nottinghamshire County Council,1111/1001,Children and Young People,CYP,Transport Related,CCA,18/05/2023,02-15438,"1,900.10",Nottingham Specialist Transport Ltd
Nottinghamshire County Council,1111/1001,Children and Young People,CYP,Transport Related,CCA,18/05/2023,02-15439,"4,919.50",Nottingham Specialist Transport Ltd
Nottinghamshire County Council,1111/1001,Children and Young People,CYP,Transport Related,CCA,18/05/2023,02-15440,"2,095.00",Nottingham Specialist Transport Ltd
Nottinghamshire County Council,1111/1001,Children and Young People,CYP,Transport Related,CCA,18/05/2023,02-15441,"1,545.00",Nottingham Specialist Transport Ltd
Nottinghamshire County Council,1111/1001,Children and Young People,CYP,Transport Related,CCA,18/05/2023,02-15442,"3,055.10",Nottingham Specialist Transport Ltd
Nottinghamshire County Council,1111/1001,Children and Young People,CYP,Transport Related,CCA,18/05/2023,02-15443,"1,595.46",Nottingham Specialist Transport Ltd
Nottinghamshire County Council,1111/1001,Children and Young People,CYP,Transport Related,CCA,18/05/2023,02-15444,"1,595.46",Nottingham Specialist Transport Ltd
Nottinghamshire County Council,1111/1001,Children and Young People,CYP,Transport Related,CCA,18/05/2023,02-15445,"1,550.02",Nottingham Specialist Transport Ltd
Nottinghamshire County Council,1111/1001,Children and Young People,CYP,Transport Related,CCA,18/05/2023,02-15446,"2,040.58",Nottingham Specialist Transport Ltd
Nottinghamshire County Council,1111/1001,Children and Young People,CYP,Transport Related,CCA,18/05/2023,02-15447,"1,795.00",Nottingham Specialist Transport Ltd
Nottinghamshire County Council,1111/1001,Children and Young People,CYP,Transport Related,CCA,18/05/2023,02-15448,"2,359.00",Nottingham Specialist Transport Ltd
Nottinghamshire County Council,1111/1001,Children and Young People,CYP,Transport Related,CCA,18/05/2023,02-15449,"1,516.00",Nottingham Specialist Transport Ltd
Nottinghamshire County Council,1111/1001,Children and Young People,CYP,Transport Related,CCA,18/05/2023,02-15450,"1,780.90",Nottingham Specialist Transport Ltd
Nottinghamshire County Council,1111/1001,Children and Young People,CYP,Transport Related,CCA,18/05/2023,02-15451,"2,095.00",Nottingham Specialist Transport Ltd
Nottinghamshire County Council,1111/1001,Children and Young People,CYP,Transport Related,CCA,18/05/2023,02-15452,"1,485.00",W Hollingsworth T/A Target Taxis
Nottinghamshire County Council,1111/1001,Children and Young People,CYP,Transport Related,CCA,18/05/2023,02-15454,495,W Hollingsworth T/A Target Taxis
Nottinghamshire County Council,1111/1001,Children and Young People,CYP,Transport Related,CCA,18/05/2023,02-15457,"1,208.00",W Hollingsworth T/A Target Taxis
Nottinghamshire County Council,1111/1001,Children and Young People,CYP,Transport Related,CCA,18/05/2023,02-15459,"1,272.00",JK Transport Ltd
Nottinghamshire County Council,1111/1001,Children and Young People,CYP,Transport Related,CCA,18/05/2023,02-15460,"1,590.00",JK Transport Ltd
Nottinghamshire County Council,1111/1001,Children and Young People,CYP,Transport Related,CCA,18/05/2023,02-15463,"2,288.20",JK Transport Ltd
Nottinghamshire County Council,1111/1001,Children and Young People,CYP,Transport Related,CCA,18/05/2023,02-15464,"2,190.00",JK Transport Ltd
Nottinghamshire County Council,1111/1001,Children and Young People,CYP,Transport Related,CCA,18/05/2023,02-15465,"1,600.00",JK Transport Ltd
Nottinghamshire County Council,1111/1001,Children and Young People,CYP,Transport Related,CCA,18/05/2023,02-15466,"2,016.00",JK Transport Ltd
Nottinghamshire County Council,1111/1001,Children and Young People,CYP,Transport Related,CCA,18/05/2023,02-15467,657,JK Transport Ltd
Nottinghamshire County Council,1111/1001,Children and Young People,CYP,Transport Related,CCA,18/05/2023,02-15468,828,JK Transport Ltd
Nottinghamshire County Council,1111/1001,Children and Young People,CYP,Transport Related,CCA,18/05/2023,02-15469,"2,323.20",JK Transport Ltd
Nottinghamshire County Council,1111/1001,Children and Young People,CYP,Transport Related,CCA,18/05/2023,02-15470,"1,794.00",JK Transport Ltd
Nottinghamshire County Council,1111/1001,Children and Young People,CYP,Transport Related,CCA,18/05/2023,02-15471,"1,570.00",JK Transport Ltd
Nottinghamshire County Council,1111/1001,Children and Young People,CYP,Transport Related,CCA,18/05/2023,02-15472,"1,680.00",JK Transport Ltd
Nottinghamshire County Council,1111/1001,Children and Young People,CYP,Transport Related,CCA,18/05/2023,02-15473,564,JK Transport Ltd
Nottinghamshire County Council,1111/1001,Children and Young People,CYP,Transport Related,CCA,18/05/2023,02-15474,"1,135.00",JK Transport Ltd
Nottinghamshire County Council,1111/1001,Children and Young People,CYP,Transport Related,CCA,18/05/2023,02-15476,"1,590.00",JK Transport Ltd
Nottinghamshire County Council,1111/1001,Children and Young People,CYP,Transport Related,CCA,18/05/2023,02-15477,"1,672.00",JK Transport Ltd
Nottinghamshire County Council,1111/1001,Children and Young People,CYP,Transport Related,CCA,18/05/2023,02-15478,"1,440.00",JK Transport Ltd
Nottinghamshire County Council,1111/1001,Children and Young People,CYP,Transport Related,CCA,18/05/2023,02-15479,"1,700.00",JK Transport Ltd
Nottinghamshire County Council,1111/1001,Children and Young People,CYP,Transport Related,CCA,18/05/2023,02-15480,"1,141.00",JK Transport Ltd
Nottinghamshire County Council,1111/1001,Children and Young People,CYP,Transport Related,CCA,18/05/2023,02-15481,620,JK Transport Ltd
Nottinghamshire County Council,1111/1001,Children and Young People,CYP,Transport Related,CCA,18/05/2023,02-15482,801,JK Transport Ltd
Nottinghamshire County Council,1111/1001,Children and Young People,CYP,Transport Related,CCA,18/05/2023,02-15483,654,JK Transport Ltd
Nottinghamshire County Council,1111/1001,Children and Young People,CYP,Transport Related,CCA,18/05/2023,02-15484,740,JK Transport Ltd
Nottinghamshire County Council,1111/1001,Children and Young People,CYP,Transport Related,CCA,18/05/2023,02-15485,"1,250.00",JK Transport Ltd
Nottinghamshire County Council,1111/1001,Children and Young People,CYP,Transport Related,CCA,18/05/2023,02-15486,745,JK Transport Ltd
Nottinghamshire County Council,1111/1001,Children and Young People,CYP,Transport Related,CCA,18/05/2023,02-15488,695,JK Transport Ltd
Nottinghamshire County Council,1111/1001,Children and Young People,CYP,Transport Related,CCA,18/05/2023,02-15489,790,JK Transport Ltd
Nottinghamshire County Council,1111/1001,Children and Young People,CYP,Transport Related,CCA,18/05/2023,02-15490,"1,100.00",JK Transport Ltd
Nottinghamshire County Council,1111/1001,Children and Young People,CYP,Transport Related,CCA,19/05/2023,02-15652,"2,295.00",Vallances Coaches
Nottinghamshire County Council,1111/1001,Children and Young People,CYP,Transport Related,CCA,19/05/2023,02-15653,"1,516.00",Reliable Cars Ltd
Nottinghamshire County Council,1111/1001,Children and Young People,CYP,Transport Related,CCA,19/05/2023,02-15658,"2,715.00",Rushcliffe Travel Ltd
Nottinghamshire County Council,1111/1001,Children and Young People,CYP,Transport Related,CCA,19/05/2023,02-15659,"1,995.00",Rushcliffe Travel Ltd
Nottinghamshire County Council,1111/1001,Children and Young People,CYP,Transport Related,CCA,19/05/2023,02-15660,"5,178.50",Rushcliffe Travel Ltd
Nottinghamshire County Council,1111/1001,Children and Young People,CYP,Transport Related,CCA,19/05/2023,02-15661,"2,600.00",Rushcliffe Travel Ltd
Nottinghamshire County Council,1111/1001,Children and Young People,CYP,Transport Related,CCA,19/05/2023,02-15662,"2,600.00",Rushcliffe Travel Ltd
Nottinghamshire County Council,1111/1001,Children and Young People,CYP,Transport Related,CCA,19/05/2023,02-15663,"1,395.00",Rushcliffe Travel Ltd
Nottinghamshire County Council,1111/1001,Children and Young People,CYP,Transport Related,CCA,19/05/2023,02-15664,"1,798.10",Rushcliffe Travel Ltd
Nottinghamshire County Council,1111/1001,Children and Young People,CYP,Transport Related,CCA,19/05/2023,02-15666,"3,250.00",Rushcliffe Travel Ltd
Nottinghamshire County Council,1111/1001,Children and Young People,CYP,Transport Related,CCA,19/05/2023,02-15667,"2,796.00",Rushcliffe Travel Ltd
Nottinghamshire County Council,1111/1001,Children and Young People,CYP,Transport Related,CCA,19/05/2023,02-15668,"2,010.20",Rushcliffe Travel Ltd
Nottinghamshire County Council,1111/1001,Children and Young People,CYP,Transport Related,CCA,19/05/2023,02-15669,"1,595.00",Rushcliffe Travel Ltd
Nottinghamshire County Council,1111/1001,Children and Young People,CYP,Transport Related,CCA,19/05/2023,02-15670,"1,995.00",Rushcliffe Travel Ltd
Nottinghamshire County Council,1111/1001,Children and Young People,CYP,Transport Related,CCA,19/05/2023,02-15671,"2,995.00",Rushcliffe Travel Ltd
Nottinghamshire County Council,1111/1001,Children and Young People,CYP,Transport Related,CCA,19/05/2023,02-15672,"2,233.00",Rushcliffe Travel Ltd
Nottinghamshire County Council,1111/1001,Children and Young People,CYP,Transport Related,CCA,19/05/2023,02-15673,957,Rushcliffe Travel Ltd
Nottinghamshire County Council,1111/1001,Children and Young People,CYP,Transport Related,CCA,19/05/2023,02-15674,"1,326.00",Rushcliffe Travel Ltd
Nottinghamshire County Council,1111/1001,Children and Young People,CYP,Transport Related,CCA,19/05/2023,02-15675,"1,095.00",Rushcliffe Travel Ltd
Nottinghamshire County Council,1111/1001,Children and Young People,CYP,Transport Related,CCA,19/05/2023,02-15676,"2,495.00",Rushcliffe Travel Ltd
Nottinghamshire County Council,1111/1001,Children and Young People,CYP,Transport Related,CCA,19/05/2023,02-15677,"1,495.00",Rushcliffe Travel Ltd
Nottinghamshire County Council,1111/1001,Children and Young People,CYP,Transport Related,CCA,19/05/2023,02-15678,795,Rushcliffe Travel Ltd
Nottinghamshire County Council,1111/1001,Children and Young People,CYP,Transport Related,CCA,19/05/2023,02-15679,"1,538.20",Rushcliffe Travel Ltd
Nottinghamshire County Council,1111/1001,Children and Young People,CYP,Transport Related,CCA,19/05/2023,02-15680,"1,695.00",Rushcliffe Travel Ltd
Nottinghamshire County Council,1111/1001,Children and Young People,CYP,Transport Related,CCA,19/05/2023,02-15681,"1,795.00",Rushcliffe Travel Ltd
Nottinghamshire County Council,1111/1001,Children and Young People,CYP,Transport Related,CCA,19/05/2023,02-15682,"1,795.00",Rushcliffe Travel Ltd
Nottinghamshire County Council,1111/1001,Children and Young People,CYP,Transport Related,CCA,19/05/2023,02-15683,"1,538.20",Rushcliffe Travel Ltd
Nottinghamshire County Council,1111/1001,Children and Young People,CYP,Transport Related,CCA,19/05/2023,02-15684,"1,995.00",Rushcliffe Travel Ltd
Nottinghamshire County Council,1111/1001,Children and Young People,CYP,Transport Related,CCA,19/05/2023,02-15685,"1,312.30",CT4N Ltd
Nottinghamshire County Council,1111/1001,Children and Young People,CYP,Transport Related,CCA,19/05/2023,02-15686,"1,312.30",CT4N Ltd
Nottinghamshire County Council,1111/1001,Children and Young People,CYP,Transport Related,CCA,19/05/2023,02-15687,"1,029.10",CT4N Ltd
Nottinghamshire County Council,1111/1001,Children and Young People,CYP,Transport Related,CCA,19/05/2023,02-15688,"1,823.80",CT4N Ltd
Nottinghamshire County Council,1111/1001,Children and Young People,CYP,Transport Related,CCA,19/05/2023,02-15689,"1,453.80",A1 Private Hire Ltd
Nottinghamshire County Council,1111/1001,Children and Young People,CYP,Transport Related,CCA,19/05/2023,02-15690,"1,080.00",A1 Private Hire Ltd
Nottinghamshire County Council,1111/1001,Children and Young People,CYP,Transport Related,CCA,19/05/2023,02-15691,997.2,A1 Private Hire Ltd
Nottinghamshire County Council,1111/1001,Children and Young People,CYP,Transport Related,CCA,19/05/2023,02-15692,"1,790.00",A1 Private Hire Ltd
Nottinghamshire County Council,1111/1001,Children and Young People,CYP,Transport Related,CCA,19/05/2023,02-15693,"1,240.00",A1 Private Hire Ltd
Nottinghamshire County Council,1111/1001,Children and Young People,CYP,Transport Related,CCA,19/05/2023,02-15694,972,A1 Private Hire Ltd
Nottinghamshire County Council,1111/1001,Children and Young People,CYP,Transport Related,CCA,19/05/2023,02-15695,900,A1 Private Hire Ltd
Nottinghamshire County Council,1111/1001,Children and Young People,CYP,Transport Related,CCA,19/05/2023,02-15696,997.2,A1 Private Hire Ltd
Nottinghamshire County Council,1111/1001,Children and Young People,CYP,Transport Related,CCA,19/05/2023,02-15697,"1,180.00",A1 Private Hire Ltd
Nottinghamshire County Council,1111/1001,Children and Young People,CYP,Transport Related,CCA,19/05/2023,02-15698,"1,240.00",A1 Private Hire Ltd
Nottinghamshire County Council,1111/1001,Children and Young People,CYP,Transport Related,CCA,19/05/2023,02-15699,792,A1 Private Hire Ltd
Nottinghamshire County Council,1111/1001,Children and Young People,CYP,Transport Related,CCA,19/05/2023,02-15700,"1,240.00",A1 Private Hire Ltd
Nottinghamshire County Council,1111/1001,Children and Young People,CYP,Transport Related,CCA,19/05/2023,02-15701,"1,233.00",A1 Private Hire Ltd
Nottinghamshire County Council,1111/1001,Children and Young People,CYP,Transport Related,CCA,19/05/2023,02-15702,"1,640.00",A1 Private Hire Ltd
Nottinghamshire County Council,1111/1001,Children and Young People,CYP,Transport Related,CCA,19/05/2023,02-15703,"1,040.00",A1 Private Hire Ltd
Nottinghamshire County Council,1111/1001,Children and Young People,CYP,Transport Related,CCA,19/05/2023,02-15704,"1,680.00",A1 Private Hire Ltd
Nottinghamshire County Council,1111/1001,Children and Young People,CYP,Transport Related,CCA,19/05/2023,02-15705,"1,031.13",A1 Private Hire Ltd
Nottinghamshire County Council,1111/1001,Children and Young People,CYP,Transport Related,CCA,19/05/2023,02-15707,"1,040.00",A1 Private Hire Ltd
Nottinghamshire County Council,1111/1001,Children and Young People,CYP,Transport Related,CCA,19/05/2023,02-15709,"5,272.00",JK Transport Ltd
Nottinghamshire County Council,1111/1001,Children and Young People,CYP,Transport Related,CCA,19/05/2023,02-15710,780,JK Transport Ltd
Nottinghamshire County Council,1111/1001,Children and Young People,CYP,Transport Related,CCA,19/05/2023,02-15711,"1,702.00",JK Transport Ltd
Nottinghamshire County Council,1111/1001,Children and Young People,CYP,Transport Related,CCA,22/05/2023,02-16131,655.2,F4Control Ltd (t/a First4care)
Nottinghamshire County Council,1111/1001,Children and Young People,CYP,Transport Related,CCA,22/05/2023,02-16132,663,F4Control Ltd (t/a First4care)
Nottinghamshire County Council,1111/1001,Children and Young People,CYP,Transport Related,CCA,22/05/2023,02-16134,"1,627.30",F4Control Ltd (t/a First4care)
Nottinghamshire County Council,1111/1001,Children and Young People,CYP,Transport Related,CCA,22/05/2023,02-16135,"1,610.00",F4Control Ltd (t/a First4care)
Nottinghamshire County Council,1111/1001,Children and Young People,CYP,Transport Related,CCA,22/05/2023,02-16136,"1,690.00",F4Control Ltd (t/a First4care)
Nottinghamshire County Council,1111/1001,Children and Young People,CYP,Transport Related,CCA,22/05/2023,02-16137,"2,250.00",F4Control Ltd (t/a First4care)
Nottinghamshire County Council,1111/1001,Children and Young People,CYP,Transport Related,CCA,22/05/2023,02-16138,"1,870.00",F4Control Ltd (t/a First4care)
Nottinghamshire County Council,1111/1001,Children and Young People,CYP,Transport Related,CCA,22/05/2023,02-16139,"1,287.00",F4Control Ltd (t/a First4care)
Nottinghamshire County Council,1111/1001,Children and Young People,CYP,Transport Related,CCA,22/05/2023,02-16140,"1,588.40",F4Control Ltd (t/a First4care)
Nottinghamshire County Council,1111/1001,Children and Young People,CYP,Transport Related,CCA,22/05/2023,02-16141,"1,401.40",F4Control Ltd (t/a First4care)
Nottinghamshire County Council,1111/1001,Children and Young People,CYP,Transport Related,CCA,22/05/2023,02-16142,"1,751.60",F4Control Ltd (t/a First4care)
Nottinghamshire County Council,1111/1001,Children and Young People,CYP,Transport Related,CCA,22/05/2023,02-16143,"1,680.00",F4Control Ltd (t/a First4care)
Nottinghamshire County Council,1111/1001,Children and Young People,CYP,Transport Related,CCA,22/05/2023,02-16144,"1,598.70",F4Control Ltd (t/a First4care)
Nottinghamshire County Council,1111/1001,Children and Young People,CYP,Transport Related,CCA,22/05/2023,02-16145,"1,307.20",F4Control Ltd (t/a First4care)
Nottinghamshire County Council,1111/1001,Children and Young People,CYP,Transport Related,CCA,22/05/2023,02-16146,"1,513.80",F4Control Ltd (t/a First4care)
Nottinghamshire County Council,1111/1001,Children and Young People,CYP,Transport Related,CCA,22/05/2023,02-16147,"1,661.20",F4Control Ltd (t/a First4care)
Nottinghamshire County Council,1111/1001,Children and Young People,CYP,Transport Related,CCA,22/05/2023,02-16148,"1,430.30",F4Control Ltd (t/a First4care)
Nottinghamshire County Council,1111/1001,Children and Young People,CYP,Transport Related,CCA,22/05/2023,02-16149,"1,534.20",F4Control Ltd (t/a First4care)
Nottinghamshire County Council,1111/1001,Children and Young People,CYP,Transport Related,CCA,22/05/2023,02-16150,"1,690.00",F4Control Ltd (t/a First4care)
Nottinghamshire County Council,1111/1001,Children and Young People,CYP,Transport Related,CCA,22/05/2023,02-16151,"1,307.60",F4Control Ltd (t/a First4care)
Nottinghamshire County Council,1111/1001,Children and Young People,CYP,Transport Related,CCA,22/05/2023,02-16153,"1,086.48",F4Control Ltd (t/a First4care)
Nottinghamshire County Council,1111/1001,Children and Young People,CYP,Transport Related,CCA,22/05/2023,02-16154,"2,474.90",F4Control Ltd (t/a First4care)
Nottinghamshire County Council,1111/1001,Children and Young People,CYP,Transport Related,CCA,22/05/2023,02-16155,"2,506.00",F4Control Ltd (t/a First4care)
Nottinghamshire County Council,1111/1001,Children and Young People,CYP,Transport Related,CCA,22/05/2023,02-16156,"2,338.83",F4Control Ltd (t/a First4care)
Nottinghamshire County Council,1111/1001,Children and Young People,CYP,Transport Related,CCA,22/05/2023,02-16157,"2,181.51",F4Control Ltd (t/a First4care)
Nottinghamshire County Council,1111/1001,Children and Young People,CYP,Transport Related,CCA,22/05/2023,02-16159,"1,982.34",F4Control Ltd (t/a First4care)
Nottinghamshire County Council,1111/1001,Children and Young People,CYP,Transport Related,CCA,22/05/2023,02-16160,"2,124.40",F4Control Ltd (t/a First4care)
Nottinghamshire County Council,1111/1001,Children and Young People,CYP,Transport Related,CCA,22/05/2023,02-16161,"2,097.40",BN Gibson Ltd
Nottinghamshire County Council,1111/1001,Children and Young People,CYP,Transport Related,CCA,22/05/2023,02-16162,"2,533.30",BN Gibson Ltd
Nottinghamshire County Council,1111/1001,Children and Young People,CYP,Transport Related,CCA,22/05/2023,02-16163,"2,299.90",BN Gibson Ltd
Nottinghamshire County Council,1111/1001,Children and Young People,CYP,Transport Related,CCA,22/05/2023,02-16164,"1,620.00",BN Gibson Ltd
Nottinghamshire County Council,1111/1001,Children and Young People,CYP,Transport Related,CCA,22/05/2023,02-16165,"2,160.00",BN Gibson Ltd
Nottinghamshire County Council,1111/1001,Children and Young People,CYP,Transport Related,CCA,22/05/2023,02-16166,"1,800.00",BN Gibson Ltd
Nottinghamshire County Council,1111/1001,Children and Young People,CYP,Transport Related,CCA,22/05/2023,02-16167,"1,800.00",BN Gibson Ltd
Nottinghamshire County Council,1111/1001,Children and Young People,CYP,Transport Related,CCA,22/05/2023,02-16168,"2,582.60",BN Gibson Ltd
Nottinghamshire County Council,1111/1001,Children and Young People,CYP,Transport Related,CCA,22/05/2023,02-16169,"1,274.76",BN Gibson Ltd
Nottinghamshire County Council,1111/1001,Children and Young People,CYP,Transport Related,CCA,22/05/2023,02-16170,"2,307.60",BN Gibson Ltd
Nottinghamshire County Council,1111/1001,Children and Young People,CYP,Transport Related,CCA,22/05/2023,02-16171,"2,471.00",BN Gibson Ltd
Nottinghamshire County Council,1111/1001,Children and Young People,CYP,Transport Related,CCA,22/05/2023,02-16172,"2,007.10",BN Gibson Ltd
Nottinghamshire County Council,1111/1001,Children and Young People,CYP,Transport Related,CCA,22/05/2023,02-16173,"2,261.30",BN Gibson Ltd
Nottinghamshire County Council,1111/1001,Children and Young People,CYP,Transport Related,CCA,22/05/2023,02-16174,"2,322.20",BN Gibson Ltd
Nottinghamshire County Council,1111/1001,Children and Young People,CYP,Transport Related,CCA,22/05/2023,02-16175,"2,359.30",BN Gibson Ltd
Nottinghamshire County Council,1111/1001,Children and Young People,CYP,Transport Related,CCA,22/05/2023,02-16176,"2,316.00",BN Gibson Ltd
Nottinghamshire County Council,1111/1001,Children and Young People,CYP,Transport Related,CCA,22/05/2023,02-16177,"1,864.08",BN Gibson Ltd
Nottinghamshire County Council,1111/1001,Children and Young People,CYP,Transport Related,CCA,22/05/2023,02-16178,"1,945.20",BN Gibson Ltd
Nottinghamshire County Council,1111/1001,Children and Young People,CYP,Transport Related,CCA,22/05/2023,02-16179,"1,487.20",BN Gibson Ltd
Nottinghamshire County Council,1111/1001,Children and Young People,CYP,Transport Related,CCA,22/05/2023,02-16180,"1,553.40",BN Gibson Ltd
Nottinghamshire County Council,1111/1001,Children and Young People,CYP,Transport Related,CCA,22/05/2023,02-16181,"1,632.00",BN Gibson Ltd
Nottinghamshire County Council,1111/1001,Children and Young People,CYP,Transport Related,CCA,22/05/2023,02-16182,"2,324.20",BN Gibson Ltd
Nottinghamshire County Council,1111/1001,Children and Young People,CYP,Transport Related,CCA,22/05/2023,02-16183,"1,521.45",BN Gibson Ltd
Nottinghamshire County Council,1111/1001,Children and Young People,CYP,Transport Related,CCA,22/05/2023,02-16184,"3,298.50",BN Gibson Ltd
Nottinghamshire County Council,1111/1001,Children and Young People,CYP,Transport Related,CCA,22/05/2023,02-16185,"1,441.44",BN Gibson Ltd
Nottinghamshire County Council,1111/1001,Children and Young People,CYP,Transport Related,CCA,22/05/2023,02-16186,"1,024.14",BN Gibson Ltd
Nottinghamshire County Council,1111/1001,Children and Young People,CYP,Transport Related,CCA,22/05/2023,02-16187,"1,553.40",BN Gibson Ltd
Nottinghamshire County Council,1111/1001,Children and Young People,CYP,Transport Related,CCA,22/05/2023,02-16189,"1,744.10",BN Gibson Ltd
Nottinghamshire County Council,1111/1001,Children and Young People,CYP,Transport Related,CCA,22/05/2023,02-16190,"2,000.72",BN Gibson Ltd
Nottinghamshire County Council,1111/1001,Children and Young People,CYP,Transport Related,CCA,22/05/2023,02-16191,"1,468.72",BN Gibson Ltd
Nottinghamshire County Council,1111/1001,Children and Young People,CYP,Transport Related,CCA,22/05/2023,02-16192,"1,432.72",BN Gibson Ltd
Nottinghamshire County Council,1111/1001,Children and Young People,CYP,Transport Related,CCA,22/05/2023,02-16193,"1,962.56",BN Gibson Ltd
Nottinghamshire County Council,1111/1001,Children and Young People,CYP,Transport Related,CCA,22/05/2023,02-16194,"1,823.30",BN Gibson Ltd
Nottinghamshire County Council,1111/1001,Children and Young People,CYP,Transport Related,CCA,22/05/2023,02-16195,"2,147.50",BN Gibson Ltd
Nottinghamshire County Council,1111/1001,Children and Young People,CYP,Transport Related,CCA,22/05/2023,02-16196,"1,791.20",BN Gibson Ltd
Nottinghamshire County Council,1111/1001,Children and Young People,CYP,Transport Related,CCA,22/05/2023,02-16197,"2,199.60",BN Gibson Ltd
Nottinghamshire County Council,1111/1001,Children and Young People,CYP,Transport Related,CCA,22/05/2023,02-16198,900,Abacus Cars
Nottinghamshire County Council,1111/1001,Children and Young People,CYP,Transport Related,CCA,22/05/2023,02-16199,630,Abacus Cars
Nottinghamshire County Council,1111/1001,Children and Young People,CYP,Transport Related,CCA,22/05/2023,02-16200,"1,241.10",Abacus Cars
Nottinghamshire County Council,1111/1001,Children and Young People,CYP,Transport Related,CCA,22/05/2023,02-16201,535,Abacus Cars
Nottinghamshire County Council,1111/1001,Children and Young People,CYP,Transport Related,CCA,22/05/2023,02-16202,800,Abacus Cars
Nottinghamshire County Council,1111/1001,Children and Young People,CYP,Transport Related,CCA,22/05/2023,02-16203,"1,775.60",Abacus Cars
Nottinghamshire County Council,1111/1001,Children and Young People,CYP,Transport Related,CCA,22/05/2023,02-16204,"2,142.00",Abacus Cars
Nottinghamshire County Council,1111/1001,Children and Young People,CYP,Transport Related,CCA,22/05/2023,02-16205,"2,000.00",Abacus Cars
Nottinghamshire County Council,1111/1001,Children and Young People,CYP,Transport Related,CCA,22/05/2023,02-16208,"2,400.00",Abacus Cars
Nottinghamshire County Council,1111/1001,Children and Young People,CYP,Transport Related,CCA,22/05/2023,02-16211,"1,591.20",Abacus Cars
Nottinghamshire County Council,1111/1001,Children and Young People,CYP,Transport Related,CCA,22/05/2023,02-16214,"1,593.00",Silverdale Tours Nottm Ltd
Nottinghamshire County Council,1111/1001,Children and Young People,CYP,Transport Related,CCA,22/05/2023,02-16215,"1,720.40",Silverdale Tours Nottm Ltd
Nottinghamshire County Council,1111/1001,Children and Young People,CYP,Transport Related,CCA,22/05/2023,02-16216,"1,731.10",Silverdale Tours Nottm Ltd
Nottinghamshire County Council,1111/1001,Children and Young People,CYP,Transport Related,CCA,22/05/2023,02-16217,"1,593.00",Silverdale Tours Nottm Ltd
Nottinghamshire County Council,1111/1001,Children and Young People,CYP,Transport Related,CCA,22/05/2023,02-16218,"3,050.00",Silverdale Tours Nottm Ltd
Nottinghamshire County Council,1111/1001,Children and Young People,CYP,Transport Related,CCA,22/05/2023,02-16223,"1,384.61",Stagecoach Services Ltd
Nottinghamshire County Council,1111/1001,Children and Young People,CYP,Transport Related,CCA,22/05/2023,02-16227,"4,372.84",Stagecoach Services Ltd
Nottinghamshire County Council,1111/1001,Children and Young People,CYP,Transport Related,CCA,22/05/2023,02-16229,"2,567.27",Stagecoach Services Ltd
Nottinghamshire County Council,1111/1001,Children and Young People,CYP,Transport Related,CCA,22/05/2023,02-16231,"5,450.54",Stagecoach Services Ltd
Nottinghamshire County Council,1111/1001,Children and Young People,CYP,Transport Related,CCA,22/05/2023,02-16233,"2,831.40",Stagecoach Services Ltd
Nottinghamshire County Council,1111/1001,Children and Young People,CYP,Transport Related,CCA,22/05/2023,02-16235,"2,049.70",Stagecoach Services Ltd
Nottinghamshire County Council,1111/1001,Children and Young People,CYP,Transport Related,CCA,22/05/2023,02-16236,"2,050.00",Stagecoach Services Ltd
Nottinghamshire County Council,1111/1001,Children and Young People,CYP,Transport Related,CCA,22/05/2023,02-16237,"2,771.75",Stagecoach Services Ltd
Nottinghamshire County Council,1111/1001,Children and Young People,CYP,Transport Related,CCA,22/05/2023,02-16238,"1,066.00",Stagecoach Services Ltd
Nottinghamshire County Council,1111/1001,Children and Young People,CYP,Transport Related,CCA,22/05/2023,02-16240,"3,215.00",Stagecoach Services Ltd
Nottinghamshire County Council,1111/1001,Children and Young People,CYP,Transport Related,CCA,22/05/2023,02-16241,"2,741.50",Stagecoach Services Ltd
Nottinghamshire County Council,1111/1001,Children and Young People,CYP,Transport Related,CCA,22/05/2023,02-16246,"1,447.80",Stagecoach Services Ltd
Nottinghamshire County Council,1111/1001,Children and Young People,CYP,Transport Related,CCA,22/05/2023,02-16248,"2,798.70",Stagecoach Services Ltd
Nottinghamshire County Council,1111/1001,Children and Young People,CYP,Transport Related,CCA,22/05/2023,02-16250,"2,708.10",Stagecoach Services Ltd
Nottinghamshire County Council,1111/1001,Children and Young People,CYP,Transport Related,CCA,22/05/2023,02-16251,"2,325.80",Stagecoach Services Ltd
Nottinghamshire County Council,1111/1001,Children and Young People,CYP,Transport Related,CCA,22/05/2023,02-16252,"2,750.60",Stagecoach Services Ltd
Nottinghamshire County Council,1111/1001,Children and Young People,CYP,Transport Related,CCA,22/05/2023,02-16254,"3,940.13",Stagecoach Services Ltd
Nottinghamshire County Council,1111/1001,Children and Young People,CYP,Transport Related,CCA,22/05/2023,02-16274,"1,387.02",Rio Cabs
Nottinghamshire County Council,1111/1001,Children and Young People,CYP,Transport Related,CCA,22/05/2023,02-16275,"1,620.00",BN Gibson Ltd
Nottinghamshire County Council,1111/1001,Children and Young People,CYP,Transport Related,CCA,24/05/2023,02-14705,"1,081.39",24 x 7 (Nottingham) Ltd
Nottinghamshire County Council,1111/1001,Children and Young People,CYP,Transport Related,CCA,24/05/2023,02-14706,"1,465.29",24 x 7 (Nottingham) Ltd
Nottinghamshire County Council,1111/1001,Children and Young People,CYP,Transport Related,CCA,24/05/2023,02-14707,"1,101.15",24 x 7 (Nottingham) Ltd
Nottinghamshire County Council,1111/1001,Children and Young People,CYP,Transport Related,CCA,24/05/2023,02-14708,"1,298.88",24 x 7 (Nottingham) Ltd
Nottinghamshire County Council,1111/1001,Children and Young People,CYP,Transport Related,CCA,24/05/2023,02-14709,"1,766.52",24 x 7 (Nottingham) Ltd
Nottinghamshire County Council,1111/1001,Children and Young People,CYP,Transport Related,CCA,24/05/2023,02-14710,"1,093.60",24 x 7 (Nottingham) Ltd
Nottinghamshire County Council,1111/1001,Children and Young People,CYP,Transport Related,CCA,24/05/2023,02-14711,"1,832.50",24 x 7 (Nottingham) Ltd
Nottinghamshire County Council,1111/1001,Children and Young People,CYP,Transport Related,CCA,24/05/2023,02-14712,796.5,24 x 7 (Nottingham) Ltd
Nottinghamshire County Council,1111/1001,Children and Young People,CYP,Transport Related,CCA,24/05/2023,02-14713,"1,180.40",24 x 7 (Nottingham) Ltd
Nottinghamshire County Council,1111/1001,Children and Young People,CYP,Transport Related,CCA,24/05/2023,02-14714,"1,261.08",24 x 7 (Nottingham) Ltd
Nottinghamshire County Council,1111/1001,Children and Young People,CYP,Transport Related,CCA,24/05/2023,02-14715,690.78,24 x 7 (Nottingham) Ltd
Nottinghamshire County Council,1111/1001,Children and Young People,CYP,Transport Related,CCA,24/05/2023,02-14716,"1,810.90",24 x 7 (Nottingham) Ltd
Nottinghamshire County Council,1111/1001,Children and Young People,CYP,Transport Related,CCA,24/05/2023,02-14717,833.76,24 x 7 (Nottingham) Ltd
Nottinghamshire County Council,1111/1001,Children and Young People,CYP,Transport Related,CCA,24/05/2023,02-14718,"2,594.56",24 x 7 (Nottingham) Ltd
Nottinghamshire County Council,1111/1001,Children and Young People,CYP,Transport Related,CCA,24/05/2023,02-14719,"3,060.70",24 x 7 (Nottingham) Ltd
Nottinghamshire County Council,1111/1001,Children and Young People,CYP,Transport Related,CCA,24/05/2023,02-14720,"1,203.60",24 x 7 (Nottingham) Ltd
Nottinghamshire County Council,1111/1001,Children and Young People,CYP,Transport Related,CCA,24/05/2023,02-14721,"1,813.40",24 x 7 (Nottingham) Ltd
Nottinghamshire County Council,1111/1001,Children and Young People,CYP,Transport Related,CCA,24/05/2023,02-14722,"1,358.90",24 x 7 (Nottingham) Ltd
Nottinghamshire County Council,1111/1001,Children and Young People,CYP,Transport Related,CCA,24/05/2023,02-14723,"1,148.80",24 x 7 (Nottingham) Ltd
Nottinghamshire County Council,1111/1001,Children and Young People,CYP,Transport Related,CCA,24/05/2023,02-14724,841.9,24 x 7 (Nottingham) Ltd
Nottinghamshire County Council,1111/1001,Children and Young People,CYP,Transport Related,CCA,24/05/2023,02-14725,"1,140.40",24 x 7 (Nottingham) Ltd
Nottinghamshire County Council,1111/1001,Children and Young People,CYP,Transport Related,CCA,24/05/2023,02-14726,967.3,24 x 7 (Nottingham) Ltd
Nottinghamshire County Council,1111/1001,Children and Young People,CYP,Transport Related,CCA,24/05/2023,02-14727,"1,253.90",24 x 7 (Nottingham) Ltd
Nottinghamshire County Council,1111/1001,Children and Young People,CYP,Transport Related,CCA,24/05/2023,02-14728,868,24 x 7 (Nottingham) Ltd
Nottinghamshire County Council,1111/1001,Children and Young People,CYP,Transport Related,CCA,24/05/2023,02-14729,"2,181.69",24 x 7 (Nottingham) Ltd
Nottinghamshire County Council,1111/1001,Children and Young People,CYP,Transport Related,CCA,24/05/2023,02-14730,"1,933.70",24 x 7 (Nottingham) Ltd
Nottinghamshire County Council,1111/1001,Children and Young People,CYP,Transport Related,CCA,24/05/2023,02-14731,"1,974.70",24 x 7 (Nottingham) Ltd
Nottinghamshire County Council,1111/1001,Children and Young People,CYP,Transport Related,CCA,24/05/2023,02-14732,"1,574.46",24 x 7 (Nottingham) Ltd
Nottinghamshire County Council,1111/1001,Children and Young People,CYP,Transport Related,CCA,24/05/2023,02-14733,894.56,24 x 7 (Nottingham) Ltd
Nottinghamshire County Council,1111/1001,Children and Young People,CYP,Transport Related,CCA,24/05/2023,02-14740,"1,053.00",[Redacted]
Nottinghamshire County Council,1111/1001,Children and Young People,CYP,Transport Related,CCA,24/05/2023,02-17475,"2,054.38",BN Gibson Ltd
Nottinghamshire County Council,1111/1001,Children and Young People,CYP,Transport Related,CCA,24/05/2023,02-17478,"1,149.60",Marshalls Of Sutton On Trent Ltd
Nottinghamshire County Council,1111/1001,Children and Young People,CYP,Transport Related,CCA,24/05/2023,02-17483,"1,886.00",Marshalls Of Sutton On Trent Ltd
Nottinghamshire County Council,1111/1001,Children and Young People,CYP,Transport Related,CCA,24/05/2023,02-17486,"2,292.57",Marshalls Of Sutton On Trent Ltd
Nottinghamshire County Council,1111/1001,Children and Young People,CYP,Transport Related,CCA,24/05/2023,02-17488,"2,351.20",Marshalls Of Sutton On Trent Ltd
Nottinghamshire County Council,1111/1001,Children and Young People,CYP,Transport Related,CCA,24/05/2023,02-17489,"3,603.50",Marshalls Of Sutton On Trent Ltd
Nottinghamshire County Council,1111/1001,Children and Young People,CYP,Transport Related,CCA,24/05/2023,02-17491,"2,400.00",Marshalls Of Sutton On Trent Ltd
Nottinghamshire County Council,1111/1001,Children and Young People,CYP,Transport Related,CCA,24/05/2023,02-17492,823.1,Marshalls Of Sutton On Trent Ltd
Nottinghamshire County Council,1111/1001,Children and Young People,CYP,Transport Related,CCA,24/05/2023,02-17497,"1,707.60",Nottingham Minibuses & Coaches
Nottinghamshire County Council,1111/1001,Children and Young People,CYP,Transport Related,CCA,24/05/2023,02-17500,"1,299.90",Nottingham Minibuses & Coaches
Nottinghamshire County Council,1111/1001,Children and Young People,CYP,Transport Related,CCA,24/05/2023,02-17501,"1,091.30",Nottingham Minibuses & Coaches
Nottinghamshire County Council,1111/1001,Children and Young People,CYP,Transport Related,CCA,24/05/2023,02-17502,"1,043.90",SM Travel Yorkshire Ltd
Nottinghamshire County Council,1111/1001,Children and Young People,CYP,Transport Related,CCA,24/05/2023,02-17504,718.36,SM Travel Yorkshire Ltd
Nottinghamshire County Council,1111/1001,Children and Young People,CYP,Transport Related,CCA,24/05/2023,02-17506,793,SM Travel Yorkshire Ltd
Nottinghamshire County Council,1111/1001,Children and Young People,CYP,Transport Related,CCA,24/05/2023,02-17507,788.2,SM Travel Yorkshire Ltd
Nottinghamshire County Council,1111/1001,Children and Young People,CYP,Transport Related,CCA,24/05/2023,02-17508,803,SM Travel Yorkshire Ltd
Nottinghamshire County Council,1111/1001,Children and Young People,CYP,Transport Related,CCA,24/05/2023,02-17509,820,SM Travel Yorkshire Ltd
Nottinghamshire County Council,1111/1001,Children and Young People,CYP,Transport Related,CCA,24/05/2023,02-17510,"1,034.25",SM Travel Yorkshire Ltd
Nottinghamshire County Council,1111/1001,Children and Young People,CYP,Transport Related,CCA,24/05/2023,02-17511,915.5,SM Travel Yorkshire Ltd
Nottinghamshire County Council,1111/1001,Children and Young People,CYP,Transport Related,CCA,24/05/2023,02-17512,933,SM Travel Yorkshire Ltd
Nottinghamshire County Council,1111/1001,Children and Young People,CYP,Transport Related,CCA,24/05/2023,02-17513,983,SM Travel Yorkshire Ltd
Nottinghamshire County Council,1111/1001,Children and Young People,CYP,Transport Related,CCA,24/05/2023,02-17514,"1,083.00",SM Travel Yorkshire Ltd
Nottinghamshire County Council,1111/1001,Children and Young People,CYP,Transport Related,CCA,24/05/2023,02-17515,"1,183.00",SM Travel Yorkshire Ltd
Nottinghamshire County Council,1111/1001,Children and Young People,CYP,Transport Related,CCA,24/05/2023,02-17516,"1,376.90",SM Travel Yorkshire Ltd
Nottinghamshire County Council,1111/1001,Children and Young People,CYP,Transport Related,CCA,24/05/2023,02-17517,"1,519.10",SM Travel Yorkshire Ltd
Nottinghamshire County Council,1111/1001,Children and Young People,CYP,Transport Related,CCA,24/05/2023,02-17518,"1,315.26",SM Travel Yorkshire Ltd
Nottinghamshire County Council,1111/1001,Children and Young People,CYP,Transport Related,CCA,24/05/2023,02-17519,769.8,SM Travel Yorkshire Ltd
Nottinghamshire County Council,1111/1001,Children and Young People,CYP,Transport Related,CCA,24/05/2023,02-17520,"1,695.00",SM Travel Yorkshire Ltd
Nottinghamshire County Council,1111/1001,Children and Young People,CYP,Transport Related,CCA,24/05/2023,02-17521,551.82,SM Travel Yorkshire Ltd
Nottinghamshire County Council,1111/1001,Children and Young People,CYP,Transport Related,CCA,24/05/2023,02-17522,"1,783.00",SM Travel Yorkshire Ltd
Nottinghamshire County Council,1111/1001,Children and Young People,CYP,Transport Related,CCA,24/05/2023,02-17523,"1,119.36",SM Travel Yorkshire Ltd
Nottinghamshire County Council,1111/1001,Children and Young People,CYP,Transport Related,CCA,24/05/2023,02-17525,"1,513.12",SM Travel Yorkshire Ltd
Nottinghamshire County Council,1111/1001,Children and Young People,CYP,Transport Related,CCA,24/05/2023,02-17526,"1,802.43",SM Travel Yorkshire Ltd
Nottinghamshire County Council,1111/1001,Children and Young People,CYP,Transport Related,CCA,24/05/2023,02-17527,"1,976.00",SM Travel Yorkshire Ltd
Nottinghamshire County Council,1111/1001,Children and Young People,CYP,Transport Related,CCA,24/05/2023,02-17529,"2,082.30",SM Travel Yorkshire Ltd
Nottinghamshire County Council,1111/1001,Children and Young People,CYP,Transport Related,CCA,24/05/2023,02-17530,"2,030.13",SM Travel Yorkshire Ltd
Nottinghamshire County Council,1111/1001,Children and Young People,CYP,Transport Related,CCA,24/05/2023,02-17531,"1,560.94",SM Travel Yorkshire Ltd
Nottinghamshire County Council,1111/1001,Children and Young People,CYP,Transport Related,CCA,24/05/2023,02-17534,575,SM Travel Yorkshire Ltd
Nottinghamshire County Council,1111/1001,Children and Young People,CYP,Transport Related,CCA,24/05/2023,02-17535,"1,763.00",SM Travel Yorkshire Ltd
Nottinghamshire County Council,1111/1001,Children and Young People,CYP,Transport Related,CCA,24/05/2023,02-17536,763,SM Travel Yorkshire Ltd
Nottinghamshire County Council,1111/1001,Children and Young People,CYP,Transport Related,CCA,24/05/2023,02-17537,990.8,SM Travel Yorkshire Ltd
Nottinghamshire County Council,1111/1001,Children and Young People,CYP,Transport Related,CCA,24/05/2023,02-17538,"1,520.10",SM Travel Yorkshire Ltd
Nottinghamshire County Council,1111/1001,Children and Young People,CYP,Transport Related,CCA,24/05/2023,02-17539,"1,563.00",SM Travel Yorkshire Ltd
Nottinghamshire County Council,1111/1001,Children and Young People,CYP,Transport Related,CCA,24/05/2023,02-17540,"1,783.00",SM Travel Yorkshire Ltd
Nottinghamshire County Council,1111/1001,Children and Young People,CYP,Transport Related,CCA,24/05/2023,02-17541,"1,597.50",SM Travel Yorkshire Ltd
Nottinghamshire County Council,1111/1001,Children and Young People,CYP,Transport Related,CCA,26/05/2023,02-17586,"6,875.90",C W Moxon Ltd
Nottinghamshire County Council,1111/1001,Children and Young People,CYP,Transport Related,CCA,26/05/2023,02-17587,300,Eastwood Cars (UK) Ltd
Nottinghamshire County Council,1111/1001,Children and Young People,CYP,Transport Related,CCA,26/05/2023,02-17589,"5,596.50",Rushcliffe Travel Ltd
Nottinghamshire County Council,1111/1001,Children and Young People,CYP,Transport Related,CCA,26/05/2023,02-17590,"2,427.00",Rushcliffe Travel Ltd
Nottinghamshire County Council,1111/1001,Children and Young People,CYP,Transport Related,CCA,26/05/2023,02-17591,637.8,SM Travel Yorkshire Ltd
Nottinghamshire County Council,1111/1001,Children and Young People,CYP,Transport Related,CCA,26/05/2023,02-17592,"1,355.00",SM Travel Yorkshire Ltd
Nottinghamshire County Council,1111/1001,Children and Young People,CYP,Transport Related,CCA,26/05/2023,02-17593,"1,830.40",SM Travel Yorkshire Ltd
Nottinghamshire County Council,1111/1001,Children and Young People,CYP,Transport Related,CCA,26/05/2023,02-17595,962,Carriage Solutions Ltd
Nottinghamshire County Council,1111/1001,Children and Young People,CYP,Transport Related,CCA,26/05/2023,02-17627,"1,004.80",Southside Cars Ltd
Nottinghamshire County Council,1111/1001,Children and Young People,CYP,Transport Related,CCA,26/05/2023,02-17636,544,Southside Cars Ltd
Nottinghamshire County Council,1111/1001,Children and Young People,CYP,Transport Related,CCA,30/05/2023,02-17646,573.3,F4Control Ltd (t/a First4care)
Nottinghamshire County Council,1111/1001,Children and Young People,CYP,Transport Related,CCA,30/05/2023,02-17661,"2,997.40",24 x 7 (Nottingham) Ltd
Nottinghamshire County Council,1111/1001,Children and Young People,CYP,Transport Related,CCA,30/05/2023,02-17662,"2,927.50",24 x 7 (Nottingham) Ltd
Nottinghamshire County Council,1111/1001,Children and Young People,CYP,Transport Related,CCA,30/05/2023,02-17664,"2,495.00",Nottingham Specialist Transport Ltd
Nottinghamshire County Council,1111/1001,Children and Young People,CYP,Transport Related,CCA,31/05/2023,02-18071,"2,469.00",SM Travel Yorkshire Ltd
Nottinghamshire County Council,1111/1001,Children and Young People,CYP,Transport Related,CCA,31/05/2023,02-18072,"2,029.50",SM Travel Yorkshire Ltd
Nottinghamshire County Council,1111/1001,Children and Young People,CYP,Transport Related,CCA,31/05/2023,02-18090,980.46,24 x 7 (Nottingham) Ltd
Nottinghamshire County Council,1111/1001,Children and Young People,CYP,Transport Related,CDA,03/05/2023,02-10876,"3,887.70",SM Travel Yorkshire Ltd
Nottinghamshire County Council,1111/1001,Children and Young People,CYP,Transport Related,CDA,09/05/2023,02-13331,"1,380.10",SM Travel Yorkshire Ltd
Nottinghamshire County Council,1111/1001,Children and Young People,CYP,Transport Related,CDA,10/05/2023,02-13673,"1,200.00",A Sikander T/A Cross Dales Taxis
Nottinghamshire County Council,1111/1001,Children and Young People,CYP,Transport Related,CDA,15/05/2023,02-14521,882,Southside Cars Ltd
Nottinghamshire County Council,1111/1001,Children and Young People,CYP,Transport Related,CDA,15/05/2023,02-14526,"2,091.30",Southside Cars Ltd
Nottinghamshire County Council,1111/1001,Children and Young People,CYP,Transport Related,CDA,15/05/2023,02-14528,636.6,6 Five 2s
Nottinghamshire County Council,1111/1001,Children and Young People,CYP,Transport Related,CDA,15/05/2023,02-14529,"1,300.00",6 Five 2s
Nottinghamshire County Council,1111/1001,Children and Young People,CYP,Transport Related,CDA,15/05/2023,02-14540,500,6 Five 2s
Nottinghamshire County Council,1111/1001,Children and Young People,CYP,Transport Related,CDA,15/05/2023,02-14547,"1,243.60",Johnson Bros Tours Ltd
Nottinghamshire County Council,1111/1001,Children and Young People,CYP,Transport Related,CDA,15/05/2023,02-14585,"1,177.20",Alpha Cars
Nottinghamshire County Council,1111/1001,Children and Young People,CYP,Transport Related,CDA,15/05/2023,02-14610,"3,494.20",AOT Coaches Nottingham LLP
Nottinghamshire County Council,1111/1001,Children and Young People,CYP,Transport Related,CDA,15/05/2023,02-14637,"2,155.86",Tiger European Uk Ltd
Nottinghamshire County Council,1111/1001,Children and Young People,CYP,Transport Related,CDA,15/05/2023,02-14638,"1,970.08",Tiger European Uk Ltd
Nottinghamshire County Council,1111/1001,Children and Young People,CYP,Transport Related,CDA,15/05/2023,02-14646,"3,709.00",Paul S Winson Coaches
Nottinghamshire County Council,1111/1001,Children and Young People,CYP,Transport Related,CDA,15/05/2023,02-14653,"1,276.78",Rio Cabs
Nottinghamshire County Council,1111/1001,Children and Young People,CYP,Transport Related,CDA,15/05/2023,02-14682,653.45,Ideal Cars (Private Hire) Ltd
Nottinghamshire County Council,1111/1001,Children and Young People,CYP,Transport Related,CDA,16/05/2023,02-15231,723.8,D G Private Hire Ltd
Nottinghamshire County Council,1111/1001,Children and Young People,CYP,Transport Related,CDA,16/05/2023,02-15252,144.74,Millennium Travel (Mansfield) Ltd
Nottinghamshire County Council,1111/1001,Children and Young People,CYP,Transport Related,CDA,18/05/2023,02-15461,"1,490.00",JK Transport Ltd
Nottinghamshire County Council,1111/1001,Children and Young People,CYP,Transport Related,CDA,18/05/2023,02-15462,"2,190.00",JK Transport Ltd
Nottinghamshire County Council,1111/1001,Children and Young People,CYP,Transport Related,CDA,18/05/2023,02-15487,"1,399.90",JK Transport Ltd
Nottinghamshire County Council,1111/1001,Children and Young People,CYP,Transport Related,CDA,19/05/2023,02-15654,"1,395.00",Rushcliffe Travel Ltd
Nottinghamshire County Council,1111/1001,Children and Young People,CYP,Transport Related,CDA,19/05/2023,02-15655,"3,438.50",Rushcliffe Travel Ltd
Nottinghamshire County Council,1111/1001,Children and Young People,CYP,Transport Related,CDA,19/05/2023,02-15656,"1,495.00",Rushcliffe Travel Ltd
Nottinghamshire County Council,1111/1001,Children and Young People,CYP,Transport Related,CDA,19/05/2023,02-15665,"1,295.00",Rushcliffe Travel Ltd
Nottinghamshire County Council,1111/1001,Children and Young People,CYP,Transport Related,CDA,19/05/2023,02-15706,"1,640.00",A1 Private Hire Ltd
Nottinghamshire County Council,1111/1001,Children and Young People,CYP,Transport Related,CDA,22/05/2023,02-16219,"1,752.30",Silverdale Tours Nottm Ltd
Nottinghamshire County Council,1111/1001,Children and Young People,CYP,Transport Related,CDA,22/05/2023,02-16220,"1,752.30",Silverdale Tours Nottm Ltd
Nottinghamshire County Council,1111/1001,Children and Young People,CYP,Transport Related,CDA,22/05/2023,02-16221,"1,752.30",Silverdale Tours Nottm Ltd
Nottinghamshire County Council,1111/1001,Children and Young People,CYP,Transport Related,CDA,22/05/2023,02-16222,"1,752.30",Silverdale Tours Nottm Ltd
Nottinghamshire County Council,1111/1001,Children and Young People,CYP,Transport Related,CDA,22/05/2023,02-16223,"12,461.54",Stagecoach Services Ltd
Nottinghamshire County Council,1111/1001,Children and Young People,CYP,Transport Related,CDA,24/05/2023,02-17490,"4,736.00",Marshalls Of Sutton On Trent Ltd
Nottinghamshire County Council,1111/1001,Children and Young People,CYP,Transport Related,CDA,24/05/2023,02-17493,"1,516.50",Nottingham Minibuses & Coaches
Nottinghamshire County Council,1111/1001,Children and Young People,CYP,Transport Related,CDA,24/05/2023,02-17494,"1,408.20",Nottingham Minibuses & Coaches
Nottinghamshire County Council,1111/1001,Children and Young People,CYP,Transport Related,CDA,24/05/2023,02-17495,"1,029.10",Nottingham Minibuses & Coaches
Nottinghamshire County Council,1111/1001,Children and Young People,CYP,Transport Related,CDA,24/05/2023,02-17496,"1,354.10",Nottingham Minibuses & Coaches
Nottinghamshire County Council,1111/1001,Children and Young People,CYP,Transport Related,CDA,24/05/2023,02-17498,"1,531.70",Nottingham Minibuses & Coaches
Nottinghamshire County Council,1111/1001,Children and Young People,CYP,Transport Related,CDA,24/05/2023,02-17499,"1,408.20",Nottingham Minibuses & Coaches
Nottinghamshire County Council,1111/1001,Children and Young People,CYP,Transport Related,CDA,24/05/2023,02-17528,"1,987.00",SM Travel Yorkshire Ltd
Nottinghamshire County Council,1111/1001,Children and Young People,CYP,Transport Related,CDA,24/05/2023,02-17531,520.31,SM Travel Yorkshire Ltd
Nottinghamshire County Council,1111/1001,Children and Young People,CYP,Transport Related,CDA,26/05/2023,02-17583,"9,682.20",C W Moxon Ltd
Nottinghamshire County Council,1111/1001,Children and Young People,CYP,Transport Related,CDA,26/05/2023,02-17584,"1,462.40",C W Moxon Ltd
Nottinghamshire County Council,1111/1001,Children and Young People,CYP,Transport Related,CDA,26/05/2023,02-17585,"2,989.70",C W Moxon Ltd
Nottinghamshire County Council,1111/1001,Children and Young People,CYP,Transport Related,CDA,26/05/2023,02-17587,300,Eastwood Cars (UK) Ltd
Nottinghamshire County Council,1111/1001,Children and Young People,CYP,Transport Related,CEA,03/05/2023,02-10473,"4,921.80",Reed Employment Ltd
Nottinghamshire County Council,1111/1001,Children and Young People,CYP,Transport Related,CEA,09/05/2023,02-10861,"4,225.16",Reed Employment Ltd
Nottinghamshire County Council,1111/1001,Children and Young People,CYP,Transport Related,CEA,24/05/2023,02-17542,"3,962.45",Reed Employment Ltd
Nottinghamshire County Council,1111/1001,Children and Young People,CYP,Transport Related,CEA,24/05/2023,02-17547,"3,903.83",Reed Employment Ltd
Nottinghamshire County Council,1111/1001,Children and Young People,CYP,Transport Related,CEA,24/05/2023,02-17552,"4,397.05",Reed Employment Ltd
Nottinghamshire County Council,1111/1001,Children and Young People,CYP,Transport Related,CEA,31/05/2023,02-18084,"2,007.96",Via East Midlands Ltd
Nottinghamshire County Council,1111/1001,Children and Young People,CYP,Supplies & Services,DAA,30/05/2023,02-18611,552,Access Expedition Ltd
Nottinghamshire County Council,1111/1001,Children and Young People,CYP,Supplies & Services,DBA,03/05/2023,02-10046,717.5,Brake Bros Ltd
Nottinghamshire County Council,1111/1001,Children and Young People,CYP,Supplies & Services,DBA,03/05/2023,02-10837,"2,000.00",South Locality Youth Service
Nottinghamshire County Council,1111/1001,Children and Young People,CYP,Supplies & Services,DBA,04/05/2023,02-10917,625.16,M Maloney Country Butchers & B Ltd
Nottinghamshire County Council,1111/1001,Children and Young People,CYP,Supplies & Services,DBA,04/05/2023,02-10945,"1,814.71",John Palin (Wholesale) Ltd
Nottinghamshire County Council,1111/1001,Children and Young People,CYP,Supplies & Services,DBA,09/05/2023,02-13656,302.75,M Maloney Country Butchers & B Ltd
Nottinghamshire County Council,1111/1001,Children and Young People,CYP,Supplies & Services,DBA,10/05/2023,02-18416,592,P Ironside T/A Mill Waters Caf�
Nottinghamshire County Council,1111/1001,Children and Young People,CYP,Supplies & Services,DBA,10/05/2023,02-18417,592,P Ironside T/A Mill Waters Caf�
Nottinghamshire County Council,1111/1001,Children and Young People,CYP,Supplies & Services,DBA,10/05/2023,02-18478,592,P Ironside T/A Mill Waters Caf�
Nottinghamshire County Council,1111/1001,Children and Young People,CYP,Supplies & Services,DBA,12/05/2023,02-14455,286.32,M Maloney Country Butchers & B Ltd
Nottinghamshire County Council,1111/1001,Children and Young People,CYP,Supplies & Services,DBA,23/05/2023,02-16285,232.03,M Maloney Country Butchers & B Ltd
Nottinghamshire County Council,1111/1001,Children and Young People,CYP,Supplies & Services,DBA,24/05/2023,02-10922,"1,653.84",Brake Bros Ltd
Nottinghamshire County Council,1111/1001,Children and Young People,CYP,Supplies & Services,DBA,24/05/2023,02-17361,212.99,M Maloney Country Butchers & B Ltd
Nottinghamshire County Council,1111/1001,Children and Young People,CYP,Supplies & Services,DBA,31/05/2023,02-13942,"1,147.20",Brake Bros Ltd
Nottinghamshire County Council,1111/1001,Children and Young People,CYP,Supplies & Services,DCA,04/05/2023,02-18183,581.63,Clean Sheet Laundry Ltd
Nottinghamshire County Council,1111/1001,Children and Young People,CYP,Supplies & Services,DEA,04/05/2023,02-18174,"1,570.00",[Redacted]
Nottinghamshire County Council,1111/1001,Children and Young People,CYP,Supplies & Services,DEA,04/05/2023,02-18179,"2,300.00",[Redacted]
Nottinghamshire County Council,1111/1001,Children and Young People,CYP,Supplies & Services,DEA,05/05/2023,02-18252,"6,291.52",ARC Property Services Partnership L
Nottinghamshire County Council,1111/1001,Children and Young People,CYP,Supplies & Services,DEA,09/05/2023,02-18223,775,Talking Life Ltd
Nottinghamshire County Council,1111/1001,Children and Young People,CYP,Supplies & Services,DEA,09/05/2023,02-18326,600,Sarah Mann Shaw Ltd
Nottinghamshire County Council,1111/1001,Children and Young People,CYP,Supplies & Services,DEA,09/05/2023,02-18327,600,Omega Solutions
Nottinghamshire County Council,1111/1001,Children and Young People,CYP,Supplies & Services,DEA,09/05/2023,02-18348,"1,080.00",Sends Support CIC
Nottinghamshire County Council,1111/1001,Children and Young People,CYP,Supplies & Services,DEA,09/05/2023,02-18359,"1,570.00",[Redacted]
Nottinghamshire County Council,1111/1001,Children and Young People,CYP,Supplies & Services,DEA,09/05/2023,02-18386,"1,030.00",[Redacted]
Nottinghamshire County Council,1111/1001,Children and Young People,CYP,Supplies & Services,DEA,09/05/2023,02-18387,540,TW Educational Consultancy
Nottinghamshire County Council,1111/1001,Children and Young People,CYP,Supplies & Services,DEA,10/05/2023,02-18405,525,Bywater Training Ltd
Nottinghamshire County Council,1111/1001,Children and Young People,CYP,Supplies & Services,DEA,10/05/2023,02-18406,"1,050.00",Ann Lugering Education Services
Nottinghamshire County Council,1111/1001,Children and Young People,CYP,Supplies & Services,DEA,10/05/2023,02-18437,595,Lotus Therapy Ltd
Nottinghamshire County Council,1111/1001,Children and Young People,CYP,Supplies & Services,DEA,10/05/2023,02-18438,"2,160.00",[Redacted]
Nottinghamshire County Council,1111/1001,Children and Young People,CYP,Supplies & Services,DEA,10/05/2023,02-18440,"1,800.00",[Redacted]
Nottinghamshire County Council,1111/1001,Children and Young People,CYP,Supplies & Services,DEA,10/05/2023,02-18458,540,[Redacted]
Nottinghamshire County Council,1111/1001,Children and Young People,CYP,Supplies & Services,DEA,10/05/2023,02-18461,"10,325.00",Global Mediation Ltd
Nottinghamshire County Council,1111/1001,Children and Young People,CYP,Supplies & Services,DEA,10/05/2023,02-18508,973.2,YMCA Nottinghamshire  (Head Office)
Nottinghamshire County Council,1111/1001,Children and Young People,CYP,Supplies & Services,DEA,11/05/2023,02-18235,653.1,[Redacted]
Nottinghamshire County Council,1111/1001,Children and Young People,CYP,Supplies & Services,DEA,11/05/2023,02-18236,621.6,[Redacted]
Nottinghamshire County Council,1111/1001,Children and Young People,CYP,Supplies & Services,DEA,11/05/2023,02-18530,812.73,Solo Support Services Ltd
Nottinghamshire County Council,1111/1001,Children and Young People,CYP,Supplies & Services,DEA,12/05/2023,02-18566,"1,800.00",River Education Services Ltd
Nottinghamshire County Council,1111/1001,Children and Young People,CYP,Supplies & Services,DEA,15/05/2023,02-18372,"1,910.00",Children & Families Across Borders
Nottinghamshire County Council,1111/1001,Children and Young People,CYP,Supplies & Services,DEA,15/05/2023,02-18627,"4,982.50",C Brewer T/A Imagine Arts Therapy
Nottinghamshire County Council,1111/1001,Children and Young People,CYP,Supplies & Services,DEA,16/05/2023,02-18320,"1,350.00",Earl Education Consultancy Ltd
Nottinghamshire County Council,1111/1001,Children and Young People,CYP,Supplies & Services,DEA,16/05/2023,02-18502,745,Bywater Training Ltd
Nottinghamshire County Council,1111/1001,Children and Young People,CYP,Supplies & Services,DEA,16/05/2023,02-18573,500,Anna Wheelhouse Art
Nottinghamshire County Council,1111/1001,Children and Young People,CYP,Supplies & Services,DEA,17/05/2023,02-18592,"3,270.00",Personal Best Life Coaching Ltd
Nottinghamshire County Council,1111/1001,Children and Young People,CYP,Supplies & Services,DEA,22/05/2023,02-18391,600,Child Psychology Service
Nottinghamshire County Council,1111/1001,Children and Young People,CYP,Supplies & Services,DEA,24/05/2023,02-17351,"1,367.40",SIMBA Education
Nottinghamshire County Council,1111/1001,Children and Young People,CYP,Supplies & Services,DEA,24/05/2023,02-17353,"2,100.00",Westcarr Coaching Ltd
Nottinghamshire County Council,1111/1001,Children and Young People,CYP,Supplies & Services,DEA,24/05/2023,02-17354,"1,251.60",Social Action Hub
Nottinghamshire County Council,1111/1001,Children and Young People,CYP,Supplies & Services,DEA,24/05/2023,02-17355,"2,284.22",Lime Trees (Colwick)
Nottinghamshire County Council,1111/1001,Children and Young People,CYP,Supplies & Services,DEA,24/05/2023,02-17357,"18,252.00",TB Sport
Nottinghamshire County Council,1111/1001,Children and Young People,CYP,Supplies & Services,DEA,24/05/2023,02-17358,"3,527.40",Evolution Soccer Ltd(Worksop Town A
Nottinghamshire County Council,1111/1001,Children and Young People,CYP,Supplies & Services,DEA,24/05/2023,02-18202,600,Ann Lugering Education Services
Nottinghamshire County Council,1111/1001,Children and Young People,CYP,Supplies & Services,DEA,26/05/2023,02-17350,"1,597.20",Excel Sports Coaching
Nottinghamshire County Council,1111/1001,Children and Young People,CYP,Supplies & Services,DEA,26/05/2023,02-17352,"1,351.80",John Blow Primary School
Nottinghamshire County Council,1111/1001,Children and Young People,CYP,Supplies & Services,DEA,26/05/2023,02-17356,871.5,The Elizabethan Academy
Nottinghamshire County Council,1111/1001,Children and Young People,CYP,Supplies & Services,DEA,26/05/2023,02-17599,"5,186.00",M & L Sports Ltd
Nottinghamshire County Council,1111/1001,Children and Young People,CYP,Supplies & Services,DEA,26/05/2023,02-17600,"1,522.00",Staples School of Dance (S.D.A)
Nottinghamshire County Council,1111/1001,Children and Young People,CYP,Supplies & Services,DEA,26/05/2023,02-17601,"2,405.10",Riley Sport & Fitness-Rileys Kids C
Nottinghamshire County Council,1111/1001,Children and Young People,CYP,Supplies & Services,DEA,26/05/2023,02-17602,"1,257.00",Retford Tennis Club
Nottinghamshire County Council,1111/1001,Children and Young People,CYP,Supplies & Services,DEA,26/05/2023,02-17603,"8,933.10",Rattle & Roll Ltd
Nottinghamshire County Council,1111/1001,Children and Young People,CYP,Supplies & Services,DEA,26/05/2023,02-17604,"3,451.50",Holiday Activities For Kids Ltd
Nottinghamshire County Council,1111/1001,Children and Young People,CYP,Supplies & Services,DEA,26/05/2023,02-17605,"6,361.40",Koala Klubs 1 Ltd
Nottinghamshire County Council,1111/1001,Children and Young People,CYP,Supplies & Services,DEA,26/05/2023,02-17606,"1,177.50",Mansfield Town Football In The Comm
Nottinghamshire County Council,1111/1001,Children and Young People,CYP,Supplies & Services,DEA,26/05/2023,02-17607,"5,605.27",Next Level Sports Ltd
Nottinghamshire County Council,1111/1001,Children and Young People,CYP,Supplies & Services,DEA,26/05/2023,02-17608,"1,774.00",Blidworth Oaks Primary Academy
Nottinghamshire County Council,1111/1001,Children and Young People,CYP,Supplies & Services,DEA,26/05/2023,02-17609,"2,696.00",Clubszone CZ Ltd
Nottinghamshire County Council,1111/1001,Children and Young People,CYP,Supplies & Services,DEA,26/05/2023,02-17610,802,Elite Football Development Ltd
Nottinghamshire County Council,1111/1001,Children and Young People,CYP,Supplies & Services,DEA,26/05/2023,02-17611,684,Freedom Foundation CIC
Nottinghamshire County Council,1111/1001,Children and Young People,CYP,Supplies & Services,DEA,26/05/2023,02-17612,"9,175.00",Grade A Sports
Nottinghamshire County Council,1111/1001,Children and Young People,CYP,Supplies & Services,DEA,26/05/2023,02-17613,"2,127.54",Nottingham Forest Community Trust
Nottinghamshire County Council,1111/1001,Children and Young People,CYP,Supplies & Services,DEA,26/05/2023,02-17614,"4,764.00",Positively Empowered Kids CIC
Nottinghamshire County Council,1111/1001,Children and Young People,CYP,Supplies & Services,DEA,26/05/2023,02-17615,"1,372.80",Premier Education Group (WJM Sports
Nottinghamshire County Council,1111/1001,Children and Young People,CYP,Supplies & Services,DEA,26/05/2023,02-17616,"2,520.00",Academy Transformation Trust Furthe
Nottinghamshire County Council,1111/1001,Children and Young People,CYP,Supplies & Services,DEA,30/05/2023,02-18398,550,Clive Harrison Consultancy Ltd
Nottinghamshire County Council,1111/1001,Children and Young People,CYP,Supplies & Services,DEA,30/05/2023,02-18612,660,LMS Social Work Services Ltd
Nottinghamshire County Council,1111/1001,Children and Young People,CYP,Supplies & Services,DFA,22/05/2023,02-18112,522.04,CDW Ltd
Nottinghamshire County Council,1111/1001,Children and Young People,CYP,Supplies & Services,DGA,17/05/2023,02-15277,"1,733.40",Positive Independence (Placements)
Nottinghamshire County Council,1111/1001,Children and Young People,CYP,Supplies & Services,DHA,18/05/2023,02-18486,"2,739.00",Triangle Consulting Social Enterpri
Nottinghamshire County Council,1111/1001,Children and Young People,CYP,Supplies & Services,DHA,23/05/2023,02-16295,"1,770.00",Ashfield District Council
Nottinghamshire County Council,1111/1001,Children and Young People,CYP,Supplies & Services,DKA,03/05/2023,02-10835,650,[Redacted]
Nottinghamshire County Council,1111/1001,Children and Young People,CYP,Supplies & Services,DKA,10/05/2023,02-13670,550,Mansfield Property Services LtdT/A
Nottinghamshire County Council,1111/1001,Children and Young People,CYP,Supplies & Services,DKA,10/05/2023,02-13671,550,[Redacted]
Nottinghamshire County Council,1111/1001,Children and Young People,CYP,Supplies & Services,DKA,10/05/2023,02-13672,500,[Redacted]
Nottinghamshire County Council,1111/1001,Children and Young People,CYP,Supplies & Services,DKA,15/05/2023,02-18418,"6,352.46",Transform Schools (Bassetlaw) Ltd
Nottinghamshire County Council,1111/1001,Children and Young People,CYP,Supplies & Services,DKA,15/05/2023,02-18419,"6,352.46",Transform Schools (Bassetlaw) Ltd
Nottinghamshire County Council,1111/1001,Children and Young People,CYP,Supplies & Services,DKA,15/05/2023,02-18424,"6,352.46",Transform Schools (Bassetlaw) Ltd
Nottinghamshire County Council,1111/1001,Children and Young People,CYP,Supplies & Services,DKA,15/05/2023,02-18425,"6,352.46",Transform Schools (Bassetlaw) Ltd
Nottinghamshire County Council,1111/1001,Children and Young People,CYP,Supplies & Services,DKA,15/05/2023,02-18426,"6,352.46",Transform Schools (Bassetlaw) Ltd
Nottinghamshire County Council,1111/1001,Children and Young People,CYP,Supplies & Services,DKA,15/05/2023,02-18428,"6,352.46",Transform Schools (Bassetlaw) Ltd
Nottinghamshire County Council,1111/1001,Children and Young People,CYP,Supplies & Services,DKA,15/05/2023,02-18429,"6,352.46",Transform Schools (Bassetlaw) Ltd
Nottinghamshire County Council,1111/1001,Children and Young People,CYP,Supplies & Services,DKA,15/05/2023,02-18463,"6,352.46",Transform Schools (Bassetlaw) Ltd
Nottinghamshire County Council,1111/1001,Children and Young People,CYP,Supplies & Services,DKA,15/05/2023,02-18518,"6,352.46",Transform Schools (Bassetlaw) Ltd
Nottinghamshire County Council,1111/1001,Children and Young People,CYP,Supplies & Services,DKA,17/05/2023,02-15269,700,Norman Galloway Ltd
Nottinghamshire County Council,1111/1001,Children and Young People,CYP,Supplies & Services,DKA,17/05/2023,02-15270,615,Ashfield District Council
Nottinghamshire County Council,1111/1001,Children and Young People,CYP,Supplies & Services,DKA,17/05/2023,02-15271,510,Sixteen Plus Ltd
Nottinghamshire County Council,1111/1001,Children and Young People,CYP,Supplies & Services,DKA,22/05/2023,02-18101,"1,120.00",Imageskool Ltd
Nottinghamshire County Council,1111/1001,Children and Young People,CYP,Supplies & Services,DKA,24/05/2023,02-17365,750,[Redacted]
Nottinghamshire County Council,1111/1001,Children and Young People,CYP,Supplies & Services,DKA,24/05/2023,02-17366,950.2,Mansfield District Council
Nottinghamshire County Council,1111/1001,Children and Young People,CYP,Supplies & Services,DKA,24/05/2023,02-17367,500,Haven Care Group
Nottinghamshire County Council,1111/1001,Children and Young People,CYP,Supplies & Services,DKA,31/05/2023,02-18082,880,Tris Whitman Coaching & Mentoring
Nottinghamshire County Council,1111/1001,Children and Young People,CYP,Supplies & Services,DKA,31/05/2023,02-18094,"1,800.00",[Redacted]
Nottinghamshire County Council,1111/1001,Children and Young People,CYP,Third Party Payments,EBA,02/05/2023,02-10081,600,Bredenbury Primary School
Nottinghamshire County Council,1111/1001,Children and Young People,CYP,Third Party Payments,EBA,02/05/2023,02-10089,540,Talbot Specialist School
Nottinghamshire County Council,1111/1001,Children and Young People,CYP,Third Party Payments,EBA,02/05/2023,02-10090,600,Bythams Primary School
Nottinghamshire County Council,1111/1001,Children and Young People,CYP,Third Party Payments,EBA,02/05/2023,02-10093,700,The Minster School (Academy)
Nottinghamshire County Council,1111/1001,Children and Young People,CYP,Third Party Payments,EBA,05/05/2023,02-18299,"64,887.67",Bright Futures Accom Ltd(Inv Paymt
Nottinghamshire County Council,1111/1001,Children and Young People,CYP,Third Party Payments,EBA,05/05/2023,02-18300,"51,919.94",Bright Futures Accom Ltd(Inv Paymt
Nottinghamshire County Council,1111/1001,Children and Young People,CYP,Third Party Payments,EBA,11/05/2023,02-18374,"15,166.65",Remedi-Restorative Services
Nottinghamshire County Council,1111/1001,Children and Young People,CYP,Third Party Payments,EBA,12/05/2023,02-18373,"1,879.18",Remedi-Restorative Services
Nottinghamshire County Council,1111/1001,Children and Young People,CYP,Third Party Payments,EBA,17/05/2023,02-18415,"210,581.34",Transform Schools (Bassetlaw) Ltd
Nottinghamshire County Council,1111/1001,Children and Young People,CYP,Third Party Payments,EBA,23/05/2023,02-16293,700,Bispham Drive Junior School
Nottinghamshire County Council,1111/1001,Children and Young People,CYP,Third Party Payments,EBA,25/05/2023,02-18643,"58,963.75",Framework Housing Association(Head
Nottinghamshire County Council,1111/1001,Children and Young People,CYP,Third Party Payments,EBA,25/05/2023,02-18644,"16,358.67",Framework Housing Association(Head
Nottinghamshire County Council,1111/1001,Children and Young People,CYP,Third Party Payments,EDA,02/05/2023,02-10064,"150,520.33",Fountaindale Academy (Nexus Trust)
Nottinghamshire County Council,1111/1001,Children and Young People,CYP,Third Party Payments,EDA,02/05/2023,02-10065,"139,202.08",Yeoman Park Academy
Nottinghamshire County Council,1111/1001,Children and Young People,CYP,Third Party Payments,EDA,02/05/2023,02-10066,"132,544.08",Foxwood Academy
Nottinghamshire County Council,1111/1001,Children and Young People,CYP,Third Party Payments,EDA,02/05/2023,02-10067,"104,240.25",Beech Academy (Nexus Multi AcademyT
Nottinghamshire County Council,1111/1001,Children and Young People,CYP,Third Party Payments,EDA,02/05/2023,02-10077,554.88,Ashfield Academy
Nottinghamshire County Council,1111/1001,Children and Young People,CYP,Third Party Payments,EDA,02/05/2023,02-10078,700,Beeston Fields Primary(Flying High
Nottinghamshire County Council,1111/1001,Children and Young People,CYP,Third Party Payments,EDA,02/05/2023,02-10079,600,Blidworth Oaks Primary Academy
Nottinghamshire County Council,1111/1001,Children and Young People,CYP,Third Party Payments,EDA,02/05/2023,02-10082,580.32,Greenwood Primary & Nursery School
Nottinghamshire County Council,1111/1001,Children and Young People,CYP,Third Party Payments,EDA,02/05/2023,02-10083,700,Killisick Junior Academy
Nottinghamshire County Council,1111/1001,Children and Young People,CYP,Third Party Payments,EDA,02/05/2023,02-10084,"4,000.00",Outwood Academy Portland
Nottinghamshire County Council,1111/1001,Children and Young People,CYP,Third Party Payments,EDA,02/05/2023,02-10085,"1,400.00",Outwood Academy - Valley
Nottinghamshire County Council,1111/1001,Children and Young People,CYP,Third Party Payments,EDA,02/05/2023,02-10086,"1,390.00",Retford Oaks Academy
Nottinghamshire County Council,1111/1001,Children and Young People,CYP,Third Party Payments,EDA,02/05/2023,02-10087,700,Rivendell Flying High Academy
Nottinghamshire County Council,1111/1001,Children and Young People,CYP,Third Party Payments,EDA,02/05/2023,02-10088,"1,400.00",Selston High Academy(Two Counties T
Nottinghamshire County Council,1111/1001,Children and Young People,CYP,Third Party Payments,EDA,02/05/2023,02-10091,"1,400.00",The Elizabethan Academy
Nottinghamshire County Council,1111/1001,Children and Young People,CYP,Third Party Payments,EDA,02/05/2023,02-10092,"1,300.00",Joseph Whittaker Academy
Nottinghamshire County Council,1111/1001,Children and Young People,CYP,Third Party Payments,EDA,02/05/2023,02-10094,600,Newark Academy
Nottinghamshire County Council,1111/1001,Children and Young People,CYP,Third Party Payments,EDA,02/05/2023,02-10095,"1,200.00",Witham St Hughs Primary School
Nottinghamshire County Council,1111/1001,Children and Young People,CYP,Third Party Payments,EDA,02/05/2023,02-10471,700,Fairfield Primary Academy (Spencer
Nottinghamshire County Council,1111/1001,Children and Young People,CYP,Third Party Payments,EDA,04/05/2023,02-10926,900,Yeoman Park Academy
Nottinghamshire County Council,1111/1001,Children and Young People,CYP,Third Party Payments,EDA,04/05/2023,02-10927,833.33,Yeoman Park Academy
Nottinghamshire County Council,1111/1001,Children and Young People,CYP,Third Party Payments,EDA,04/05/2023,02-10928,"1,666.67",Foxwood Academy
Nottinghamshire County Council,1111/1001,Children and Young People,CYP,Third Party Payments,EDA,04/05/2023,02-10929,"4,166.67",Beech Academy (Nexus Multi AcademyT
Nottinghamshire County Council,1111/1001,Children and Young People,CYP,Third Party Payments,EDA,04/05/2023,02-10930,"59,793.33",Redgate Primary Academy
Nottinghamshire County Council,1111/1001,Children and Young People,CYP,Third Party Payments,EDA,04/05/2023,02-10931,"2,214.00",Redgate Primary Academy
Nottinghamshire County Council,1111/1001,Children and Young People,CYP,Third Party Payments,EDA,04/05/2023,02-10936,"150,520.33",Fountaindale Academy (Nexus Trust)
Nottinghamshire County Council,1111/1001,Children and Young People,CYP,Third Party Payments,EDA,04/05/2023,02-10937,"139,202.08",Yeoman Park Academy
Nottinghamshire County Council,1111/1001,Children and Young People,CYP,Third Party Payments,EDA,04/05/2023,02-10938,"132,544.08",Foxwood Academy
Nottinghamshire County Council,1111/1001,Children and Young People,CYP,Third Party Payments,EDA,04/05/2023,02-10939,"104,240.25",Beech Academy (Nexus Multi AcademyT
Nottinghamshire County Council,1111/1001,Children and Young People,CYP,Third Party Payments,EDA,05/05/2023,02-10962,"23,737.35",Brierley Forest Primary & Nursery A
Nottinghamshire County Council,1111/1001,Children and Young People,CYP,Third Party Payments,EDA,05/05/2023,02-10963,"9,623.25",Kings C of E Primary Academy
Nottinghamshire County Council,1111/1001,Children and Young People,CYP,Third Party Payments,EDA,05/05/2023,02-10964,"36,568.35",St Augustine's Academy (The Forge T
Nottinghamshire County Council,1111/1001,Children and Young People,CYP,Third Party Payments,EDA,05/05/2023,02-10965,"16,680.30",Mansfield Primary Academy
Nottinghamshire County Council,1111/1001,Children and Young People,CYP,Third Party Payments,EDA,05/05/2023,02-10966,"28,228.20",Wainwright Primary Academy (DALP)
Nottinghamshire County Council,1111/1001,Children and Young People,CYP,Third Party Payments,EDA,05/05/2023,02-10967,"10,906.35",Kingston Park Academy
Nottinghamshire County Council,1111/1001,Children and Young People,CYP,Third Party Payments,EDA,05/05/2023,02-10968,"27,586.65",Kirkby Woodhouse Academy School
Nottinghamshire County Council,1111/1001,Children and Young People,CYP,Third Party Payments,EDA,05/05/2023,02-10969,"30,152.85",Peafield Lane Academy
Nottinghamshire County Council,1111/1001,Children and Young People,CYP,Third Party Payments,EDA,05/05/2023,02-10970,"20,529.60",Mapplewells Primary & Nursery Acade
Nottinghamshire County Council,1111/1001,Children and Young People,CYP,Third Party Payments,EDA,05/05/2023,02-10971,"37,851.45",Leamington Primary & Nursery Academ
Nottinghamshire County Council,1111/1001,Children and Young People,CYP,Third Party Payments,EDA,05/05/2023,02-10972,"15,397.20",Birklands Primary (Academy)
Nottinghamshire County Council,1111/1001,Children and Young People,CYP,Third Party Payments,EDA,05/05/2023,02-10973,"38,493.00",Richard Bonnington Primary Academy(
Nottinghamshire County Council,1111/1001,Children and Young People,CYP,Third Party Payments,EDA,05/05/2023,02-10975,"10,906.35",Haddon Primary School (Academy)
Nottinghamshire County Council,1111/1001,Children and Young People,CYP,Third Party Payments,EDA,05/05/2023,02-10976,"27,586.65",Parkdale Primary Academy
Nottinghamshire County Council,1111/1001,Children and Young People,CYP,Third Party Payments,EDA,05/05/2023,02-10977,"13,472.55",John Clifford School
Nottinghamshire County Council,1111/1001,Children and Young People,CYP,Third Party Payments,EDA,05/05/2023,02-10978,"34,643.70",Alderman Pounder Academy(Flying Hig
Nottinghamshire County Council,1111/1001,Children and Young People,CYP,Third Party Payments,EDA,05/05/2023,02-10979,"23,095.80",Thrumpton Primary Academy
Nottinghamshire County Council,1111/1001,Children and Young People,CYP,Third Party Payments,EDA,05/05/2023,02-10980,"25,662.00",Bracken Lane Primary Academy
Nottinghamshire County Council,1111/1001,Children and Young People,CYP,Third Party Payments,EDA,05/05/2023,02-10981,"17,963.40",Forest Glade Primary School (Academ
Nottinghamshire County Council,1111/1001,Children and Young People,CYP,Third Party Payments,EDA,05/05/2023,02-10982,"30,152.85",Hillocks Primary Academy
Nottinghamshire County Council,1111/1001,Children and Young People,CYP,Third Party Payments,EDA,05/05/2023,02-10983,"30,152.85",Heymann Primary School
Nottinghamshire County Council,1111/1001,Children and Young People,CYP,Third Party Payments,EDA,05/05/2023,02-10984,"12,189.45",Haggonfields Primary Academy
Nottinghamshire County Council,1111/1001,Children and Young People,CYP,Third Party Payments,EDA,05/05/2023,02-10985,"40,417.65",Norbridge Academy(Delta Academies T
Nottinghamshire County Council,1111/1001,Children and Young People,CYP,Third Party Payments,EDA,05/05/2023,02-10986,"25,020.45",John Hunt Academy
Nottinghamshire County Council,1111/1001,Children and Young People,CYP,Third Party Payments,EDA,05/05/2023,02-10987,"25,662.00",Hawthorne Primary Academy(Flying Hi
Nottinghamshire County Council,1111/1001,Children and Young People,CYP,Third Party Payments,EDA,05/05/2023,02-10988,"30,152.85",Samuel Barlow Primary Academy
Nottinghamshire County Council,1111/1001,Children and Young People,CYP,Third Party Payments,EDA,05/05/2023,02-10989,"4,490.85",Flintham Primary Academy School
Nottinghamshire County Council,1111/1001,Children and Young People,CYP,Third Party Payments,EDA,05/05/2023,02-10990,"36,889.13",Parkgate Academy (Forge Trust)
Nottinghamshire County Council,1111/1001,Children and Young People,CYP,Third Party Payments,EDA,05/05/2023,02-10991,"17,856.48",Lowes Wong Infants (Academy)
Nottinghamshire County Council,1111/1001,Children and Young People,CYP,Third Party Payments,EDA,05/05/2023,02-10992,"22,454.25",Tuxford Primary Academy
Nottinghamshire County Council,1111/1001,Children and Young People,CYP,Third Party Payments,EDA,05/05/2023,02-10993,"17,022.46",Ranskill Primary Academy
Nottinghamshire County Council,1111/1001,Children and Young People,CYP,Third Party Payments,EDA,05/05/2023,02-10994,"21,171.15",Kimberley Primary & Nursery Acadamy
Nottinghamshire County Council,1111/1001,Children and Young People,CYP,Third Party Payments,EDA,05/05/2023,02-10995,"35,926.80",Greenwood Primary & Nursery School
Nottinghamshire County Council,1111/1001,Children and Young People,CYP,Third Party Payments,EDA,05/05/2023,02-10996,"17,321.85",West Park Academy
Nottinghamshire County Council,1111/1001,Children and Young People,CYP,Third Party Payments,EDA,05/05/2023,02-10997,"47,474.70",Barnby Road Academy Prim & Nursery
Nottinghamshire County Council,1111/1001,Children and Young People,CYP,Third Party Payments,EDA,05/05/2023,02-10998,"13,472.55",Keyworth Primary & Nursery School (
Nottinghamshire County Council,1111/1001,Children and Young People,CYP,Third Party Payments,EDA,05/05/2023,02-10999,"35,285.25",Sparken Hill Academy
Nottinghamshire County Council,1111/1001,Children and Young People,CYP,Third Party Payments,EDA,05/05/2023,02-11000,"22,454.25",Bilsthorpe Flying High Academy (Fly
Nottinghamshire County Council,1111/1001,Children and Young People,CYP,Third Party Payments,EDA,05/05/2023,02-11001,"30,794.40",Beeston Fields Primary(Flying High
Nottinghamshire County Council,1111/1001,Children and Young People,CYP,Third Party Payments,EDA,05/05/2023,02-11002,"15,076.43",Selston C of E Infant & Nursery Aca
Nottinghamshire County Council,1111/1001,Children and Young People,CYP,Third Party Payments,EDA,05/05/2023,02-11003,"12,189.45",Mount C of E Primary School (Academ
Nottinghamshire County Council,1111/1001,Children and Young People,CYP,Third Party Payments,EDA,05/05/2023,02-11004,"19,246.50",St Johns C of E Academy
Nottinghamshire County Council,1111/1001,Children and Young People,CYP,Third Party Payments,EDA,05/05/2023,02-11005,"15,696.59",St Peters C of E Academy
Nottinghamshire County Council,1111/1001,Children and Young People,CYP,Third Party Payments,EDA,05/05/2023,02-11006,"4,362.54",St Peters Cross Keys Academy
Nottinghamshire County Council,1111/1001,Children and Young People,CYP,Third Party Payments,EDA,05/05/2023,02-11007,"10,264.80",Leverton C of E Academy
Nottinghamshire County Council,1111/1001,Children and Young People,CYP,Third Party Payments,EDA,05/05/2023,02-11008,"2,737.28",Holy Trinity C of E Infant School
Nottinghamshire County Council,1111/1001,Children and Young People,CYP,Third Party Payments,EDA,05/05/2023,02-11009,"50,682.45",Sir Donald Bailey Academy (Forge Tr
Nottinghamshire County Council,1111/1001,Children and Young People,CYP,Third Party Payments,EDA,05/05/2023,02-11010,"25,020.45",Langold Dyscarr Community Academy
Nottinghamshire County Council,1111/1001,Children and Young People,CYP,Third Party Payments,EDA,05/05/2023,02-11011,"17,321.85",St Peters C of E Academy Mansfield
Nottinghamshire County Council,1111/1001,Children and Young People,CYP,Third Party Payments,EDA,05/05/2023,02-11012,"26,303.55",Abbey Primary Academy(Believe Acade
Nottinghamshire County Council,1111/1001,Children and Young People,CYP,Third Party Payments,EDA,05/05/2023,02-11013,"22,454.25",Springbank Primary Academy
Nottinghamshire County Council,1111/1001,Children and Young People,CYP,Third Party Payments,EDA,05/05/2023,02-11014,"3,849.30",Burntstump Seely CofE Primary Acade
Nottinghamshire County Council,1111/1001,Children and Young People,CYP,Third Party Payments,EDA,05/05/2023,02-11015,"10,264.80",St Swithuns C of E Primary Academy
Nottinghamshire County Council,1111/1001,Children and Young People,CYP,Third Party Payments,EDA,05/05/2023,02-11016,"6,928.74",Archbishop Cranmer C of E Academy
Nottinghamshire County Council,1111/1001,Children and Young People,CYP,Third Party Payments,EDA,05/05/2023,02-11017,"7,698.60",St Mary's C of E Primary Academy
Nottinghamshire County Council,1111/1001,Children and Young People,CYP,Third Party Payments,EDA,05/05/2023,02-11018,"6,607.97",Gamston St Peter�s C Of E Primary S
Nottinghamshire County Council,1111/1001,Children and Young People,CYP,Third Party Payments,EDA,05/05/2023,02-11019,"7,805.53",Gunthorpe C OF E Primary Academy
Nottinghamshire County Council,1111/1001,Children and Young People,CYP,Third Party Payments,EDA,05/05/2023,02-11020,"12,189.45",Sacred Heart Catholic Voluntary Aca
Nottinghamshire County Council,1111/1001,Children and Young People,CYP,Third Party Payments,EDA,05/05/2023,02-11021,"20,529.60",Good Shephard Prim Catholic Vol Aca
Nottinghamshire County Council,1111/1001,Children and Young People,CYP,Third Party Payments,EDA,05/05/2023,02-11023,"9,623.25",St Patricks Catholic Voluntary Acad
Nottinghamshire County Council,1111/1001,Children and Young People,CYP,Third Party Payments,EDA,05/05/2023,02-11024,"30,152.85",St Philip Neri with St Bede Vol Aca
Nottinghamshire County Council,1111/1001,Children and Young People,CYP,Third Party Payments,EDA,05/05/2023,02-11025,"16,038.75",St Josephs Catholic Primary Sch Aca
Nottinghamshire County Council,1111/1001,Children and Young People,CYP,Third Party Payments,EDA,05/05/2023,02-11026,"12,831.00",Worksop Priory CE Primary Academy
Nottinghamshire County Council,1111/1001,Children and Young People,CYP,Third Party Payments,EDA,05/05/2023,02-11027,"20,529.60",Huthwaite All Saints C ofE Infant S
Nottinghamshire County Council,1111/1001,Children and Young People,CYP,Third Party Payments,EDA,05/05/2023,02-11028,"20,529.60",Oak Tree Lane Primary Academy
Nottinghamshire County Council,1111/1001,Children and Young People,CYP,Third Party Payments,EDA,05/05/2023,02-11029,"18,733.26",Python Hill Academy (Forge Trust)
Nottinghamshire County Council,1111/1001,Children and Young People,CYP,Third Party Payments,EDA,05/05/2023,02-11030,"9,623.25",Arnbrook Primary Academy
Nottinghamshire County Council,1111/1001,Children and Young People,CYP,Third Party Payments,EDA,05/05/2023,02-11031,"39,134.55",Netherfield Primary School (Academy
Nottinghamshire County Council,1111/1001,Children and Young People,CYP,Third Party Payments,EDA,05/05/2023,02-11032,"30,152.85",Florence Nightingale Academy
Nottinghamshire County Council,1111/1001,Children and Young People,CYP,Third Party Payments,EDA,05/05/2023,02-11033,"34,044.92",Candleby Lane School
Nottinghamshire County Council,1111/1001,Children and Young People,CYP,Third Party Payments,EDA,05/05/2023,02-11034,"29,511.30",Hillside Academy (Flying High Trust
Nottinghamshire County Council,1111/1001,Children and Young People,CYP,Third Party Payments,EDA,05/05/2023,02-11035,"32,077.50",Blidworth Oaks Primary Academy
Nottinghamshire County Council,1111/1001,Children and Young People,CYP,Third Party Payments,EDA,05/05/2023,02-11036,"37,209.90",The Flying High Academy
Nottinghamshire County Council,1111/1001,Children and Young People,CYP,Third Party Payments,EDA,05/05/2023,02-11037,"26,945.10",Serlby Park Academy
Nottinghamshire County Council,1111/1001,Children and Young People,CYP,Third Party Payments,EDA,05/05/2023,02-11038,"25,662.00",Hucknall Flying High Academy
Nottinghamshire County Council,1111/1001,Children and Young People,CYP,Third Party Payments,EDA,05/05/2023,02-11039,"14,755.65",Rosecliffe Spencer Academy
Nottinghamshire County Council,1111/1001,Children and Young People,CYP,Third Party Payments,EDA,05/05/2023,02-11040,"8,981.70",Bramble Academy
Nottinghamshire County Council,1111/1001,Children and Young People,CYP,Third Party Payments,EDA,05/05/2023,02-11041,"13,472.55",Heathlands Primary School Academy
Nottinghamshire County Council,1111/1001,Children and Young People,CYP,Third Party Payments,EDA,05/05/2023,02-11042,"2,943.63",Brierley Forest Primary & Nursery A
Nottinghamshire County Council,1111/1001,Children and Young People,CYP,Third Party Payments,EDA,05/05/2023,02-11043,"1,285.07",Kings C of E Primary Academy
Nottinghamshire County Council,1111/1001,Children and Young People,CYP,Third Party Payments,EDA,05/05/2023,02-11044,"5,903.09",St Augustine's Academy (The Forge T
Nottinghamshire County Council,1111/1001,Children and Young People,CYP,Third Party Payments,EDA,05/05/2023,02-11045,"1,769.34",Kingston Park Academy
Nottinghamshire County Council,1111/1001,Children and Young People,CYP,Third Party Payments,EDA,05/05/2023,02-11046,"3,779.24",Kirkby Woodhouse Academy School
Nottinghamshire County Council,1111/1001,Children and Young People,CYP,Third Party Payments,EDA,05/05/2023,02-11047,"4,086.27",Peafield Lane Academy
Nottinghamshire County Council,1111/1001,Children and Young People,CYP,Third Party Payments,EDA,05/05/2023,02-11048,"3,522.86",Mapplewells Primary & Nursery Acade
Nottinghamshire County Council,1111/1001,Children and Young People,CYP,Third Party Payments,EDA,05/05/2023,02-11049,"6,238.60",Leamington Primary & Nursery Academ
Nottinghamshire County Council,1111/1001,Children and Young People,CYP,Third Party Payments,EDA,05/05/2023,02-11050,"2,525.83",Birklands Primary (Academy)
Nottinghamshire County Council,1111/1001,Children and Young People,CYP,Third Party Payments,EDA,05/05/2023,02-11051,"1,373.69",Haddon Primary School (Academy)
Nottinghamshire County Council,1111/1001,Children and Young People,CYP,Third Party Payments,EDA,05/05/2023,02-11052,"4,184.39",Parkdale Primary Academy
Nottinghamshire County Council,1111/1001,Children and Young People,CYP,Third Party Payments,EDA,05/05/2023,02-11053,"5,118.12",Alderman Pounder Academy(Flying Hig
Nottinghamshire County Council,1111/1001,Children and Young People,CYP,Third Party Payments,EDA,05/05/2023,02-11054,"3,108.22",Forest Glade Primary School (Academ
Nottinghamshire County Council,1111/1001,Children and Young People,CYP,Third Party Payments,EDA,05/05/2023,02-11056,"1,728.20",Haggonfields Primary Academy
Nottinghamshire County Council,1111/1001,Children and Young People,CYP,Third Party Payments,EDA,05/05/2023,02-11057,"6,640.58",Norbridge Academy(Delta Academies T
Nottinghamshire County Council,1111/1001,Children and Young People,CYP,Third Party Payments,EDA,05/05/2023,02-11058,"3,484.88",John Hunt Academy
Nottinghamshire County Council,1111/1001,Children and Young People,CYP,Third Party Payments,EDA,05/05/2023,02-11059,"3,744.43",Hawthorne Primary Academy(Flying Hi
Nottinghamshire County Council,1111/1001,Children and Young People,CYP,Third Party Payments,EDA,05/05/2023,02-11060,585.56,Flintham Primary Academy School
Nottinghamshire County Council,1111/1001,Children and Young People,CYP,Third Party Payments,EDA,05/05/2023,02-11061,"2,617.62",Mansfield Primary Academy
Nottinghamshire County Council,1111/1001,Children and Young People,CYP,Third Party Payments,EDA,05/05/2023,02-11062,"5,366.59",Parkgate Academy (Forge Trust)
Nottinghamshire County Council,1111/1001,Children and Young People,CYP,Third Party Payments,EDA,05/05/2023,02-11063,"1,590.93",Lowes Wong Infants (Academy)
Nottinghamshire County Council,1111/1001,Children and Young People,CYP,Third Party Payments,EDA,05/05/2023,02-11064,"2,282.21",Ranskill Primary Academy
Nottinghamshire County Council,1111/1001,Children and Young People,CYP,Third Party Payments,EDA,05/05/2023,02-11065,"5,870.17",Richard Bonnington Primary Academy(
Nottinghamshire County Council,1111/1001,Children and Young People,CYP,Third Party Payments,EDA,05/05/2023,02-11066,"3,298.13",Kimberley Primary & Nursery Acadamy
Nottinghamshire County Council,1111/1001,Children and Young People,CYP,Third Party Payments,EDA,05/05/2023,02-11067,"6,371.54",Greenwood Primary & Nursery School
Nottinghamshire County Council,1111/1001,Children and Young People,CYP,Third Party Payments,EDA,05/05/2023,02-11068,"2,699.91",West Park Academy
Nottinghamshire County Council,1111/1001,Children and Young People,CYP,Third Party Payments,EDA,05/05/2023,02-11069,"2,041.55",Keyworth Primary & Nursery School (
Nottinghamshire County Council,1111/1001,Children and Young People,CYP,Third Party Payments,EDA,05/05/2023,02-11070,"5,773.32",Sparken Hill Academy
Nottinghamshire County Council,1111/1001,Children and Young People,CYP,Third Party Payments,EDA,05/05/2023,02-11071,"3,038.59",Bilsthorpe Flying High Academy (Fly
Nottinghamshire County Council,1111/1001,Children and Young People,CYP,Third Party Payments,EDA,05/05/2023,02-11072,"4,390.13",Beeston Fields Primary(Flying High
Nottinghamshire County Council,1111/1001,Children and Young People,CYP,Third Party Payments,EDA,05/05/2023,02-11073,"19,888.05",St Joseph's Catholic Primary School
Nottinghamshire County Council,1111/1001,Children and Young People,CYP,Third Party Payments,EDA,05/05/2023,02-11074,"2,441.95",Selston C of E Infant & Nursery Aca
Nottinghamshire County Council,1111/1001,Children and Young People,CYP,Third Party Payments,EDA,05/05/2023,02-11075,"1,835.81",Mount C of E Primary School (Academ
Nottinghamshire County Council,1111/1001,Children and Young People,CYP,Third Party Payments,EDA,05/05/2023,02-11076,"4,329.99",Wainwright Primary Academy (DALP)
Nottinghamshire County Council,1111/1001,Children and Young People,CYP,Third Party Payments,EDA,05/05/2023,02-11077,"3,643.14",St Johns C of E Academy
Nottinghamshire County Council,1111/1001,Children and Young People,CYP,Third Party Payments,EDA,05/05/2023,02-11078,"2,387.82",St Peters C of E Academy
Nottinghamshire County Council,1111/1001,Children and Young People,CYP,Third Party Payments,EDA,05/05/2023,02-11079,"1,801.00",Leverton C of E Academy
Nottinghamshire County Council,1111/1001,Children and Young People,CYP,Third Party Payments,EDA,05/05/2023,02-11080,"7,045.73",Sir Donald Bailey Academy (Forge Tr
Nottinghamshire County Council,1111/1001,Children and Young People,CYP,Third Party Payments,EDA,05/05/2023,02-11081,"2,874.00",Langold Dyscarr Community Academy
Nottinghamshire County Council,1111/1001,Children and Young People,CYP,Third Party Payments,EDA,05/05/2023,02-11082,"3,019.17",St Peters C of E Academy Mansfield
Nottinghamshire County Council,1111/1001,Children and Young People,CYP,Third Party Payments,EDA,05/05/2023,02-11083,"4,637.01",Abbey Primary Academy(Believe Acade
Nottinghamshire County Council,1111/1001,Children and Young People,CYP,Third Party Payments,EDA,05/05/2023,02-11084,553.91,Burntstump Seely CofE Primary Acade
Nottinghamshire County Council,1111/1001,Children and Young People,CYP,Third Party Payments,EDA,05/05/2023,02-11085,"1,949.76",St Swithuns C of E Primary Academy
Nottinghamshire County Council,1111/1001,Children and Young People,CYP,Third Party Payments,EDA,05/05/2023,02-11086,764.71,Archbishop Cranmer C of E Academy
Nottinghamshire County Council,1111/1001,Children and Young People,CYP,Third Party Payments,EDA,05/05/2023,02-11087,"1,424.34",St Mary's C of E Primary Academy
Nottinghamshire County Council,1111/1001,Children and Young People,CYP,Third Party Payments,EDA,05/05/2023,02-11088,727.68,Gamston St Peter�s C Of E Primary S
Nottinghamshire County Council,1111/1001,Children and Young People,CYP,Third Party Payments,EDA,05/05/2023,02-11089,893.64,Gunthorpe C OF E Primary Academy
Nottinghamshire County Council,1111/1001,Children and Young People,CYP,Third Party Payments,EDA,05/05/2023,02-11090,"1,876.96",Sacred Heart Catholic Voluntary Aca
Nottinghamshire County Council,1111/1001,Children and Young People,CYP,Third Party Payments,EDA,05/05/2023,02-11091,"5,738.50",St Philip Neri with St Bede Vol Aca
Nottinghamshire County Council,1111/1001,Children and Young People,CYP,Third Party Payments,EDA,05/05/2023,02-11092,"2,427.71",Worksop Priory CE Primary Academy
Nottinghamshire County Council,1111/1001,Children and Young People,CYP,Third Party Payments,EDA,05/05/2023,02-11093,"3,557.68",Huthwaite All Saints C ofE Infant S
Nottinghamshire County Council,1111/1001,Children and Young People,CYP,Third Party Payments,EDA,05/05/2023,02-11094,"3,108.22",Oak Tree Lane Primary Academy
Nottinghamshire County Council,1111/1001,Children and Young People,CYP,Third Party Payments,EDA,05/05/2023,02-11095,"2,768.28",Python Hill Academy (Forge Trust)
Nottinghamshire County Council,1111/1001,Children and Young People,CYP,Third Party Payments,EDA,05/05/2023,02-11096,"1,329.38",Arnbrook Primary Academy
Nottinghamshire County Council,1111/1001,Children and Young People,CYP,Third Party Payments,EDA,05/05/2023,02-11097,"6,042.36",Netherfield Primary School (Academy
Nottinghamshire County Council,1111/1001,Children and Young People,CYP,Third Party Payments,EDA,05/05/2023,02-11098,"4,838.53",Candleby Lane School
Nottinghamshire County Council,1111/1001,Children and Young People,CYP,Third Party Payments,EDA,05/05/2023,02-11099,"5,608.73",Hillside Academy (Flying High Trust
Nottinghamshire County Council,1111/1001,Children and Young People,CYP,Third Party Payments,EDA,05/05/2023,02-11100,"5,670.76",Blidworth Oaks Primary Academy
Nottinghamshire County Council,1111/1001,Children and Young People,CYP,Third Party Payments,EDA,05/05/2023,02-11101,"5,374.50",The Flying High Academy
Nottinghamshire County Council,1111/1001,Children and Young People,CYP,Third Party Payments,EDA,05/05/2023,02-11102,"4,107.16",Hucknall Flying High Academy
Nottinghamshire County Council,1111/1001,Children and Young People,CYP,Third Party Payments,EDA,05/05/2023,02-11103,"7,783.22",Barnby Road Academy Prim & Nursery
Nottinghamshire County Council,1111/1001,Children and Young People,CYP,Third Party Payments,EDA,05/05/2023,02-11104,"3,516.53",Bracken Lane Primary Academy
Nottinghamshire County Council,1111/1001,Children and Young People,CYP,Third Party Payments,EDA,05/05/2023,02-11105,"1,383.19",Bramble Academy
Nottinghamshire County Council,1111/1001,Children and Young People,CYP,Third Party Payments,EDA,05/05/2023,02-11107,"4,716.14",Florence Nightingale Academy
Nottinghamshire County Council,1111/1001,Children and Young People,CYP,Third Party Payments,EDA,05/05/2023,02-11108,"3,687.45",Good Shephard Prim Catholic Vol Aca
Nottinghamshire County Council,1111/1001,Children and Young People,CYP,Third Party Payments,EDA,05/05/2023,02-11109,"2,190.32",Heathlands Primary School Academy
Nottinghamshire County Council,1111/1001,Children and Young People,CYP,Third Party Payments,EDA,05/05/2023,02-11110,"4,877.57",Heymann Primary School
Nottinghamshire County Council,1111/1001,Children and Young People,CYP,Third Party Payments,EDA,05/05/2023,02-11111,"4,833.25",Hillocks Primary Academy
Nottinghamshire County Council,1111/1001,Children and Young People,CYP,Third Party Payments,EDA,05/05/2023,02-11112,584.3,Holy Cross Catholic Voluntary Acade
Nottinghamshire County Council,1111/1001,Children and Young People,CYP,Third Party Payments,EDA,05/05/2023,02-11113,"1,655.40",John Clifford School
Nottinghamshire County Council,1111/1001,Children and Young People,CYP,Third Party Payments,EDA,05/05/2023,02-11114,"3,291.80",Rosecliffe Spencer Academy
Nottinghamshire County Council,1111/1001,Children and Young People,CYP,Third Party Payments,EDA,05/05/2023,02-11115,"4,444.57",Samuel Barlow Primary Academy
Nottinghamshire County Council,1111/1001,Children and Young People,CYP,Third Party Payments,EDA,05/05/2023,02-11116,"3,336.12",Springbank Primary Academy
Nottinghamshire County Council,1111/1001,Children and Young People,CYP,Third Party Payments,EDA,05/05/2023,02-11117,"2,706.24",St Joseph's Catholic Primary School
Nottinghamshire County Council,1111/1001,Children and Young People,CYP,Third Party Payments,EDA,05/05/2023,02-11118,"2,468.85",St Josephs Catholic Primary Sch Aca
Nottinghamshire County Council,1111/1001,Children and Young People,CYP,Third Party Payments,EDA,05/05/2023,02-11119,"1,908.61",St Patricks Catholic Voluntary Acad
Nottinghamshire County Council,1111/1001,Children and Young People,CYP,Third Party Payments,EDA,05/05/2023,02-11120,"4,029.29",Thrumpton Primary Academy
Nottinghamshire County Council,1111/1001,Children and Young People,CYP,Third Party Payments,EDA,05/05/2023,02-11121,"3,389.92",Tuxford Primary Academy
Nottinghamshire County Council,1111/1001,Children and Young People,CYP,Third Party Payments,EDA,05/05/2023,02-11122,"3,915.35",Serlby Park Academy
Nottinghamshire County Council,1111/1001,Children and Young People,CYP,Third Party Payments,EDA,05/05/2023,02-12479,"15,397.20",Bishop Alexander LEAD Academy
Nottinghamshire County Council,1111/1001,Children and Young People,CYP,Third Party Payments,EDA,05/05/2023,02-12885,"2,278.94",Bishop Alexander LEAD Academy
Nottinghamshire County Council,1111/1001,Children and Young People,CYP,Third Party Payments,EDA,11/05/2023,02-10974,"21,042.84",Robert Mellors Primary & Nursery Ac
Nottinghamshire County Council,1111/1001,Children and Young People,CYP,Third Party Payments,EDA,11/05/2023,02-11055,"3,527.93",Robert Mellors Primary & Nursery Ac
Nottinghamshire County Council,1111/1001,Children and Young People,CYP,Third Party Payments,EDA,11/05/2023,02-11123,"4,304.67",Carlton Infant Academy (Redhill Aca
Nottinghamshire County Council,1111/1001,Children and Young People,CYP,Third Party Payments,EDA,11/05/2023,02-11124,"24,378.90",Carlton Infant Academy (Redhill Aca
Nottinghamshire County Council,1111/1001,Children and Young People,CYP,Third Party Payments,EDA,18/05/2023,02-15494,"12,000.00",Parkdale Primary Academy
Nottinghamshire County Council,1111/1001,Children and Young People,CYP,Third Party Payments,EDA,22/05/2023,02-13347,"127,624.00",Magnus Church of England Academy
Nottinghamshire County Council,1111/1001,Children and Young People,CYP,Third Party Payments,EDA,24/05/2023,02-11022,"23,737.35",Holy Trinity Catholic Voluntary Aca
Nottinghamshire County Council,1111/1001,Children and Young People,CYP,Third Party Payments,EDA,24/05/2023,02-11106,"3,317.13",Holy Trinity Catholic Voluntary Aca
Nottinghamshire County Council,1111/1001,Children and Young People,CYP,Third Party Payments,EDA,24/05/2023,02-15378,"12,000.00",Holy Trinity Catholic Voluntary Aca
Nottinghamshire County Council,1111/1001,Children and Young People,CYP,Third Party Payments,EDA,24/05/2023,02-15379,"12,000.00",Holy Trinity Catholic Voluntary Aca
Nottinghamshire County Council,1111/1001,Children and Young People,CYP,Third Party Payments,EDA,30/05/2023,02-16290,600,Elements Academy (Ethos Academy Tru
Nottinghamshire County Council,1111/1001,Children and Young People,CYP,Third Party Payments,EDA,30/05/2023,02-16291,700,Hall Cross Academy/Exceed Learning
Nottinghamshire County Council,1111/1001,Children and Young People,CYP,Third Party Payments,EDA,30/05/2023,02-16292,500,Rockingham Junior & Infant School
Nottinghamshire County Council,1111/1001,Children and Young People,CYP,Third Party Payments,EDA,30/05/2023,02-17598,"12,000.00",Leverton C of E Academy
Nottinghamshire County Council,1111/1001,Children and Young People,CYP,Third Party Payments,EDA,31/05/2023,02-18086,"5,077.00",Chetwynd Primary Academy (Spencer A
Nottinghamshire County Council,1111/1001,Children and Young People,CYP,Third Party Payments,EFA,02/05/2023,02-10080,675,Casterton College Rutland
Nottinghamshire County Council,1111/1001,Children and Young People,CYP,Third Party Payments,EFA,03/05/2023,02-18115,"9,425.00",Progression 2Work Ltd
Nottinghamshire County Council,1111/1001,Children and Young People,CYP,Third Party Payments,EFA,03/05/2023,02-18120,681.3,Teaching Personnel Ltd
Nottinghamshire County Council,1111/1001,Children and Young People,CYP,Third Party Payments,EFA,03/05/2023,02-18121,681.3,Teaching Personnel Ltd
Nottinghamshire County Council,1111/1001,Children and Young People,CYP,Third Party Payments,EFA,03/05/2023,02-18134,"2,440.00",New Roots Care & Education Ltd
Nottinghamshire County Council,1111/1001,Children and Young People,CYP,Third Party Payments,EFA,03/05/2023,02-18136,"2,440.00",New Roots Care & Education Ltd
Nottinghamshire County Council,1111/1001,Children and Young People,CYP,Third Party Payments,EFA,03/05/2023,02-18168,"2,440.00",New Roots Care & Education Ltd
Nottinghamshire County Council,1111/1001,Children and Young People,CYP,Third Party Payments,EFA,04/05/2023,02-18200,"9,425.00",Progression 2Work Ltd
Nottinghamshire County Council,1111/1001,Children and Young People,CYP,Third Party Payments,EFA,05/05/2023,02-18282,"4,800.00",CAST Angling Projects
Nottinghamshire County Council,1111/1001,Children and Young People,CYP,Third Party Payments,EFA,05/05/2023,02-18303,880,A Place To Call Our Own Ltd
Nottinghamshire County Council,1111/1001,Children and Young People,CYP,Third Party Payments,EFA,05/05/2023,02-18304,880,A Place To Call Our Own Ltd
Nottinghamshire County Council,1111/1001,Children and Young People,CYP,Third Party Payments,EFA,09/05/2023,02-13348,"2,770.00",[Redacted]
Nottinghamshire County Council,1111/1001,Children and Young People,CYP,Third Party Payments,EFA,09/05/2023,02-18315,681.3,Teaching Personnel Ltd
Nottinghamshire County Council,1111/1001,Children and Young People,CYP,Third Party Payments,EFA,09/05/2023,02-18316,681.3,Teaching Personnel Ltd
Nottinghamshire County Council,1111/1001,Children and Young People,CYP,Third Party Payments,EFA,09/05/2023,02-18317,681.3,Teaching Personnel Ltd
Nottinghamshire County Council,1111/1001,Children and Young People,CYP,Third Party Payments,EFA,09/05/2023,02-18324,681.3,Teaching Personnel Ltd
Nottinghamshire County Council,1111/1001,Children and Young People,CYP,Third Party Payments,EFA,09/05/2023,02-18346,"1,440.00",TBAC Consultants Ltd
Nottinghamshire County Council,1111/1001,Children and Young People,CYP,Third Party Payments,EFA,09/05/2023,02-18350,645.45,Teaching Personnel Ltd
Nottinghamshire County Council,1111/1001,Children and Young People,CYP,Third Party Payments,EFA,09/05/2023,02-18351,645.45,Teaching Personnel Ltd
Nottinghamshire County Council,1111/1001,Children and Young People,CYP,Third Party Payments,EFA,09/05/2023,02-18352,645.45,Teaching Personnel Ltd
Nottinghamshire County Council,1111/1001,Children and Young People,CYP,Third Party Payments,EFA,09/05/2023,02-18353,681.3,Teaching Personnel Ltd
Nottinghamshire County Council,1111/1001,Children and Young People,CYP,Third Party Payments,EFA,09/05/2023,02-18354,681.3,Teaching Personnel Ltd
Nottinghamshire County Council,1111/1001,Children and Young People,CYP,Third Party Payments,EFA,09/05/2023,02-18355,645.45,Teaching Personnel Ltd
Nottinghamshire County Council,1111/1001,Children and Young People,CYP,Third Party Payments,EFA,09/05/2023,02-18356,645.45,Teaching Personnel Ltd
Nottinghamshire County Council,1111/1001,Children and Young People,CYP,Third Party Payments,EFA,09/05/2023,02-18357,681.3,Teaching Personnel Ltd
Nottinghamshire County Council,1111/1001,Children and Young People,CYP,Third Party Payments,EFA,09/05/2023,02-18358,681.3,Teaching Personnel Ltd
Nottinghamshire County Council,1111/1001,Children and Young People,CYP,Third Party Payments,EFA,09/05/2023,02-18392,"1,286.30",TIA Education Ltd
Nottinghamshire County Council,1111/1001,Children and Young People,CYP,Third Party Payments,EFA,09/05/2023,02-18393,500,TIA Education Ltd
Nottinghamshire County Council,1111/1001,Children and Young People,CYP,Third Party Payments,EFA,10/05/2023,02-13864,"1,289.73",[Redacted]
Nottinghamshire County Council,1111/1001,Children and Young People,CYP,Third Party Payments,EFA,10/05/2023,02-18234,"200,031.86",Landmarks Specialist College
Nottinghamshire County Council,1111/1001,Children and Young People,CYP,Third Party Payments,EFA,10/05/2023,02-18410,"48,066.66",Wilds Lodge School
Nottinghamshire County Council,1111/1001,Children and Young People,CYP,Third Party Payments,EFA,10/05/2023,02-18412,"2,657.01",Educ8 (Your Chapter Ltd)
Nottinghamshire County Council,1111/1001,Children and Young People,CYP,Third Party Payments,EFA,10/05/2023,02-18414,"5,811.42",Teaching Personnel Ltd
Nottinghamshire County Council,1111/1001,Children and Young People,CYP,Third Party Payments,EFA,10/05/2023,02-18427,"4,000.00",Access Training (East Midlands) Ltd
Nottinghamshire County Council,1111/1001,Children and Young People,CYP,Third Party Payments,EFA,10/05/2023,02-18474,960,Fleet Education Services Ltd
Nottinghamshire County Council,1111/1001,Children and Young People,CYP,Third Party Payments,EFA,10/05/2023,02-18475,960,Fleet Education Services Ltd
Nottinghamshire County Council,1111/1001,Children and Young People,CYP,Third Party Payments,EFA,10/05/2023,02-18476,"1,150.00",Regency Source Ltd
Nottinghamshire County Council,1111/1001,Children and Young People,CYP,Third Party Payments,EFA,11/05/2023,02-18312,"7,605.20",Maple Hayes School
Nottinghamshire County Council,1111/1001,Children and Young People,CYP,Third Party Payments,EFA,11/05/2023,02-18411,"4,800.00",Stone Soup Academy
Nottinghamshire County Council,1111/1001,Children and Young People,CYP,Third Party Payments,EFA,11/05/2023,02-18526,"2,440.00",New Roots Care & Education Ltd
Nottinghamshire County Council,1111/1001,Children and Young People,CYP,Third Party Payments,EFA,11/05/2023,02-18527,"1,092.50",Venture Learning Ltd
Nottinghamshire County Council,1111/1001,Children and Young People,CYP,Third Party Payments,EFA,11/05/2023,02-18529,"1,092.50",Venture Learning Ltd
Nottinghamshire County Council,1111/1001,Children and Young People,CYP,Third Party Payments,EFA,11/05/2023,02-18531,"9,425.00",Progression 2Work Ltd
Nottinghamshire County Council,1111/1001,Children and Young People,CYP,Third Party Payments,EFA,11/05/2023,02-18532,"5,811.42",Teaching Personnel Ltd
Nottinghamshire County Council,1111/1001,Children and Young People,CYP,Third Party Payments,EFA,11/05/2023,02-18533,"3,480.00",Crisp Vocational Provision Ltd
Nottinghamshire County Council,1111/1001,Children and Young People,CYP,Third Party Payments,EFA,11/05/2023,02-18535,"9,425.00",Progression 2Work Ltd
Nottinghamshire County Council,1111/1001,Children and Young People,CYP,Third Party Payments,EFA,11/05/2023,02-18539,"3,090.00",New Roots Care & Education Ltd
Nottinghamshire County Council,1111/1001,Children and Young People,CYP,Third Party Payments,EFA,11/05/2023,02-18542,990,Learn Solutions Ltd T/A TLC Live
Nottinghamshire County Council,1111/1001,Children and Young People,CYP,Third Party Payments,EFA,11/05/2023,02-18543,"7,800.00",Sutherland House Trading Ltd
Nottinghamshire County Council,1111/1001,Children and Young People,CYP,Third Party Payments,EFA,11/05/2023,02-18551,"4,200.00",Sutherland House Trading Ltd
Nottinghamshire County Council,1111/1001,Children and Young People,CYP,Third Party Payments,EFA,11/05/2023,02-18553,"7,800.00",Sutherland House Trading Ltd
Nottinghamshire County Council,1111/1001,Children and Young People,CYP,Third Party Payments,EFA,11/05/2023,02-18554,"1,430.00",Targeted Provision Ltd
Nottinghamshire County Council,1111/1001,Children and Young People,CYP,Third Party Payments,EFA,11/05/2023,02-18555,"3,090.00",New Roots Care & Education Ltd
Nottinghamshire County Council,1111/1001,Children and Young People,CYP,Third Party Payments,EFA,12/05/2023,02-18522,"2,250.00",First Class Tailored Solutions Ltd
Nottinghamshire County Council,1111/1001,Children and Young People,CYP,Third Party Payments,EFA,12/05/2023,02-18567,"4,800.00",CAST Angling Projects
Nottinghamshire County Council,1111/1001,Children and Young People,CYP,Third Party Payments,EFA,12/05/2023,02-18568,"4,800.00",CAST Angling Projects
Nottinghamshire County Council,1111/1001,Children and Young People,CYP,Third Party Payments,EFA,12/05/2023,02-18582,"3,666.67",Channels & Choices Therapeutic Fost
Nottinghamshire County Council,1111/1001,Children and Young People,CYP,Third Party Payments,EFA,12/05/2023,02-18589,"1,360.00",MindJam Ltd
Nottinghamshire County Council,1111/1001,Children and Young People,CYP,Third Party Payments,EFA,12/05/2023,02-18593,"2,497.60",Fresh Start in Education Ltd
Nottinghamshire County Council,1111/1001,Children and Young People,CYP,Third Party Payments,EFA,12/05/2023,02-18594,"2,497.60",Fresh Start in Education Ltd
Nottinghamshire County Council,1111/1001,Children and Young People,CYP,Third Party Payments,EFA,15/05/2023,02-18564,"2,500.00",Colston Bassett Preparatory School
Nottinghamshire County Council,1111/1001,Children and Young People,CYP,Third Party Payments,EFA,15/05/2023,02-18628,"11,047.29",Teaching Personnel Ltd
Nottinghamshire County Council,1111/1001,Children and Young People,CYP,Third Party Payments,EFA,15/05/2023,02-18629,645.45,Teaching Personnel Ltd
Nottinghamshire County Council,1111/1001,Children and Young People,CYP,Third Party Payments,EFA,15/05/2023,02-18630,645.45,Teaching Personnel Ltd
Nottinghamshire County Council,1111/1001,Children and Young People,CYP,Third Party Payments,EFA,15/05/2023,02-18631,645.45,Teaching Personnel Ltd
Nottinghamshire County Council,1111/1001,Children and Young People,CYP,Third Party Payments,EFA,15/05/2023,02-18632,681.3,Teaching Personnel Ltd
Nottinghamshire County Council,1111/1001,Children and Young People,CYP,Third Party Payments,EFA,15/05/2023,02-18633,681.3,Teaching Personnel Ltd
Nottinghamshire County Council,1111/1001,Children and Young People,CYP,Third Party Payments,EFA,15/05/2023,02-18634,645.45,Teaching Personnel Ltd
Nottinghamshire County Council,1111/1001,Children and Young People,CYP,Third Party Payments,EFA,15/05/2023,02-18635,681.3,Teaching Personnel Ltd
Nottinghamshire County Council,1111/1001,Children and Young People,CYP,Third Party Payments,EFA,15/05/2023,02-18636,681.3,Teaching Personnel Ltd
Nottinghamshire County Council,1111/1001,Children and Young People,CYP,Third Party Payments,EFA,15/05/2023,02-18637,681.3,Teaching Personnel Ltd
Nottinghamshire County Council,1111/1001,Children and Young People,CYP,Third Party Payments,EFA,17/05/2023,02-18170,"3,129.00",The SMB Group
Nottinghamshire County Council,1111/1001,Children and Young People,CYP,Third Party Payments,EFA,19/05/2023,02-18580,"4,871.43",Cambian Childcare Ltd
Nottinghamshire County Council,1111/1001,Children and Young People,CYP,Third Party Payments,EFA,19/05/2023,02-18581,"4,207.14",Cambian Childcare Ltd
Nottinghamshire County Council,1111/1001,Children and Young People,CYP,Third Party Payments,EFA,22/05/2023,02-18335,"2,894.40",Notts County FC Community Programme
Nottinghamshire County Council,1111/1001,Children and Young People,CYP,Third Party Payments,EFA,22/05/2023,02-18384,"2,208.00",Prime8 Education
Nottinghamshire County Council,1111/1001,Children and Young People,CYP,Third Party Payments,EFA,22/05/2023,02-18385,"1,748.00",Prime8 Education
Nottinghamshire County Council,1111/1001,Children and Young People,CYP,Third Party Payments,EFA,22/05/2023,02-18402,"2,767.86",Greenfields Adolescent Development
Nottinghamshire County Council,1111/1001,Children and Young People,CYP,Third Party Payments,EFA,22/05/2023,02-18512,"6,793.99",Grantham College
Nottinghamshire County Council,1111/1001,Children and Young People,CYP,Third Party Payments,EFA,23/05/2023,02-17327,"2,629.06",[Redacted]
Nottinghamshire County Council,1111/1001,Children and Young People,CYP,Third Party Payments,EFA,24/05/2023,02-17368,887,Blacklock Carpets Ltd
Nottinghamshire County Council,1111/1001,Children and Young People,CYP,Third Party Payments,EFA,24/05/2023,02-17370,"4,700.00",[Redacted]
Nottinghamshire County Council,1111/1001,Children and Young People,CYP,Third Party Payments,EFA,24/05/2023,02-18519,"16,020.00",Pollyteach Ltd
Nottinghamshire County Council,1111/1001,Children and Young People,CYP,Third Party Payments,EFA,24/05/2023,02-18537,709.82,Simply Sensory Training & Support
Nottinghamshire County Council,1111/1001,Children and Young People,CYP,Third Party Payments,EFA,24/05/2023,02-18544,"2,019.01",Simply Sensory Training & Support
Nottinghamshire County Council,1111/1001,Children and Young People,CYP,Third Party Payments,EFA,24/05/2023,02-18559,"2,045.86",Simply Sensory Training & Support
Nottinghamshire County Council,1111/1001,Children and Young People,CYP,Third Party Payments,EFA,24/05/2023,02-18560,"2,915.23",Simply Sensory Training & Support
Nottinghamshire County Council,1111/1001,Children and Young People,CYP,Third Party Payments,EFA,24/05/2023,02-18561,"3,901.41",Simply Sensory Training & Support
Nottinghamshire County Council,1111/1001,Children and Young People,CYP,Third Party Payments,EFA,24/05/2023,02-18562,"3,048.58",Simply Sensory Training & Support
Nottinghamshire County Council,1111/1001,Children and Young People,CYP,Third Party Payments,EFA,24/05/2023,02-18563,"1,420.68",Simply Sensory Training & Support
Nottinghamshire County Council,1111/1001,Children and Young People,CYP,Third Party Payments,EFA,25/05/2023,02-18614,"18,333.33",Dove Adolescent Services Ltd
Nottinghamshire County Council,1111/1001,Children and Young People,CYP,Third Party Payments,EFA,25/05/2023,02-18615,"18,333.33",Dove Adolescent Services Ltd
Nottinghamshire County Council,1111/1001,Children and Young People,CYP,Third Party Payments,EFA,25/05/2023,02-18616,"18,333.33",Dove Adolescent Services Ltd
Nottinghamshire County Council,1111/1001,Children and Young People,CYP,Third Party Payments,EFA,25/05/2023,02-18617,"18,333.33",Dove Adolescent Services Ltd
Nottinghamshire County Council,1111/1001,Children and Young People,CYP,Third Party Payments,EFA,25/05/2023,02-18618,"18,333.33",Dove Adolescent Services Ltd
Nottinghamshire County Council,1111/1001,Children and Young People,CYP,Third Party Payments,EFA,25/05/2023,02-18619,"18,333.33",Dove Adolescent Services Ltd
Nottinghamshire County Council,1111/1001,Children and Young People,CYP,Third Party Payments,EFA,25/05/2023,02-18620,"8,333.33",Dove Adolescent Services Ltd
Nottinghamshire County Council,1111/1001,Children and Young People,CYP,Third Party Payments,EFA,25/05/2023,02-18621,"8,333.33",Dove Adolescent Services Ltd
Nottinghamshire County Council,1111/1001,Children and Young People,CYP,Third Party Payments,EFA,25/05/2023,02-18622,"8,333.33",Dove Adolescent Services Ltd
Nottinghamshire County Council,1111/1001,Children and Young People,CYP,Third Party Payments,EFA,26/05/2023,02-18343,984,FUEL (First Universal Enterprises L
Nottinghamshire County Council,1111/1001,Children and Young People,CYP,Third Party Payments,EFA,26/05/2023,02-18672,623.32,CB Wings School (Kedleston (Wings E
Nottinghamshire County Council,1111/1001,Children and Young People,CYP,Third Party Payments,EFA,31/05/2023,02-18552,"1,757.00",Jumpstart AP Ltd
Nottinghamshire County Council,1111/1001,Children and Young People,CYP,Third Party Payments,EGA,03/05/2023,02-10478,"1,019.45",Orange Moon Childcare CIC T/A Home
Nottinghamshire County Council,1111/1001,Children and Young People,CYP,Third Party Payments,EGA,03/05/2023,02-10479,"25,732.72",Acorns Childminding
Nottinghamshire County Council,1111/1001,Children and Young People,CYP,Third Party Payments,EGA,03/05/2023,02-10480,"6,600.88",Little House Childcare of Brinsley
Nottinghamshire County Council,1111/1001,Children and Young People,CYP,Third Party Payments,EGA,03/05/2023,02-10481,"18,989.02",All Aboard Nursery Ltd
Nottinghamshire County Council,1111/1001,Children and Young People,CYP,Third Party Payments,EGA,03/05/2023,02-10482,538.72,Jelly Tots
Nottinghamshire County Council,1111/1001,Children and Young People,CYP,Third Party Payments,EGA,03/05/2023,02-10483,"3,208.20",Allsorts Preschool Underwood
Nottinghamshire County Council,1111/1001,Children and Young People,CYP,Third Party Payments,EGA,03/05/2023,02-10484,"12,422.46",Alphabet House Day Nurseries Ltd-Be
Nottinghamshire County Council,1111/1001,Children and Young People,CYP,Third Party Payments,EGA,03/05/2023,02-10485,"13,736.72",Alphabet House Day Nursery (Chilwel
Nottinghamshire County Council,1111/1001,Children and Young People,CYP,Third Party Payments,EGA,03/05/2023,02-10486,"14,906.50",Alphabet House Day Nurseries Ltd-Lo
Nottinghamshire County Council,1111/1001,Children and Young People,CYP,Third Party Payments,EGA,03/05/2023,02-10487,"19,407.44",Alphabet House Day Nurseries Ltd-We
Nottinghamshire County Council,1111/1001,Children and Young People,CYP,Third Party Payments,EGA,03/05/2023,02-10488,"24,393.80",Alphabet House Day Nurseries Ltd-Wh
Nottinghamshire County Council,1111/1001,Children and Young People,CYP,Third Party Payments,EGA,03/05/2023,02-10489,"12,277.84",Applegarth Day Nurseries Ltd
Nottinghamshire County Council,1111/1001,Children and Young People,CYP,Third Party Payments,EGA,03/05/2023,02-10490,"20,445.36",Arnold House Day Nursery
Nottinghamshire County Council,1111/1001,Children and Young People,CYP,Third Party Payments,EGA,03/05/2023,02-10491,"4,579.95",Arnold St Mary's Pre-School
Nottinghamshire County Council,1111/1001,Children and Young People,CYP,Third Party Payments,EGA,03/05/2023,02-10492,"11,197.68",Ashfield Plaza Day Nursery
Nottinghamshire County Council,1111/1001,Children and Young People,CYP,Third Party Payments,EGA,03/05/2023,02-10493,"10,223.52",Attenborough Church Pre-School
Nottinghamshire County Council,1111/1001,Children and Young People,CYP,Third Party Payments,EGA,03/05/2023,02-10494,"16,887.18",Aunty Sue's Day Care Ltd
Nottinghamshire County Council,1111/1001,Children and Young People,CYP,Third Party Payments,EGA,03/05/2023,02-10495,"10,740.43",Awsworth Schoolhouse Day Nursery
Nottinghamshire County Council,1111/1001,Children and Young People,CYP,Third Party Payments,EGA,03/05/2023,02-10496,"1,222.00",Mornington Childcare Services
Nottinghamshire County Council,1111/1001,Children and Young People,CYP,Third Party Payments,EGA,03/05/2023,02-10497,"1,321.84",Sarah's Childminding
Nottinghamshire County Council,1111/1001,Children and Young People,CYP,Third Party Payments,EGA,03/05/2023,02-10498,"21,563.36",Balderton Pre-School
Nottinghamshire County Council,1111/1001,Children and Young People,CYP,Third Party Payments,EGA,03/05/2023,02-10499,587.6,Imogen Barnett (Immy's House)
Nottinghamshire County Council,1111/1001,Children and Young People,CYP,Third Party Payments,EGA,03/05/2023,02-10500,882.96,S Hollins (Childminder)
Nottinghamshire County Council,1111/1001,Children and Young People,CYP,Third Party Payments,EGA,03/05/2023,02-10501,"10,853.44",Beacon Hill Day Nursery
Nottinghamshire County Council,1111/1001,Children and Young People,CYP,Third Party Payments,EGA,03/05/2023,02-10502,"7,481.76",Beeston Nursery
Nottinghamshire County Council,1111/1001,Children and Young People,CYP,Third Party Payments,EGA,03/05/2023,02-10503,"8,135.78",Bingham Day Nursery & Pre School
Nottinghamshire County Council,1111/1001,Children and Young People,CYP,Third Party Payments,EGA,03/05/2023,02-10504,"12,359.05",Bircotes Pre-School
Nottinghamshire County Council,1111/1001,Children and Young People,CYP,Third Party Payments,EGA,03/05/2023,02-10505,"1,271.92",Kathryn Birks Childminding Service
Nottinghamshire County Council,1111/1001,Children and Young People,CYP,Third Party Payments,EGA,03/05/2023,02-10506,"19,688.59",Bizzy Kidz
Nottinghamshire County Council,1111/1001,Children and Young People,CYP,Third Party Payments,EGA,03/05/2023,02-10507,"9,258.29",Bramcote Pre-School Playgroup
Nottinghamshire County Council,1111/1001,Children and Young People,CYP,Third Party Payments,EGA,03/05/2023,02-10508,588.64,Maple House 4 Child Care
Nottinghamshire County Council,1111/1001,Children and Young People,CYP,Third Party Payments,EGA,03/05/2023,02-10509,"18,818.80",Bright Sparks Day Nursery
Nottinghamshire County Council,1111/1001,Children and Young People,CYP,Third Party Payments,EGA,03/05/2023,02-10510,"19,174.48",Bright Stars Childcare
Nottinghamshire County Council,1111/1001,Children and Young People,CYP,Third Party Payments,EGA,03/05/2023,02-10511,"18,656.91",Brooklyn Day Nursery
Nottinghamshire County Council,1111/1001,Children and Young People,CYP,Third Party Payments,EGA,03/05/2023,02-10512,"9,928.88",Bullpit Road Nursery
Nottinghamshire County Council,1111/1001,Children and Young People,CYP,Third Party Payments,EGA,03/05/2023,02-10513,"21,021.52",Busy Bees (Daybrook)
Nottinghamshire County Council,1111/1001,Children and Young People,CYP,Third Party Payments,EGA,03/05/2023,02-10514,"16,419.07",CB Treetops Nursery (Toton)
Nottinghamshire County Council,1111/1001,Children and Young People,CYP,Third Party Payments,EGA,03/05/2023,02-10515,"8,227.71",Busy Bees Nurseries Limited
Nottinghamshire County Council,1111/1001,Children and Young People,CYP,Third Party Payments,EGA,03/05/2023,02-10516,"16,616.43",CB Treetops Nursery (Clipstone)
Nottinghamshire County Council,1111/1001,Children and Young People,CYP,Third Party Payments,EGA,03/05/2023,02-10517,"24,700.00",CB Treetops Nurseries (Workop)
Nottinghamshire County Council,1111/1001,Children and Young People,CYP,Third Party Payments,EGA,03/05/2023,02-10518,"9,076.31",Buttercross Pre School
Nottinghamshire County Council,1111/1001,Children and Young People,CYP,Third Party Payments,EGA,03/05/2023,02-10519,"20,056.40",Carlton & Gedling Day Nursery
Nottinghamshire County Council,1111/1001,Children and Young People,CYP,Third Party Payments,EGA,03/05/2023,02-10520,"8,816.82",Carlton Preschool Playgroup
Nottinghamshire County Council,1111/1001,Children and Young People,CYP,Third Party Payments,EGA,03/05/2023,02-10521,"15,491.43",Carnarvon Pre-School
Nottinghamshire County Council,1111/1001,Children and Young People,CYP,Third Party Payments,EGA,03/05/2023,02-10522,928.72,[Redacted]
Nottinghamshire County Council,1111/1001,Children and Young People,CYP,Third Party Payments,EGA,03/05/2023,02-10523,"2,688.40",New Beginnings Quality Childcare
Nottinghamshire County Council,1111/1001,Children and Young People,CYP,Third Party Payments,EGA,03/05/2023,02-10524,"13,794.80",Cedar House Day Nursery
Nottinghamshire County Council,1111/1001,Children and Young People,CYP,Third Party Payments,EGA,03/05/2023,02-10525,896.14,K J Channer (Childminder)
Nottinghamshire County Council,1111/1001,Children and Young People,CYP,Third Party Payments,EGA,03/05/2023,02-10526,"1,254.59",Cheeky Monkeys Childminding
Nottinghamshire County Council,1111/1001,Children and Young People,CYP,Third Party Payments,EGA,03/05/2023,02-10527,"5,269.90",Cherubs (Edwinstowe)
Nottinghamshire County Council,1111/1001,Children and Young People,CYP,Third Party Payments,EGA,03/05/2023,02-10528,"18,113.62",Cherubs (Mapperley)
Nottinghamshire County Council,1111/1001,Children and Young People,CYP,Third Party Payments,EGA,03/05/2023,02-10529,"11,306.33",Cherubs (Ruddington)
Nottinghamshire County Council,1111/1001,Children and Young People,CYP,Third Party Payments,EGA,03/05/2023,02-10530,"15,507.72",Cherubs (Sutton In Ashfield)
Nottinghamshire County Council,1111/1001,Children and Young People,CYP,Third Party Payments,EGA,03/05/2023,02-10531,"15,702.20",Cherubs Childrens Centre Wynndale
Nottinghamshire County Council,1111/1001,Children and Young People,CYP,Third Party Payments,EGA,03/05/2023,02-10532,"2,556.18",Cherubs Childrens Centre Pleasley
Nottinghamshire County Council,1111/1001,Children and Young People,CYP,Third Party Payments,EGA,03/05/2023,02-10533,"12,772.17",Cherubs Ryton Park
Nottinghamshire County Council,1111/1001,Children and Young People,CYP,Third Party Payments,EGA,03/05/2023,02-10534,"31,464.51",Cherubs Day Nursery
Nottinghamshire County Council,1111/1001,Children and Young People,CYP,Third Party Payments,EGA,03/05/2023,02-10535,"15,912.52",Child First (Welbeck) Nursery
Nottinghamshire County Council,1111/1001,Children and Young People,CYP,Third Party Payments,EGA,03/05/2023,02-10536,"33,640.08",Children 1st @ Breedon House (Plumt
Nottinghamshire County Council,1111/1001,Children and Young People,CYP,Third Party Payments,EGA,03/05/2023,02-10537,"20,194.31",Children 1st @ Newark Centre
Nottinghamshire County Council,1111/1001,Children and Young People,CYP,Third Party Payments,EGA,03/05/2023,02-10538,"17,677.63",Children 1st @ Breedon House (MayFi
Nottinghamshire County Council,1111/1001,Children and Young People,CYP,Third Party Payments,EGA,03/05/2023,02-10539,"41,873.64",Children 1st @ Breedon House (MayFi
Nottinghamshire County Council,1111/1001,Children and Young People,CYP,Third Party Payments,EGA,03/05/2023,02-10540,"10,019.76",Childrens House Childcare Ltd
Nottinghamshire County Council,1111/1001,Children and Young People,CYP,Third Party Payments,EGA,03/05/2023,02-10541,"4,886.95",Christchurch Hall Pre-School Playgr
Nottinghamshire County Council,1111/1001,Children and Young People,CYP,Third Party Payments,EGA,03/05/2023,02-10542,"12,585.10",Claremont Early Years Ltd
Nottinghamshire County Council,1111/1001,Children and Young People,CYP,Third Party Payments,EGA,03/05/2023,02-10543,"1,531.58",Ruthies Childcare
Nottinghamshire County Council,1111/1001,Children and Young People,CYP,Third Party Payments,EGA,03/05/2023,02-10544,977.6,L & K's Little Kingdom
Nottinghamshire County Council,1111/1001,Children and Young People,CYP,Third Party Payments,EGA,03/05/2023,02-10545,538.72,Susan Cochran Childminding Service
Nottinghamshire County Council,1111/1001,Children and Young People,CYP,Third Party Payments,EGA,03/05/2023,02-10546,"8,093.57",Collingham & District Pre-School
Nottinghamshire County Council,1111/1001,Children and Young People,CYP,Third Party Payments,EGA,03/05/2023,02-10547,"1,222.00",Colston Bassett Preparatory School
Nottinghamshire County Council,1111/1001,Children and Young People,CYP,Third Party Payments,EGA,03/05/2023,02-10548,"1,616.16",[Redacted]
Nottinghamshire County Council,1111/1001,Children and Young People,CYP,Third Party Payments,EGA,03/05/2023,02-10549,"3,913.52",Costock Pre School
Nottinghamshire County Council,1111/1001,Children and Young People,CYP,Third Party Payments,EGA,03/05/2023,02-10550,"9,965.70",Coteswood House School
Nottinghamshire County Council,1111/1001,Children and Young People,CYP,Third Party Payments,EGA,03/05/2023,02-10551,"6,090.56",Country Kids Day Nursery (Kneesall)
Nottinghamshire County Council,1111/1001,Children and Young People,CYP,Third Party Payments,EGA,03/05/2023,02-10552,"6,796.75",Country Kids Day Nursery (Farndon)
Nottinghamshire County Council,1111/1001,Children and Young People,CYP,Third Party Payments,EGA,03/05/2023,02-10553,"10,653.61",Country Kids Day Nursery (Newark)
Nottinghamshire County Council,1111/1001,Children and Young People,CYP,Third Party Payments,EGA,03/05/2023,02-10554,"7,107.02",Country Kids Nursery (Rainworth)
Nottinghamshire County Council,1111/1001,Children and Young People,CYP,Third Party Payments,EGA,03/05/2023,02-10555,"1,241.43",Fingerprints Childminding
Nottinghamshire County Council,1111/1001,Children and Young People,CYP,Third Party Payments,EGA,03/05/2023,02-10556,"8,914.54",Cranmer Pre-School
Nottinghamshire County Council,1111/1001,Children and Young People,CYP,Third Party Payments,EGA,03/05/2023,02-10557,"16,662.47",Creative Hands Childcare Ltd
Nottinghamshire County Council,1111/1001,Children and Young People,CYP,Third Party Payments,EGA,03/05/2023,02-10558,"1,140.54",[Redacted]
Nottinghamshire County Council,1111/1001,Children and Young People,CYP,Third Party Payments,EGA,03/05/2023,02-10559,864.59,Butterflies Childminding Services
Nottinghamshire County Council,1111/1001,Children and Young People,CYP,Third Party Payments,EGA,03/05/2023,02-10560,"19,911.84",Crocodile Rock Day Care Ltd
Nottinghamshire County Council,1111/1001,Children and Young People,CYP,Third Party Payments,EGA,03/05/2023,02-10561,"2,103.92",Kimi D's Tiny Toes Childminding
Nottinghamshire County Council,1111/1001,Children and Young People,CYP,Third Party Payments,EGA,03/05/2023,02-10562,"4,204.72",Diggory�s Day Nursery Ltd
Nottinghamshire County Council,1111/1001,Children and Young People,CYP,Third Party Payments,EGA,03/05/2023,02-10563,"3,861.52",M Dodgson (Chidminder)
Nottinghamshire County Council,1111/1001,Children and Young People,CYP,Third Party Payments,EGA,03/05/2023,02-10564,977.6,Lucy Doherty (Childminder)
Nottinghamshire County Council,1111/1001,Children and Young People,CYP,Third Party Payments,EGA,03/05/2023,02-10565,977.6,Blossoms Childcare
Nottinghamshire County Council,1111/1001,Children and Young People,CYP,Third Party Payments,EGA,03/05/2023,02-10566,"14,409.51",Purley Green Ltd
Nottinghamshire County Council,1111/1001,Children and Young People,CYP,Third Party Payments,EGA,03/05/2023,02-10567,501.12,Daisy Chain Childminding
Nottinghamshire County Council,1111/1001,Children and Young People,CYP,Third Party Payments,EGA,03/05/2023,02-10568,"10,306.64",Early Years Playgroup
Nottinghamshire County Council,1111/1001,Children and Young People,CYP,Third Party Payments,EGA,03/05/2023,02-10569,"20,385.04",East Leake Day Nursery & Pre-School
Nottinghamshire County Council,1111/1001,Children and Young People,CYP,Third Party Payments,EGA,03/05/2023,02-10570,"12,809.25",East Leake Pre-School Playgroup
Nottinghamshire County Council,1111/1001,Children and Young People,CYP,Third Party Payments,EGA,03/05/2023,02-10571,"25,578.66",Edwalton Day Nursery
Nottinghamshire County Council,1111/1001,Children and Young People,CYP,Third Party Payments,EGA,03/05/2023,02-10572,"2,399.28",S Elliott (Childminder)
Nottinghamshire County Council,1111/1001,Children and Young People,CYP,Third Party Payments,EGA,03/05/2023,02-10573,"1,371.76",C Evans (Childminder)
Nottinghamshire County Council,1111/1001,Children and Young People,CYP,Third Party Payments,EGA,03/05/2023,02-10574,"2,738.32",Explorers Childcare
Nottinghamshire County Council,1111/1001,Children and Young People,CYP,Third Party Payments,EGA,03/05/2023,02-10575,"9,769.52",Farnsfield Pre-School
Nottinghamshire County Council,1111/1001,Children and Young People,CYP,Third Party Payments,EGA,03/05/2023,02-10576,"25,110.11",Fernwood Day Nursery Ltd
Nottinghamshire County Council,1111/1001,Children and Young People,CYP,Third Party Payments,EGA,03/05/2023,02-10577,"6,089.14",Fledglings Pre School
Nottinghamshire County Council,1111/1001,Children and Young People,CYP,Third Party Payments,EGA,03/05/2023,02-10578,513.87,H Fletcher (Childminder)
Nottinghamshire County Council,1111/1001,Children and Young People,CYP,Third Party Payments,EGA,03/05/2023,02-10579,636.48,T M Fletcher (Childminding Service)
Nottinghamshire County Council,1111/1001,Children and Young People,CYP,Third Party Payments,EGA,03/05/2023,02-10580,809.66,Kates Childminding Services
Nottinghamshire County Council,1111/1001,Children and Young People,CYP,Third Party Payments,EGA,03/05/2023,02-10581,570.27,Penny Poppins (Childminder)
Nottinghamshire County Council,1111/1001,Children and Young People,CYP,Third Party Payments,EGA,03/05/2023,02-10582,705.33,Dee Dee's Childminding
Nottinghamshire County Council,1111/1001,Children and Young People,CYP,Third Party Payments,EGA,03/05/2023,02-10583,"1,466.40",V Gill (Childminder)
Nottinghamshire County Council,1111/1001,Children and Young People,CYP,Third Party Payments,EGA,03/05/2023,02-10584,"15,775.24",Good Foundations Day Nursery
Nottinghamshire County Council,1111/1001,Children and Young People,CYP,Third Party Payments,EGA,03/05/2023,02-10585,"4,142.04",Good Shepherd Pre-School
Nottinghamshire County Council,1111/1001,Children and Young People,CYP,Third Party Payments,EGA,03/05/2023,02-10586,"3,455.23",Gotham Pre-School Playgroup
Nottinghamshire County Council,1111/1001,Children and Young People,CYP,Third Party Payments,EGA,03/05/2023,02-10587,"12,490.48",Granby House Nursery
Nottinghamshire County Council,1111/1001,Children and Young People,CYP,Third Party Payments,EGA,03/05/2023,02-10588,"7,137.52",Pre-School Learning Alliance (HO)
Nottinghamshire County Council,1111/1001,Children and Young People,CYP,Third Party Payments,EGA,03/05/2023,02-10589,"2,347.28",Green Tot Childcare
Nottinghamshire County Council,1111/1001,Children and Young People,CYP,Third Party Payments,EGA,03/05/2023,02-10590,"1,466.40",S Greger (Childminder)
Nottinghamshire County Council,1111/1001,Children and Young People,CYP,Third Party Payments,EGA,03/05/2023,02-10591,538.72,Jennytots Childcare
Nottinghamshire County Council,1111/1001,Children and Young People,CYP,Third Party Payments,EGA,03/05/2023,02-10592,945.02,[Redacted]
Nottinghamshire County Council,1111/1001,Children and Young People,CYP,Third Party Payments,EGA,03/05/2023,02-10593,586.56,[Redacted]
Nottinghamshire County Council,1111/1001,Children and Young People,CYP,Third Party Payments,EGA,03/05/2023,02-10594,"16,403.36",Happy Days Childcare Services Ltd
Nottinghamshire County Council,1111/1001,Children and Young People,CYP,Third Party Payments,EGA,03/05/2023,02-10595,"1,710.80",[Redacted]
Nottinghamshire County Council,1111/1001,Children and Young People,CYP,Third Party Payments,EGA,03/05/2023,02-10596,"1,271.92",Rachel & Philip's Home From Home Ch
Nottinghamshire County Council,1111/1001,Children and Young People,CYP,Third Party Payments,EGA,03/05/2023,02-10597,"5,409.39",Haywood Road Pre-School
Nottinghamshire County Council,1111/1001,Children and Young People,CYP,Third Party Payments,EGA,03/05/2023,02-10598,977.6,[Redacted]
Nottinghamshire County Council,1111/1001,Children and Young People,CYP,Third Party Payments,EGA,03/05/2023,02-10599,"8,592.49",Hermitage Pre-School
Nottinghamshire County Council,1111/1001,Children and Young People,CYP,Third Party Payments,EGA,03/05/2023,02-10600,"1,799.36",Eden Adventures Childminding
Nottinghamshire County Council,1111/1001,Children and Young People,CYP,Third Party Payments,EGA,03/05/2023,02-10601,"5,148.70",Hickling Pre-School
Nottinghamshire County Council,1111/1001,Children and Young People,CYP,Third Party Payments,EGA,03/05/2023,02-10602,"5,968.24",Highfields School & Nursery
Nottinghamshire County Council,1111/1001,Children and Young People,CYP,Third Party Payments,EGA,03/05/2023,02-10603,"1,808.56",[Redacted]
Nottinghamshire County Council,1111/1001,Children and Young People,CYP,Third Party Payments,EGA,03/05/2023,02-10604,"30,738.55",Hollies Day Nurseries Ltd
Nottinghamshire County Council,1111/1001,Children and Young People,CYP,Third Party Payments,EGA,03/05/2023,02-10605,"20,656.15",Hollies Day Nurseries Ltd
Nottinghamshire County Council,1111/1001,Children and Young People,CYP,Third Party Payments,EGA,03/05/2023,02-10606,"16,671.36",Hollies Day Nursery (Loughborough R
Nottinghamshire County Council,1111/1001,Children and Young People,CYP,Third Party Payments,EGA,03/05/2023,02-10607,"14,172.15",Hollies Day Nursery Ltd (Mapperley)
Nottinghamshire County Council,1111/1001,Children and Young People,CYP,Third Party Payments,EGA,03/05/2023,02-10608,"21,622.64",Holly House Nursery (Doncaster) Ltd
Nottinghamshire County Council,1111/1001,Children and Young People,CYP,Third Party Payments,EGA,03/05/2023,02-10609,"12,262.00",Homestead Day Nursery Ltd
Nottinghamshire County Council,1111/1001,Children and Young People,CYP,Third Party Payments,EGA,03/05/2023,02-10610,"8,795.68",Honey Pot Day Private Day Nursery L
Nottinghamshire County Council,1111/1001,Children and Young People,CYP,Third Party Payments,EGA,03/05/2023,02-10611,"5,393.09",Horsendale Playgroup
Nottinghamshire County Council,1111/1001,Children and Young People,CYP,Third Party Payments,EGA,03/05/2023,02-10612,"24,884.08",Hucknall Day Nursery Ltd
Nottinghamshire County Council,1111/1001,Children and Young People,CYP,Third Party Payments,EGA,03/05/2023,02-10613,"10,993.47",Hucknall Pre-School Playgroup
Nottinghamshire County Council,1111/1001,Children and Young People,CYP,Third Party Payments,EGA,03/05/2023,02-10614,700.62,Little Blossoms Childminding
Nottinghamshire County Council,1111/1001,Children and Young People,CYP,Third Party Payments,EGA,03/05/2023,02-10615,"1,027.52",[Redacted]
Nottinghamshire County Council,1111/1001,Children and Young People,CYP,Third Party Payments,EGA,03/05/2023,02-10616,"1,103.83",J James (Childminder)
Nottinghamshire County Council,1111/1001,Children and Young People,CYP,Third Party Payments,EGA,03/05/2023,02-10617,"6,159.92",Jelly Beans Day Nursery Ltd
Nottinghamshire County Council,1111/1001,Children and Young People,CYP,Third Party Payments,EGA,03/05/2023,02-10618,"1,207.79",Emma's Childcare
Nottinghamshire County Council,1111/1001,Children and Young People,CYP,Third Party Payments,EGA,03/05/2023,02-10619,"3,863.60",Jesters Childcare Ltd
Nottinghamshire County Council,1111/1001,Children and Young People,CYP,Third Party Payments,EGA,03/05/2023,02-10620,"3,032.64",[Redacted]
Nottinghamshire County Council,1111/1001,Children and Young People,CYP,Third Party Payments,EGA,03/05/2023,02-10621,"17,603.04",Jumacare Ltd T/A Church House Nurse
Nottinghamshire County Council,1111/1001,Children and Young People,CYP,Third Party Payments,EGA,03/05/2023,02-10622,"23,638.69",Kids Planet Day Nurseries Ltd (Gedl
Nottinghamshire County Council,1111/1001,Children and Young People,CYP,Third Party Payments,EGA,03/05/2023,02-10623,"12,584.51",Kids Planet Day Nurseries Ltd (Lowd
Nottinghamshire County Council,1111/1001,Children and Young People,CYP,Third Party Payments,EGA,03/05/2023,02-10624,"8,604.75",Poppy & Jacks Ltd
Nottinghamshire County Council,1111/1001,Children and Young People,CYP,Third Party Payments,EGA,03/05/2023,02-10625,"20,250.88",Kidzgrove Daycare Ltd
Nottinghamshire County Council,1111/1001,Children and Young People,CYP,Third Party Payments,EGA,03/05/2023,02-10626,"11,046.49",Killisick Pre-School
Nottinghamshire County Council,1111/1001,Children and Young People,CYP,Third Party Payments,EGA,03/05/2023,02-10627,"1,860.56",Pre-School Learning Alliance (HO)
Nottinghamshire County Council,1111/1001,Children and Young People,CYP,Third Party Payments,EGA,03/05/2023,02-10628,"6,670.77",Kimberley Pre-School Playgroup
Nottinghamshire County Council,1111/1001,Children and Young People,CYP,Third Party Payments,EGA,03/05/2023,02-10629,"4,334.03",Lady Bay Pre School Playgroup
Nottinghamshire County Council,1111/1001,Children and Young People,CYP,Third Party Payments,EGA,03/05/2023,02-10630,"7,337.20",Lambley Day Nursery Ltd
Nottinghamshire County Council,1111/1001,Children and Young People,CYP,Third Party Payments,EGA,03/05/2023,02-10631,"3,080.48",Luans Little Stars
Nottinghamshire County Council,1111/1001,Children and Young People,CYP,Third Party Payments,EGA,03/05/2023,02-10632,"7,642.62",Pre-School Learning Alliance (HO)
Nottinghamshire County Council,1111/1001,Children and Young People,CYP,Third Party Payments,EGA,03/05/2023,02-10633,"5,993.75",Leahurst Road Pre-School
Nottinghamshire County Council,1111/1001,Children and Young People,CYP,Third Party Payments,EGA,03/05/2023,02-10634,"17,402.95",Leen Mills Pre School Playgroup
Nottinghamshire County Council,1111/1001,Children and Young People,CYP,Third Party Payments,EGA,03/05/2023,02-10635,"1,759.68",N Lees (Childminder)
Nottinghamshire County Council,1111/1001,Children and Young People,CYP,Third Party Payments,EGA,03/05/2023,02-10636,"14,302.74",Leos Childrens Nurseries Ltd
Nottinghamshire County Council,1111/1001,Children and Young People,CYP,Third Party Payments,EGA,03/05/2023,02-10637,"8,476.01",Leo's Childrens Nurseries Ltd
Nottinghamshire County Council,1111/1001,Children and Young People,CYP,Third Party Payments,EGA,03/05/2023,02-10638,733.2,B Lilley (Childminder)
Nottinghamshire County Council,1111/1001,Children and Young People,CYP,Third Party Payments,EGA,03/05/2023,02-10639,"14,479.92",Lime Trees Day Nursery Ltd
Nottinghamshire County Council,1111/1001,Children and Young People,CYP,Third Party Payments,EGA,03/05/2023,02-10640,"1,124.24",Little Acorns Childminding
Nottinghamshire County Council,1111/1001,Children and Young People,CYP,Third Party Payments,EGA,03/05/2023,02-10641,"7,925.92",Little Acorns Shireoaks
Nottinghamshire County Council,1111/1001,Children and Young People,CYP,Third Party Payments,EGA,03/05/2023,02-10642,"3,338.88",Little Adventurers Forest School Wa
Nottinghamshire County Council,1111/1001,Children and Young People,CYP,Third Party Payments,EGA,03/05/2023,02-10643,"9,678.23",Little Adventures Forest School Ltd
Nottinghamshire County Council,1111/1001,Children and Young People,CYP,Third Party Payments,EGA,03/05/2023,02-10644,"5,925.92",Little Beans Playgroup
Nottinghamshire County Council,1111/1001,Children and Young People,CYP,Third Party Payments,EGA,03/05/2023,02-10645,"8,170.24",Little Beans Playgroup
Nottinghamshire County Council,1111/1001,Children and Young People,CYP,Third Party Payments,EGA,03/05/2023,02-10646,"3,757.68",Little Ducklings Preschool Ltd
Nottinghamshire County Council,1111/1001,Children and Young People,CYP,Third Party Payments,EGA,03/05/2023,02-10647,"6,046.91",Little Elms Pre-school (Oxton)
Nottinghamshire County Council,1111/1001,Children and Young People,CYP,Third Party Payments,EGA,03/05/2023,02-10648,"6,030.62",Little Friends Day Nursery
Nottinghamshire County Council,1111/1001,Children and Young People,CYP,Third Party Payments,EGA,03/05/2023,02-10649,"4,843.28",Little House Of Horrors
Nottinghamshire County Council,1111/1001,Children and Young People,CYP,Third Party Payments,EGA,03/05/2023,02-10650,"8,120.32",Little Kites Playgroup
Nottinghamshire County Council,1111/1001,Children and Young People,CYP,Third Party Payments,EGA,03/05/2023,02-10651,"9,681.36",Little Lambs Day Nursery
Nottinghamshire County Council,1111/1001,Children and Young People,CYP,Third Party Payments,EGA,03/05/2023,02-10652,"7,686.64",Little Lambs Day Nursery (Kirkby in
